Workbook

Sheet Données Patient (hidden)
O5: Date | P5: =TODAY() -> 2019-05-27
H6: Poids | J6: =Pat!G3& " kg" -> 80 kg
H7: Poids idéal | J7: =Pat!O19&" kg" -> 74 kg
H8: Taille | J8: =Pat!G4&" cm" -> 180 cm | L8: Tabac | M8: =IF(ISNUMBER(Pat!K16),Pat!K16&" cig/j","non fumeur") -> 5 cig/j | O8: (kcal) | P8: DEB | Q8: DET
D9: Prénom | E9: =Pat!O2& Pat!P4 -> Patrick (H) | H9: IMC classique (kg/m²) | J9: =Pat!$K$2 -> 24.69135802 | L9: NAP | M9: =Pat!A5 -> 1.5 | O9: Black et al. | P9: =Pat!S11 -> 1735.014528 | Q9: =Pat!T11 -> 2602.521793
D10: NOM | E10: =Pat!O3 -> DURAND | H10: IMC corrigé | J10: =Pat!$K$3 -> 23.92500717 | L10: Adiposité | M10: =Pat!W6&" %" -> 21,5 % | O10: Harris et B. | P10: =Pat!S9 -> 1842.32557 | Q10: =Pat!T9 -> 2763.488355
D11: Âge (an) | E11: =Pat!O5 -> 39.4 | H11: Surface corporelle | J11: =Pat!O14&" m²" -> 2 m² | L11: M. maigre | M11: =Pat!S16&" kg" -> 62,7 kg | O11: Moyenne | P11: =Pat!S12 -> 1788.670049 | Q11: =Pat!T12 -> 2683.005074

Sheet Pat (hidden)
H2: poids en g | J2: IMC | K2: =IF(ISBLANK(F4),"",G3/J9^2) -> 24.69135802 | N2: Prénom | O2: Patrick
A3: NAP estimé | C3: Féminin | E3: poids | F3: 80 | G3: =IF(ISBLANK(F3),"",VALUE(F3)) -> 80 | H3: =IF(ISBLANK(F3),"",G3*1000) -> 80000 | J3: IMC2 corrigé trefethen | K3: =IF(ISBLANK(F4),"",1.3*G3/J9^2.5) -> 23.92500717 | N3: Nom | O3: DURAND
A4: 1,5 | C4: Masculin | E4: taille | F4: 180 | G4: =IF(ISBLANK(F4),"",VALUE(F4)) -> 180 | N4: Sexe | O4: Masculin | P4: =IF(O4="Masculin"," (H)",IF(O4="Féminin"," (F)"," ")) -> (H)
A5: =IF(ISBLANK(A4),"",VALUE(A4)) -> 1.5 | N5: Age | O5: =M10 -> 39.4 | S5: DEB | V5: MG | W5: =IF(O4="Masculin",1.2*K3+0.23*O5-10.8-5.4,1.2*K3+0.23*O5-5.4) -> 21.5720086
W6: =IF(ISNUMBER(W5),ROUNDDOWN(W5,1),"") -> 21.5
A7: 1 | Q7: DEb clope | S7: =IF(ISNUMBER(K16),K16*0.005," ") -> 0.025 | T7: DET
A8: 1.1 | J8: taille mètre | L8: age | M8: 01/01/1980 | Q8: DEb HB | S8: =IF(Pat!O4="Masculin",(13.707*G3)+(492.3*J9)-(6.673*Pat!M10)+77.607,(9.74*G3)+(172.9*J9)-(4.737*Pat!M10)+667.051) -> 1797.3908 | T8: =S8*Nap_2 -> 2696.0862
A9: 1.2 | J9: =G4/100 -> 1.8 | L9: =TODAY() -> 2019-05-27 | M9: =IF(ISNUMBER(L10),L10/365,"") -> 39.42739726 | Q9: Deb corrigé | R9: HB | S9: =IF(ISBLANK(F4),"",IF(fumeur=1,S8+S7*S8,S8)) -> 1842.32557 | T9: =IF(ISBLANK(F4),"",S9*Nap_2) -> 2763.488355
A10: 1.3 | L10: =IF(ISBLANK(M8)," ",L9-M8) -> 14391 | M10: =IF(ISNUMBER(M9),ROUNDDOWN(M9,1),"") -> 39.4 | R10: Black al | S10: =IF(Pat!O4="Masculin",((((1.083*G3)^0.48)*(J9^0.5)*(M10^(-0.13)))*(1000/4.1855)),((((0.963*G3)^0.48)*(J9^0.5)*(M10^(-0.13)))*(1000/4.1855))) -> 1692.697101 | T10: =S10*Nap_2 -> 2539.045651
A11: 1.4 | R11: Bl corrigé | S11: =IF(ISBLANK(F4),"",IF(fumeur=1,S10+S7*S10,S10)) -> 1735.014528 | T11: =IF(ISBLANK(F4),"",S11*Nap_2) -> 2602.521793 | V11: La première formule de Deurenberg :
A12: 1.5 | K12: SC = 0,0001 x (3,207) x (P 0,7285-0,0188logP) x (T 0,3) | R12: MOYENNE | S12: =IF(ISBLANK(F4),"",(S9+S11)/2) -> 1788.670049 | T12: =IF(ISBLANK(F4),"",(T9+T11)/2) -> 2683.005074
A13: 1.6 | J13: Fumeur | K13: 1 | M13: surface corporelle (boyd) | O13: =0.0001*(3.207)*(H3^(0.7285-0.0188*LOG(H3)))*G4^0.3 -> 2.007355482 | V13: IMG(%)=(1.20∗IMC)+(0.23∗Age)−(10.8∗Sexe)−5.4
A14: 1.7 | B14: HB | C14: Homme = 13,707 x Poids(kg) + 492,3 x Taille(m) - 6,673 x Age(an) + 77, 607 | O14: =IF(ISNUMBER(O13),ROUNDDOWN(O13,2),"") -> 2
A15: 1.8 | C15: Femme = 9,740 x Poids(kg) + 172,9 x Taille(m) - 4,737 x Age(an) + 667, 051 | J15: nbr | K15: 5 | M15: poids ideal | N15: Lorentz | O15: =IF(O4="Masculin",G4-100-((G4-150)/4),G4-100-((G4-150)/2.5)) -> 72.5 | Q15: MM | R15: James | S15: =IF(O4="Masculin",1.1*poids_1-128*(poids_1^2/taille_1^2),1.07*poids_1-148*(poids_1^2/taille_1^2)) -> 62.71604938 | U15: =poids_1-S15 -> 17.28395062
A16: 1.9 | B16: Bl | C16: Femme : Kcal = [0,963 x Poids(kg)0,48 x Taille(m)0,50 x Age(an)-0,13] x (1000/4,1855) | J16: nbr (nb) | K16: =VALUE(K15) -> 5 | N16: Devine | O16: =IF(O4="Masculin",50+2.3*(J9/0.0254-60),45.5+2.3*(J9/0.0254-60)) -> 74.99212598 | S16: =IF(ISNUMBER(S15),ROUNDDOWN(S15,1),"") -> 62.7
A17: 2 | C17: Homme : Kcal = [1,083 x Poids(kg)0,48 x Taille(m)0,50 x Age(an)-0,13] x (1000/4,1855) | Q17: eau | R17: hume | S17: =IF(O4="Masculin",-14.012934+(0.296785*poids_1)+(0.194786*taille_1),-35.270121+(0.183809*poids_1)+(0.34454*taille_1)) -> 44.791346 | V17: Poids maigre (homme) en kg = 1.10 x Poids(kg) - 128 [Poids(kg)2/Taille(cm)2]
A18: 2.1 | O18: =AVERAGE(O15:O17) -> 73.74606299 | Q18: Eau | S18: =IF(ISNUMBER(S17),ROUNDDOWN(S17,1),"") -> 44.7 | V18: Poids maigre (femme) en kg = 1.07 x Poids(kg) - 148 [Poids(kg)2/Taille(cm)2]
A19: 2.2 | D19: <20 | E19: 20 à 29 | F19: 30 à 39 | G19: 40 à 49 | H19: >50 | J19: 0 | K19: 2 | O19: =IF(ISNUMBER(O18),ROUNDUP(O18,0),"") -> 74 | Q19: Tour de taille
A20: 2.3 | D20: 20 | E20: 30 | F20: 40 | G20: 50 | J20: 20 | K20: 3 | M20: DC | Q20: Tour de hanche | V20: Homme = - 14,012934 + 0,296785 x Poids(kg) + 0,194786 x Taille(cm)
A21: 2.4 | D21: n | E21: n | F21: n | G21: n | H21: n | J21: 30 | K21: 4 | M21: MG | Q21: rapport T/H | V21: Femme = - 35,270121 + 0,183809 x Poids(kg) + 0,34454 x Taille(cm)
A22: 2.5 | C22: Homme | D22: 1.162 | E22: 1.1631 | F22: 1.1422 | G22: 1.162 | H22: 1.1715 | J22: 40 | K22: 5
A23: 2.6 | C23: Femme | D23: 1.1549 | E23: 1.1599 | F23: 1.1423 | G23: 1.1333 | H23: 1.1339 | J23: 50 | K23: 6 | M23: MG | Q23: SBSI | R23: surface body shaped index
M24: N
D25: m | E25: m | F25: m | G25: m | H25: m | M25: M
C26: Homme | D26: 0.063 | E26: 0.0632 | F26: 0.0544 | G26: 0.07 | H26: 0.0779
C27: Femme | D27: 0.0678 | E27: 0.0717 | F27: 0.0632 | G27: 0.0612 | H27: 0.0645 | J27: lorentz | L27: Poids idéal Masculin (en Kg) = Taille (en cm) - 100 - ((Taille (en cm) - 150) /4 ).
L29: Poids idéal Féminin (en Kg) = Taille (en cm) - 100 - ((Taille (en cm) - 150) /2,5 ).
D31: CMB = CB - (0,314 x PCT)
J32: devine | L32: Poids idéal pour les femmes = 45,5 + 2,3 x (Taille(en centimètres) / 0,0254 - 60)
D33: CMB | L33: Poids idéal pour les hommes = 50 + 2,3 x (Taille(en centimètres) / 0,0254 - 60)
J35: PECKS | L35: Poids idéal (homme) = -130.736 + (4.064 x T)
L37: Poids idéal (femme) = -111.621 + (3.636 x T)

Sheet PANDA_Saisie des rations
D5: FFFFF
F12: 4 | G12: 5 | H12: 6 | I12: 7 | J12: 8 | K12: 9 | L12: 10 | M12: 11 | N12: 12 | O12: 13 | P12: 14 | Q12: 15 | R12: 16 | S12: 17 | T12: 18 | U12: 19 | V12: 20 | W12: 21 | X12: 22 | Y12: 23 | Z12: 24 | AA12: 25 | AB12: 26 | AC12: 27 | AD12: 28 | AE12: 29 | AF12: 30 | AG12: 31 | AH12: 32 | AI12: 33 | AJ12: 34 | AK12: 35 | AL12: 36 | AM12: 37 | AN12: 38 | AO12: 39 | AP12: 40 | AQ12: 41 | AR12: 42 | AS12: 43 | AT12: 44 | AU12: 45 | AV12: 46 | AW12: 47 | AX12: 48 | AY12: 49 | AZ12: 50 | BA12: 51 | BB12: 52 | BC12: 53
B13: Code | C13: Famille | D13: Dénomination | E13: Quantité g/ml | F13: Energie kcal | G13: Protéines g | H13: Lipides g | I13: Glucides g | J13: Sucres | K13: Amidon | L13: Fibres | M13: AGS | N13: AG 4:0, butyrique | O13: AG 6:0, caproïque | P13: AG 8:0, caprylique | Q13: AG 10:0, caprique | R13: AG 12:0, laurique | S13: AG 14:0, myristique | T13: AG 16:0, palmitique | U13: AG 18:0, stéarique | V13: AGM | W13: AG 18:1 9c (n-9), oléique (g/100g) | X13: AGP | Y13: AG 18:3 c9,c12,c15 (n-3), alpha-linolénique | Z13: AG 20:5 5c,8c,11c,14c,17c (n-3) EPA | AA13: AG 22:6 4c,7c,10c,13c,16c,19c (n-3) DHA | AB13: AG 20:4 5c,8c,11c,14c (n-6), arachidonique | AC13: AG 18:2 9c,12c (n-6), linoléique | AD13: Cholestérol (mg/100g) | AE13: Sodium | AF13: Calcium | AG13: Potassium | AH13: Magnésium | AI13: Phosphore | AJ13: Fer | AK13: Iode | AL13: Cuivre | AM13: Zinc | AN13: Sélénium | AO13: Vitamine A (µg/100 ER) | AP13: Vitamine D (µg/100g) | AQ13: Vitamine E (mg/100g) | AR13: Vitamine K1 (µg/100g) | AS13: Vitamine K2 (µg/100g) | AT13: Vitamine C (mg/100g) | AU13: Vitamine B1 (mg/100g) | AV13: Vitamine B2 (mg/100g) | AW13: Vitamine B3 (mg/100g) | AX13: Vitamine B5 (mg/100g) | AY13: Vitamine B6 (mg/100g) | AZ13: Vitamine B12 (µg/100g) | BA13: Vitamine B9 (µg/100g) | BB13: Alcool (g/100g) | BC13: Eau
J14: mg/jour | K14: mg/j
B16: PETIT DEJEUNER
B17: =IF(ISBLANK($D17),"",VLOOKUP($D17,table_totale,3,1)) -> 13034 | C17: =IF(ISBLANK($D17),"",MID((VLOOKUP($D17,table_totale,2,1)),1,22)) -> Fruits frais | D17: Orange, fraîche, pulpe | E17: 100 | F17: =IF(ISBLANK($E17),"",VLOOKUP($D17,table_totale,F$12,1)*$E17/100) -> 46.5 | G17: 0.957 | H17: 0.26 | I17: 8.32 | J17: 8.32 | K17: 0 | L17: 1.82 | M17: 0.0543 | N17: 0 | O17: 0 | P17: =IF(ISBLANK($E17),"",VLOOKUP($D17,table_totale,P$12,1)*$E17/100) -> 0 | Q17: 0 | R17: 0 | S17: 0 | T17: 0.0473 | U17: 0.00705 | V17: 0.0633 | W17: 0.0633 | X17: 0.1 | Y17: 0.0285 | Z17: =IF(ISBLANK($E17),"",VLOOKUP($D17,table_totale,Z$12,1)*$E17/100) -> 0 | AA17: 0 | AB17: 0 | AC17: 0.0715 | AD17: 0.13 | AE17: 4.87 | AF17: 39 | AG17: 151 | AH17: 12.4 | AI17: 15.1 | AJ17: =IF(ISBLANK($E17),"",VLOOKUP($D17,table_totale,AJ$12,1)*$E17/100) -> 0.106 | AK17: 0.961 | AL17: 0.04 | AM17: 0.0732 | AN17: 1.3 | AO17: 41.33333333 | AP17: 0 | AQ17: 0.395 | AR17: 0.1 | AS17: 0 | AT17: =IF(ISBLANK($E17),"",VLOOKUP($D17,table_totale,AT$12,1)*$E17/100) -> 39.7 | AU17: 0.0777 | AV17: 0.0407 | AW17: 0.261 | AX17: 0.215 | AY17: 0.0807 | AZ17: 0 | BA17: 38.7 | BB17: 0 | BC17: 87.1
B18: 7110 | C18: Pains | D18: Pain complet ou intégral (à la farine T150) | E18: 80 | F18: 204.8 | G18: 8.16 | H18: 2.96 | I18: 32.64 | J18: 2.32 | K18: 30.32 | L18: 5.84 | M18: 0.56 | N18: 0.04 | O18: 0.04 | P18: 0.04 | Q18: 0.04 | R18: 0.04 | S18: 0.0008 | T18: 0.184 | U18: 0.0104 | V18: 0.112 | W18: 0.112 | X18: 0.4 | Y18: 0.0192 | Z18: 0 | AA18: 0 | AB18: 0 | AC18: 0.376 | AD18: 0.48 | AE18: 318.4 | AF18: 25.52 | AG18: 252 | AH18: 44.8 | AI18: 149.6 | AJ18: 1.672 | AK18: 1.6 | AL18: 0.136 | AM18: 0.896 | AN18: 8 | AO18: 0 | AP18: 0 | AQ18: 0.24 | AR18: 16 | AS18: 0 | AT18: 0 | AU18: 0.128 | AV18: 0.088 | AW18: 1.92 | AX18: 0.512 | AY18: 0.168 | AZ18: 0.088 | BA18: 21.12 | BB18: 0 | BC18: 27.28
B19: 16400 | C19: Beurres et matières gr | D19: Beurre à 82% MG, doux | E19: 15 | F19: 111.9 | G19: 0.108 | H19: 12.3 | I19: 0.1905 | J19: 0.075 | K19: 0 | L19: 0 | M19: 8.31 | N19: 0.4665 | O19: 0.3045 | P19: 0.204 | Q19: 0.405 | R19: 0.441 | S19: 1.3245 | T19: 3.48 | U19: 1.0455 | V19: 3.24 | W19: 2.715 | X19: 0.4095 | Y19: 0.0555 | Z19: 0.00465 | AA19: 0 | AB19: 0 | AC19: 0.1785 | AD19: 33.45 | AE19: 2.325 | AF19: 2.67 | AG19: 4.2 | AH19: 0.3075 | AI19: 3.6 | AJ19: 0.0039 | AK19: 0.2625 | AL19: 0.0039 | AM19: 0.01245 | AN19: 1.5 | AO19: 113.475 | AP19: 0.168 | AQ19: 0.3165 | AR19: 1.4445 | AS19: 2.25 | AT19: 0 | AU19: 0.0009 | AV19: 0.00525 | AW19: 0.01065 | AX19: 0.0165 | AY19: 0.000525 | AZ19: 0.0255 | BA19: 0.45 | BB19: 0 | BC19: 2.37
C20: =IF(ISBLANK($D20),"",MID((VLOOKUP($D20,table_totale,2,1)),1,22)) -> 
F23: =IF(ISBLANK($E23),"",VLOOKUP($D23,table_totale,F$12,1)*$E23/100) -> 
F27: =IF(ISBLANK($E27),"",VLOOKUP($D27,table_totale,F$12,1)*$E27/100) ->  | P27: =IF(ISBLANK($E27),"",VLOOKUP($D27,table_totale,P$12,1)*$E27/100) ->  | Z27: =IF(ISBLANK($E27),"",VLOOKUP($D27,table_totale,Z$12,1)*$E27/100) ->  | AJ27: =IF(ISBLANK($E27),"",VLOOKUP($D27,table_totale,AJ$12,1)*$E27/100) ->  | AT27: =IF(ISBLANK($E27),"",VLOOKUP($D27,table_totale,AT$12,1)*$E27/100) -> 
B41: COLLATION MATIN
C42: =IF(ISBLANK($D42),"",MID((VLOOKUP($D42,table_totale,2,1)),1,22)) ->  | F42: =IF(ISBLANK($E42),"",VLOOKUP($D42,table_totale,F$12,1)*$E42/100) ->  | P42: =IF(ISBLANK($E42),"",VLOOKUP($D42,table_totale,P$12,1)*$E42/100) ->  | Z42: =IF(ISBLANK($E42),"",VLOOKUP($D42,table_totale,Z$12,1)*$E42/100) ->  | AJ42: =IF(ISBLANK($E42),"",VLOOKUP($D42,table_totale,AJ$12,1)*$E42/100) ->  | AT42: =IF(ISBLANK($E42),"",VLOOKUP($D42,table_totale,AT$12,1)*$E42/100) -> 
B49: =IF(ISBLANK($D49),"",VLOOKUP($D49,table_totale,3,1)) -> 
F52: =IF(ISBLANK($E52),"",VLOOKUP($D52,table_totale,F$12,1)*$E52/100) ->  | P52: =IF(ISBLANK($E52),"",VLOOKUP($D52,table_totale,P$12,1)*$E52/100) ->  | Z52: =IF(ISBLANK($E52),"",VLOOKUP($D52,table_totale,Z$12,1)*$E52/100) ->  | AJ52: =IF(ISBLANK($E52),"",VLOOKUP($D52,table_totale,AJ$12,1)*$E52/100) ->  | AT52: =IF(ISBLANK($E52),"",VLOOKUP($D52,table_totale,AT$12,1)*$E52/100) -> 
B61: DEJEUNER
C62: =IF(ISBLANK($D62),"",MID((VLOOKUP($D62,table_totale,2,1)),1,22)) ->  | F62: =IF(ISBLANK($E62),"",VLOOKUP($D62,table_totale,F$12,1)*$E62/100) ->  | P62: =IF(ISBLANK($E62),"",VLOOKUP($D62,table_totale,P$12,1)*$E62/100) ->  | Z62: =IF(ISBLANK($E62),"",VLOOKUP($D62,table_totale,Z$12,1)*$E62/100) ->  | AJ62: =IF(ISBLANK($E62),"",VLOOKUP($D62,table_totale,AJ$12,1)*$E62/100) ->  | AT62: =IF(ISBLANK($E62),"",VLOOKUP($D62,table_totale,AT$12,1)*$E62/100) -> 
B65: =IF(ISBLANK($D65),"",VLOOKUP($D65,table_totale,3,1)) ->  | C65: =IF(ISBLANK($D65),"",MID((VLOOKUP($D65,table_totale,2,1)),1,22)) -> 
B66: =IF(ISBLANK($D66),"",VLOOKUP($D66,table_totale,3,1)) ->  | C66: =IF(ISBLANK($D66),"",MID((VLOOKUP($D66,table_totale,2,1)),1,22)) -> 
F72: =IF(ISBLANK($E72),"",VLOOKUP($D72,table_totale,F$12,1)*$E72/100) ->  | P72: =IF(ISBLANK($E72),"",VLOOKUP($D72,table_totale,P$12,1)*$E72/100) ->  | Z72: =IF(ISBLANK($E72),"",VLOOKUP($D72,table_totale,Z$12,1)*$E72/100) ->  | AJ72: =IF(ISBLANK($E72),"",VLOOKUP($D72,table_totale,AJ$12,1)*$E72/100) ->  | AT72: =IF(ISBLANK($E72),"",VLOOKUP($D72,table_totale,AT$12,1)*$E72/100) -> 
B86: COLLATION APRES-MIDI
B87: =IF(ISBLANK($D87),"",VLOOKUP($D87,table_totale,3,1)) ->  | C87: =IF(ISBLANK($D87),"",MID((VLOOKUP($D87,table_totale,2,1)),1,22)) ->  | F87: =IF(ISBLANK($E87),"",VLOOKUP($D87,table_totale,F$12,1)*$E87/100) ->  | P87: =IF(ISBLANK($E87),"",VLOOKUP($D87,table_totale,P$12,1)*$E87/100) ->  | Z87: =IF(ISBLANK($E87),"",VLOOKUP($D87,table_totale,Z$12,1)*$E87/100) ->  | AJ87: =IF(ISBLANK($E87),"",VLOOKUP($D87,table_totale,AJ$12,1)*$E87/100) ->  | AT87: =IF(ISBLANK($E87),"",VLOOKUP($D87,table_totale,AT$12,1)*$E87/100) -> 
F97: =IF(ISBLANK($E97),"",VLOOKUP($D97,table_totale,F$12,1)*$E97/100) ->  | P97: =IF(ISBLANK($E97),"",VLOOKUP($D97,table_totale,P$12,1)*$E97/100) ->  | Z97: =IF(ISBLANK($E97),"",VLOOKUP($D97,table_totale,Z$12,1)*$E97/100) ->  | AJ97: =IF(ISBLANK($E97),"",VLOOKUP($D97,table_totale,AJ$12,1)*$E97/100) ->  | AT97: =IF(ISBLANK($E97),"",VLOOKUP($D97,table_totale,AT$12,1)*$E97/100) -> 
B106: DÎNER
C107: =IF(ISBLANK($D107),"",MID((VLOOKUP($D107,table_totale,2,1)),1,22)) ->  | F107: =IF(ISBLANK($E107),"",VLOOKUP($D107,table_totale,F$12,1)*$E107/100) ->  | P107: =IF(ISBLANK($E107),"",VLOOKUP($D107,table_totale,P$12,1)*$E107/100) ->  | Z107: =IF(ISBLANK($E107),"",VLOOKUP($D107,table_totale,Z$12,1)*$E107/100) ->  | AJ107: =IF(ISBLANK($E107),"",VLOOKUP($D107,table_totale,AJ$12,1)*$E107/100) ->  | AT107: =IF(ISBLANK($E107),"",VLOOKUP($D107,table_totale,AT$12,1)*$E107/100) -> 
B113: =IF(ISBLANK($D113),"",VLOOKUP($D113,table_totale,3,1)) -> 
F117: =IF(ISBLANK($E117),"",VLOOKUP($D117,table_totale,F$12,1)*$E117/100) ->  | P117: =IF(ISBLANK($E117),"",VLOOKUP($D117,table_totale,P$12,1)*$E117/100) ->  | Z117: =IF(ISBLANK($E117),"",VLOOKUP($D117,table_totale,Z$12,1)*$E117/100) ->  | AJ117: =IF(ISBLANK($E117),"",VLOOKUP($D117,table_totale,AJ$12,1)*$E117/100) ->  | AT117: =IF(ISBLANK($E117),"",VLOOKUP($D117,table_totale,AT$12,1)*$E117/100) -> 
B132: COLLATION SOIR
C133: =IF(ISBLANK($D133),"",MID((VLOOKUP($D133,table_totale,2,1)),1,22)) ->  | F133: =IF(ISBLANK($E133),"",VLOOKUP($D133,table_totale,F$12,1)*$E133/100) ->  | P133: =IF(ISBLANK($E133),"",VLOOKUP($D133,table_totale,P$12,1)*$E133/100) ->  | Z133: =IF(ISBLANK($E133),"",VLOOKUP($D133,table_totale,Z$12,1)*$E133/100) ->  | AJ133: =IF(ISBLANK($E133),"",VLOOKUP($D133,table_totale,AJ$12,1)*$E133/100) ->  | AT133: =IF(ISBLANK($E133),"",VLOOKUP($D133,table_totale,AT$12,1)*$E133/100) -> 
C134: =IF(ISBLANK($D134),"",MID((VLOOKUP($D134,table_totale,2,1)),1,22)) -> 
F143: =IF(ISBLANK($E143),"",VLOOKUP($D143,table_totale,F$12,1)*$E143/100) ->  | P143: =IF(ISBLANK($E143),"",VLOOKUP($D143,table_totale,P$12,1)*$E143/100) ->  | Z143: =IF(ISBLANK($E143),"",VLOOKUP($D143,table_totale,Z$12,1)*$E143/100) ->  | AJ143: =IF(ISBLANK($E143),"",VLOOKUP($D143,table_totale,AJ$12,1)*$E143/100) ->  | AT143: =IF(ISBLANK($E143),"",VLOOKUP($D143,table_totale,AT$12,1)*$E143/100) -> 
B145: =IF(ISBLANK($D145),"",VLOOKUP($D145,table_totale,3,1)) -> 

Sheet Feuil3 (hidden)
M1: =PANDA_Synthèse!I3 -> 341.182 | O1: =PANDA_Synthèse!C18*100 -> 10.81534196 | P1: =PANDA_Synthèse!D18*100 -> 40.94002614 | Q1: =100*PANDA_Synthèse!E18 -> 48.2446319 | S1: =Annexe!B12 -> A | T1: =Annexe!C12 -> D | U1: =Annexe!D12 -> E | V1: =Annexe!E12 -> K | W1: =Annexe!F12 -> C | X1: =Annexe!G12 -> B1 | Y1: =Annexe!H12 -> B2 | Z1: =Annexe!I12 -> B3 | AA1: =Annexe!J12 -> B5 | AB1: =Annexe!K12 -> B6 | AC1: =Annexe!L12 -> B12 | AD1: =Annexe!M12 -> B9
M2: =Pat!T12 -> 2683.005074 | O2: 12.5 | P2: 37.5 | Q2: 50 | S2: =Annexe!B13 -> 154.8083333 | T2: =Annexe!C13 -> 0.168 | U2: =Annexe!D13 -> 0.9515 | V2: =Annexe!E13 -> 19.7945 | W2: =Annexe!F13 -> 39.7 | X2: =Annexe!G13 -> 0.2066 | Y2: =Annexe!H13 -> 0.13395 | Z2: =Annexe!I13 -> 2.19165 | AA2: =Annexe!J13 -> 0.7435 | AB2: =Annexe!K13 -> 0.249225 | AC2: =Annexe!L13 -> 0.1135 | AD2: =Annexe!M13 -> 60.27
C3: Sub RAZ() | M3: NRJ | O3: P | P3: L | Q3: G | S3: =Annexe!B15 -> 800 | T3: =Annexe!C15 -> 5 | U3: =Annexe!D15 -> 12 | V3: =Annexe!E15 -> 50 | W3: =Annexe!F15 -> 110 | X3: =Annexe!G15 -> 1.3 | Y3: =Annexe!H15 -> 1.6 | Z3: =Annexe!I15 -> 14 | AA3: =Annexe!J15 -> 5 | AB3: =Annexe!K15 -> 1.8 | AC3: =Annexe!L15 -> 2.4 | AD3: =Annexe!M15 -> 330
C4: Sheets("Feuil1").Range("A1:G20").ClearContents | M4: =IF(M2<M1,(M2-(M1-M2))/M2,M1/M2)*10 -> 1.271641278 | O4: =IF(O2<O1,(O2-(O1-O2))/O2,O1/O2)*10 -> 8.652273567 | P4: =IF(P2<P1,(P2-(P1-P2))/P2,P1/P2)*10 -> 9.082659695 | Q4: =IF(Q2<Q1,(Q2-(Q1-Q2))/Q2,Q1/Q2)*10 -> 9.648926379 | S4: =Annexe!B16 -> 0.1935104167 | T4: =Annexe!C16 -> 0.0336 | U4: =Annexe!D16 -> 0.07929166667 | V4: =Annexe!E16 -> 0.39589 | W4: =Annexe!F16 -> 0.3609090909 | X4: =Annexe!G16 -> 0.1589230769 | Y4: =Annexe!H16 -> 0.08371875 | Z4: =Annexe!I16 -> 0.1565464286 | AA4: =Annexe!J16 -> 0.1487 | AB4: =Annexe!K16 -> 0.1384583333 | AC4: =Annexe!L16 -> 0.04729166667 | AD4: =Annexe!M16 -> 0.1826363636
C5: End Sub | P5: =AVERAGE(O4:Q4) -> 9.127953214 | S5: =IF(S3<S2,(S3-(S2-S3))/S3,S2/S3)*10 -> 1.935104167 | T5: =IF(T3<T2,(T3-(T2-T3))/T3,T2/T3)*10 -> 0.336 | U5: =IF(U3<U2,(U3-(U2-U3))/U3,U2/U3)*10 -> 0.7929166667 | V5: 3.9589 | W5: =IF(W3<W2,(W3-(W2-W3))/W3,W2/W3)*20 -> 7.218181818 | X5: 1.589230769 | Y5: 0.8371875 | Z5: 1.565464286 | AA5: 1.487 | AB5: 1.384583333 | AC5: 0.4729166667 | AD5: 1.826363636
U6: =AVERAGE(S5:AD5) -> 1.950320737
C7: Sub Impr()
C8: With Worksheets("feuil1").PageSetup | S8: =Annexe!U12 -> Na | T8: =Annexe!V12 -> Ca | U8: =Annexe!W12 -> K | V8: =Annexe!X12 -> Mg | W8: =Annexe!Y12 -> P | X8: =Annexe!Z12 -> Fe | Y8: =Annexe!AA12 -> I | Z8: =Annexe!AB12 -> Cu | AA8: =Annexe!AC12 -> Zn | AB8: =Annexe!AD12 -> Se | AD8: EAU
C9: .PrintArea = "a1:g20" | O9: GLU | P9: FIBRES | S9: =Annexe!U13 -> 325.595 | T9: =Annexe!V13 -> 67.19 | U9: =Annexe!W13 -> 407.2 | V9: =Annexe!X13 -> 57.5075 | W9: =Annexe!Y13 -> 168.3 | X9: =Annexe!Z13 -> 1.7819 | Y9: =Annexe!AA13 -> 2.8235 | Z9: =Annexe!AB13 -> 0.1799 | AA9: =Annexe!AC13 -> 0.98165 | AB9: =Annexe!AD13 -> 10.8 | AD9: ='Annexe 2'!BD4 -> 2.683005074
C10: End With | K10: vide | L10: test | O10: 0.75 | P10: 30 | S10: =Annexe!U15 -> 2400 | T10: =Annexe!V15 -> 900 | U10: =Annexe!W15 -> 4700 | V10: =Annexe!X15 -> 420 | W10: =Annexe!Y15 -> 750 | X10: =Annexe!Z15 -> 9 | Y10: =Annexe!AA15 -> 150 | Z10: =Annexe!AB15 -> 2 | AA10: =Annexe!AC15 -> 12 | AB10: =Annexe!AD15 -> 60 | AD10: ='Annexe 2'!BC5/ 'Annexe 2'!$AE$26 -> 0.11675
C11: Worksheets("feuil1").PrintOut | J11: Apport énergétique | K11: 1 | L11: =IF(ISBLANK(Pat!F3),"",IF($M$4<0,1,IF($M$4>10,10,$M$4))) -> 1.271641278 | O11: ='Annexe 2'!I38 -> 0.7368075722 | P11: ='Annexe 2'!K4 -> 7.66 | S11: =Annexe!U16 -> 0.1356645833 | T11: =Annexe!V16 -> 0.07465555556 | U11: =Annexe!W16 -> 0.08663829787 | V11: =Annexe!X16 -> 0.136922619 | W11: =Annexe!Y16 -> 0.2244 | X11: =Annexe!Z16 -> 0.1979888889 | Y11: =Annexe!AA16 -> 0.01882333333 | Z11: =Annexe!AB16 -> 0.08995 | AA11: =Annexe!AC16 -> 0.08180416667 | AB11: =Annexe!AD16 -> 0.18
C12: End Sub | J12: Equilibre macronutritionnel | K12: 3 | L12: =IF($P$5<0,1,IF($P$5>10,10,$P$5)) -> 9.127953214 | S12: =IF(S10<S9,(S10-(S9-S10))/S10,S9/S10)*10 -> 1.356645833 | T12: =IF(T10<T9,(T10-(T9-T10))/T10,T9/T10)*10 -> 0.7465555556 | U12: =IF(U10<U9,(U10-(U9-U10))/U10,U9/U10)*20 -> 1.732765957 | V12: 1.36922619 | W12: 2.244 | X12: 1.979888889 | Y12: 0.1882333333 | Z12: 0.8995 | AA12: 0.8180416667 | AB12: 1.8 | AD12: =IF(AD9>AD10,AD10/AD9*10,10) -> 0.4351464004
J13: Statut micronutritionnel | K13: 4 | L13: =IF($T$14<0,1,IF($T$14>10,10,$T$14)) -> 1.63190324 | O13: =IF(O10>O11,O11/O10*10,10) -> 9.824100963 | P13: =IF(P10>P11,P11/P10*10,10) -> 2.553333333 | U13: =AVERAGE(S12:AB12) -> 1.313485743
J14: Blian lipidique | K14: 9 | L14: =IF($T$21<0,1,IF($T$21>10,10,$T$21)) -> 5.278554313 | O14: =AVERAGE(O13:P13) -> 6.188717148 | T14: =AVERAGE(U6,U13) -> 1.63190324
J15: Apport hydrique | K15: 6 | L15: =IF(ISBLANK(Pat!F3),"",IF($AD$12<0,1,IF($AD$12>10,10,$AD$12))) -> 0.4351464004
J16: Rapport glucidique | K16: 3 | L16: =IF($O$14<0,1,IF($O$14>10,10,$O$14)) -> 6.188717148 | T16: AGS | U16: LMP | V16: AGM | W16: AGO | X16: omega3 | Y16: EPADHA | Z16: ALA | AA16: rap63 | AB16: chol
L17: =AVERAGE(L11:L16) -> 3.988985932 | T17: 12 | U17: 8 | W17: 15 | X17: 1 | Y17: 0.5 | Z17: 0.5 | AA17: 5 | AB17: 300
L18: =IF(ISNUMBER(notenut),ROUNDUP(notenut,1)," ") -> 4 | N18: =Annexe!P23 -> 0 | O18: =Annexe!Q23 -> g./j. | P18: =Annexe!R23 -> 0 | Q18: =Annexe!S23 -> %AEA | R18: =Annexe!T23 -> ANC | T18: =Q19*100 -> 23.5413064 | U18: =Q20*100 -> 14.55481239 | W18: =Q23*100 -> 0 | X18: =O26 -> 0.10785 | Y18: =O27 -> 0.00465 | Z18: =Q28*100 -> 0.2722300708 | AA18: =O31 -> 5.804357904 | AB18: =O33 -> 34.06
N19: =Annexe!P24 -> AGS | O19: =Annexe!Q24 -> 8.9243 | P19: =Annexe!R24 -> 0.6735778279 | Q19: =Annexe!S24 -> 0.235413064 | R19: =Annexe!T24 -> < 12%
N20: =Annexe!P25 -> dont Lau/Myr/Pal | O20: =Annexe!Q25 -> 5.5176 | P20: =Annexe!R25 -> 0 | Q20: =Annexe!S25 -> 0.1455481239 | R20: =Annexe!T25 -> < 8% | T20: =IF(T18<T17,10,IF(T18>2*T17,0,5)) -> 5 | U20: =IF(U18<U17,10,IF(U18>(2*U17),0,5)) -> 5 | W20: =IF(W18>W17,10,IF(W18>(W17/2),5,0)) -> 0 | X20: =IF(X18>X17,10,IF(X18>(X17/2),5,0)) -> 0 | Y20: =IF(Y18>Y17,10,IF(Y18>(Y17/2),5,0)) -> 0 | Z20: =IF(Z18>Z17,10,IF(Z18>(Z17/2),5,0)) -> 5 | AA20: =IF(AA18<AA17,(AA18-(AA17-AA18))/AA18,AA17/AA18)*20 -> 17.2284345 | AB20: =IF(AB18<AB17,(AB17-(AB17-AB18))/AB18,AB17/AB18)*10 -> 10
N21: =Annexe!P26 -> 0 | O21: =Annexe!Q26 -> 0 | P21: =Annexe!R26 -> 0 | Q21: =Annexe!S26 -> 0 | R21: =Annexe!T26 -> 0 | T21: =AVERAGE(T20:AB20) -> 5.278554313
N22: =Annexe!P27 -> AGM | O22: =Annexe!Q27 -> 3.4153 | P22: =Annexe!R27 -> 0.2577759999 | Q22: =Annexe!S27 -> 0 | R22: =Annexe!T27 -> 0
N23: =Annexe!P28 -> dont AG Oléique | O23: =Annexe!Q28 -> 2.8903 | P23: =Annexe!R28 -> 0 | Q23: =Annexe!S28 -> 0 | R23: =Annexe!T28 -> > 15%
N24: =Annexe!P29 -> 0 | O24: =Annexe!Q29 -> 0 | P24: =Annexe!R29 -> 0 | Q24: =Annexe!S29 -> 0 | R24: =Annexe!T29 -> 0
N25: =Annexe!P30 -> AGP | O25: =Annexe!Q30 -> 0.9095 | P25: =Annexe!R30 -> 0.06864617219 | Q25: =Annexe!S30 -> 0 | R25: =Annexe!T30 -> 0
N26: =Annexe!P31 -> dont Omega 3 | O26: =Annexe!Q31 -> 0.10785 | P26: =Annexe!R31 -> 0 | Q26: =Annexe!S31 -> 0 | R26: =Annexe!T31 -> > 1 à 2 g
N27: =Annexe!P32 -> EPA + DHA | O27: =Annexe!Q32 -> 0.00465 | P27: =Annexe!R32 -> 0 | Q27: =Annexe!S32 -> 0 | R27: =Annexe!T32 -> > 0,5 g
N28: =Annexe!P33 -> ALA | O28: =Annexe!Q33 -> 0.1032 | P28: =Annexe!R33 -> 0 | Q28: =Annexe!S33 -> 0.002722300708 | R28: =Annexe!T33 -> > 0,5 à 1%
N29: =Annexe!P34 -> 0 | O29: =Annexe!Q34 -> 0 | P29: =Annexe!R34 -> 0 | Q29: =Annexe!S34 -> 0 | R29: =Annexe!T34 -> 0
N30: =Annexe!P35 -> dont Omega 6 | O30: =Annexe!Q35 -> 0.626 | P30: =Annexe!R35 -> 0 | Q30: =Annexe!S35 -> 0.01651318065 | R30: =Annexe!T35 -> < 4%
N31: =Annexe!P36 -> Rapport Ω6/Ω3 | O31: =Annexe!Q36 -> 5.804357904 | P31: =Annexe!R36 -> 0 | Q31: =Annexe!S36 -> 0 | R31: =Annexe!T36 -> < 5
N32: =Annexe!P37 -> 0 | O32: =Annexe!Q37 -> 0 | P32: =Annexe!R37 -> 0 | Q32: =Annexe!S37 -> 0 | R32: =Annexe!T37 -> 0
N33: =Annexe!P38 -> Cholestérol (mg) | O33: =Annexe!Q38 -> 34.06 | P33: =Annexe!R38 -> 0 | Q33: =Annexe!S38 -> 0 | R33: =Annexe!T38 -> 300 mg

Sheet Compositions (hidden)
A1: Dénomination | B1: Famille | C1: Code | D1: Energie (kcal) | E1: Protéines | F1: Lipides | G1: Glucides | H1: Sucres | I1: Amidon | J1: Fibres | K1: AGS | L1: AG 4:0, butyrique | M1: AG 6:0, caproïque | N1: AG 8:0, caprylique | O1: AG 10:0, caprique | P1: AG 12:0, laurique | Q1: AG 14:0, myristique | R1: AG 16:0, palmitique | S1: AG 18:0, stéarique | T1: AGM | U1: AG 18:1 9c (n-9), oléique (g/100g) | V1: AGP | W1: AG 18:3 c9,c12,c15 (n-3), alpha-linolénique | X1: AG 20:5 5c,8c,11c,14c,17c (n-3) EPA | Y1: AG 22:6 4c,7c,10c,13c,16c,19c (n-3) DHA | Z1: AG 20:4 5c,8c,11c,14c (n-6), arachidonique | AA1: AG 18:2 9c,12c (n-6), linoléique | AB1: Cholestérol (mg/100g) | AC1: Sodium | AD1: Calcium | AE1: Potassium | AF1: Magnésium | AG1: Phosphore | AH1: Fer | AI1: Iode | AJ1: Cuivre | AK1: Zinc | AL1: Sélénium | AM1: Vitamine A (µg/100 ER) | AN1: Vitamine D (µg/100g) | AO1: Vitamine E (mg/100g) | AP1: Vitamine K1 (µg/100g) | AQ1: Vitamine K2 (µg/100g) | AR1: Vitamine C (mg/100g) | AS1: Vitamine B1 (mg/100g) | AT1: Vitamine B2 (mg/100g) | AU1: Vitamine B3 (mg/100g) | AV1: Vitamine B5 (mg/100g) | AW1: Vitamine B6 (mg/100g) | AX1: Vitamine B12 (µg/100g) | AY1: Vitamine B9 (µg/100g) | AZ1: Alcool (g/100g) | BA1: Eau
A2: 1 | B2: 2 | C2: 3 | D2: 4 | E2: 5 | F2: 6 | G2: 7 | H2: 8 | I2: 9 | J2: 10 | K2: 11 | L2: 12 | M2: 13 | N2: 14 | O2: 15 | P2: 16 | Q2: 17 | R2: 18 | S2: 19 | T2: 20 | U2: 21 | V2: 22 | W2: 23 | X2: 24 | Y2: 25 | Z2: 26 | AA2: 27 | AB2: 28 | AC2: 29 | AD2: 30 | AE2: 31 | AF2: 32 | AG2: 33 | AH2: 34 | AI2: 35 | AJ2: 36 | AK2: 37 | AL2: 38 | AM2: 39 | AN2: 40 | AO2: 41 | AP2: 42 | AQ2: 43 | AR2: 44 | AS2: 45 | AT2: 46 | AU2: 47 | AV2: 48 | AW2: 49 | AX2: 50 | AY2: 51 | AZ2: 52 | BA2: 53
A3: ABALONE,MIXED SPECIES,RAW | C3: 15155 | D3: 105 | E3: 17.1 | F3: 0.76 | G3: 6.01 | H3: 0 | J3: 0 | K3: 0.149 | T3: 0.107 | V3: 0.104 | AB3: 85 | AC3: 301 | AD3: 31 | AE3: 250 | AF3: 48 | AG3: 190 | AH3: 3.19 | AJ3: 0.196 | AK3: 0.82 | AL3: 44.8 | AM3: 2 | AN3: 0 | AO3: 4 | AP3: 23 | AR3: 2 | AS3: 0.19 | AT3: 0.1 | AU3: 1.5 | AV3: 3 | AW3: 0.15 | AX3: 0.73 | AY3: 5 | BA3: 74.56
A4: ABALONE,MXD SP,CKD,FRIED | C4: 15156 | D4: 189 | E4: 19.63 | F4: 6.78 | G4: 11.05 | J4: 0 | K4: 1.646 | T4: 2.741 | V4: 1.676 | AB4: 94 | AC4: 591 | AD4: 37 | AE4: 284 | AF4: 56 | AG4: 217 | AH4: 3.8 | AJ4: 0.228 | AK4: 0.95 | AL4: 51.8 | AM4: 2 | AR4: 1.8 | AS4: 0.22 | AT4: 0.13 | AU4: 1.9 | AV4: 2.87 | AW4: 0.15 | AX4: 0.69 | AY4: 14 | BA4: 60.1
A5: ABIYUCH,RAW | C5: 9427 | D5: 69 | E5: 1.5 | F5: 0.1 | G5: 17.6 | H5: 8.55 | J5: 5.3 | K5: 0.014 | AC5: 20 | AD5: 8 | AE5: 304 | AF5: 24 | AG5: 47 | AH5: 1.61 | AJ5: 0.057 | AK5: 0.31 | AM5: 5 | AR5: 54.1 | BA5: 79.9
A6: Abondance | B6: Fromages affinés à pâte dure | C6: 12112 | D6: 397 | E6: 25.5 | F6: 33.1 | G6: 0 | H6: 0 | I6: 0 | J6: 0 | K6: 20.6 | L6: 1.2 | M6: 0 | N6: 0 | O6: 0 | P6: 0 | Q6: 0 | R6: 0 | S6: 2.4 | T6: 7.4 | U6: 5.1 | V6: 1.3 | W6: 0.24 | X6: 0 | Y6: 0 | Z6: 0 | AA6: 0.49 | AB6: 0 | AC6: 600 | AD6: 790 | AE6: 100 | AF6: 32.2 | AG6: 550 | AH6: 0 | AI6: 0 | AJ6: 0 | AK6: 4.6 | AL6: 0 | AM6: 186.6666667 | AN6: 0 | AO6: 0.17 | AP6: 0 | AQ6: 0 | AR6: 0 | AS6: 0 | AT6: 0 | AU6: 0 | AV6: 0 | AW6: 0 | AX6: 0 | AY6: 17.6 | AZ6: 0 | BA6: 36.2
A7: Abricot au sirop léger, appertisé | B7: Fruits au sirop/au jus, compotes | C7: 13096 | D7: 67.7 | E7: 0.5 | F7: 0.1 | G7: 15.4 | H7: 15.4 | I7: 0 | J7: 0.8 | K7: 0.003 | L7: 0 | M7: 0 | N7: 0 | O7: 0 | P7: 0 | Q7: 0 | R7: 0.003 | S7: 0 | T7: 0.022 | U7: 0.022 | V7: 0.01 | W7: 0 | X7: 0 | Y7: 0 | Z7: 0 | AA7: 0.01 | AB7: 0 | AC7: 5.7 | AD7: 13.7 | AE7: 153 | AF7: 5.8 | AG7: 10.5 | AH7: 0.295 | AI7: 0.4 | AJ7: 0.079 | AK7: 0.1 | AL7: 0.2 | AM7: 0 | AN7: 0 | AO7: 0.89 | AP7: 0 | AQ7: 0 | AR7: 2.81 | AS7: 0.013 | AT7: 0.015 | AU7: 0.302 | AV7: 0.076 | AW7: 0.057 | AX7: 0 | AY7: 2 | AZ7: 0 | BA7: 82.3
A8: Abricot au sirop léger, appertisé, égoutté | B8: Fruits appertisés, au sirop ou au jus | C8: 13712 | D8: 0 | E8: 0.94 | F8: 0.5 | G8: 13.7 | H8: 13.3 | I8: 0 | J8: 1.4 | K8: 0 | L8: 0.006 | M8: 0 | N8: 0 | O8: 0 | P8: 0 | Q8: 0 | R8: 0 | S8: 0 | T8: 0 | U8: 0 | V8: 0 | W8: 0 | X8: 0 | Y8: 0 | Z8: 0 | AA8: 0 | AB8: 0 | AC8: 9.7 | AD8: 18 | AE8: 140 | AF8: 4.9 | AG8: 11 | AH8: 0.12 | AI8: 20 | AJ8: 0.04 | AK8: 0.06 | AL8: 20 | AM8: 154.1666667 | AN8: 0 | AO8: 0 | AP8: 0.8 | AQ8: 0 | AR8: 2.19 | AS8: 0.7 | AT8: 0.01 | AU8: 0.1 | AV8: 0.12 | AW8: 0.017 | AX8: 0 | AY8: 6.85 | AZ8: 0 | BA8: 83
A9: Abricot au sirop léger, appertisé, non égoutté | B9: Fruits appertisés, au sirop ou au jus | C9: 13713 | D9: 0 | E9: 0.49 | F9: 0.1 | G9: 14.9 | H9: 14.2 | I9: 0 | J9: 0.96 | K9: 0.003 | L9: 0.006 | M9: 0 | N9: 0 | O9: 0 | P9: 0 | Q9: 0 | R9: 0.003 | S9: 0 | T9: 0.021 | U9: 0 | V9: 0.01 | W9: 0 | X9: 0 | Y9: 0 | Z9: 0 | AA9: 0 | AB9: 0 | AC9: 9.86 | AD9: 14.3 | AE9: 136 | AF9: 4.74 | AG9: 9.25 | AH9: 0.1 | AI9: 20 | AJ9: 0.036 | AK9: 0.06 | AL9: 20 | AM9: 91.83333333 | AN9: 0 | AO9: 0.6 | AP9: 0.8 | AQ9: 0 | AR9: 2.28 | AS9: 0.68 | AT9: 0.01 | AU9: 0.1 | AV9: 0.11 | AW9: 0.017 | AX9: 0 | AY9: 6.98 | AZ9: 0 | BA9: 83.1
A10: Abricot au sirop, appertisé, égoutté | B10: Fruits appertisés, au sirop ou au jus | C10: 13714 | D10: 0 | E10: 0.5 | F10: 0.5 | G10: 16.2 | H10: 15.3 | I10: 0 | J10: 1.4 | K10: 0 | L10: 0.006 | M10: 0 | N10: 0 | O10: 0 | P10: 0 | Q10: 0 | R10: 0 | S10: 0 | T10: 0 | U10: 0 | V10: 0 | W10: 0 | X10: 0 | Y10: 0 | Z10: 0 | AA10: 0 | AB10: 0 | AC10: 12 | AD10: 16 | AE10: 130 | AF10: 5.3 | AG10: 10 | AH10: 0.13 | AI10: 20 | AJ10: 0.04 | AK10: 0.06 | AL10: 20 | AM10: 1.33 | AN10: 0 | AO10: 0 | AP10: 0.8 | AQ10: 0 | AR10: 0.5 | AS10: 0.7 | AT10: 0.01 | AU10: 0.11 | AV10: 0.071 | AW10: 0.02 | AX10: 0 | AY10: 9.3 | AZ10: 0 | BA10: 81
A11: Abricot au sirop, appertisé, non égoutté | B11: Fruits appertisés, au sirop ou au jus | C11: 13715 | D11: 0 | E11: 0.35 | F11: 0.11 | G11: 16.6 | H11: 15.1 | I11: 0 | J11: 0.91 | K11: 0 | L11: 0.006 | M11: 0 | N11: 0 | O11: 0 | P11: 0 | Q11: 0 | R11: 0 | S11: 0 | T11: 0 | U11: 0 | V11: 0 | W11: 0 | X11: 0 | Y11: 0 | Z11: 0 | AA11: 0 | AB11: 0 | AC11: 12 | AD11: 11.3 | AE11: 114 | AF11: 4.8 | AG11: 8.66 | AH11: 0.11 | AI11: 20 | AJ11: 0.036 | AK11: 0.035 | AL11: 20 | AM11: 19 | AN11: 0 | AO11: 0 | AP11: 0.8 | AQ11: 0 | AR11: 0.5 | AS11: 0 | AT11: 0.01 | AU11: 0.12 | AV11: 0.073 | AW11: 0.036 | AX11: 0 | AY11: 9.89 | AZ11: 0 | BA11: 81.1
A12: Abricot, dénoyauté, cru | B12: Fruits crus | C12: 13000 | D12: 48.5 | E12: 1.14 | F12: 0.35 | G12: 8.53 | H12: 7.84 | I12: 0 | J12: 1.8 | K12: 0.024 | L12: 0 | M12: 0 | N12: 0 | O12: 0 | P12: 0 | Q12: 0 | R12: 0.021 | S12: 0.0025 | T12: 0.15 | U12: 0.13 | V12: 0.068 | W12: 0 | X12: 0 | Y12: 0 | Z12: 0 | AA12: 0.059 | AB12: 0.033 | AC12: 1.11 | AD12: 16.1 | AE12: 229 | AF12: 9.94 | AG12: 22.5 | AH12: 0.19 | AI12: 0.35 | AJ12: 0.082 | AK12: 0.14 | AL12: 10 | AM12: 181.6666667 | AN12: 0 | AO12: 0.89 | AP12: 3.3 | AQ12: 0 | AR12: 10 | AS12: 0.03 | AT12: 0.04 | AU12: 0.6 | AV12: 0.24 | AW12: 0.054 | AX12: 0 | AY12: 9 | AZ12: 0 | BA12: 86.1
A13: Abricot, dénoyauté, sec | B13: Fruits séchés ou lyophilisés | C13: 13001 | D13: 0 | E13: 1.86 | F13: 0.51 | G13: 42.9 | H13: 39.4 | I13: 3.45 | J13: 5.7 | K13: 0.16 | L13: 0 | M13: 0 | N13: 0 | O13: 0 | P13: 0.0018 | Q13: 0.0018 | R13: 0.12 | S13: 0.019 | T13: 0.12 | U13: 0.011 | V13: 0.12 | W13: 0.053 | X13: 0 | Y13: 0 | Z13: 0 | AA13: 0.069 | AB13: 0.15 | AC13: 39 | AD13: 61.3 | AE13: 1090 | AF13: 36.5 | AG13: 68.4 | AH13: 4.33 | AI13: 3.2 | AJ13: 0.31 | AK13: 0.3 | AL13: 2.2 | AM13: 360 | AN13: 0 | AO13: 4.17 | AP13: 3.1 | AQ13: 0 | AR13: 1 | AS13: 0.015 | AT13: 0.067 | AU13: 2.69 | AV13: 0.61 | AW13: 0.16 | AX13: 0 | AY13: 12 | AZ13: 0 | BA13: 23.2
A14: Abricot, frais | B14: Fruits frais | C14: 13000 | D14: 49.1 | E14: 0.9 | F14: 0.207 | G14: 9.01 | H14: 8.02 | I14: 0 | J14: 1.7 | K14: 0.0193 | L14: 0 | M14: 0 | N14: 0 | O14: 0 | P14: 0 | Q14: 0 | R14: 0.0173 | S14: 0.00206 | T14: 0.113 | U14: 0.113 | V14: 0.052 | W14: 0 | X14: 0 | Y14: 0 | Z14: 0 | AA14: 0.052 | AB14: 0.1 | AC14: 2.2 | AD14: 15.6 | AE14: 237 | AF14: 8.67 | AG14: 16.6 | AH14: 0.32 | AI14: 0.29 | AJ14: 0.066 | AK14: 0.139 | AL14: 0.01 | AM14: 271.6666667 | AN14: 0 | AO14: 0.61 | AP14: 3.3 | AQ14: 0 | AR14: 5.45 | AS14: 0.0267 | AT14: 0.0367 | AU14: 0.5 | AV14: 0.24 | AW14: 0.0627 | AX14: 0 | AY14: 6.2 | AZ14: 0 | BA14: 86.1
A15: Abricot, nectar | B15: Jus et nectars | C15: 2043 | D15: 57.6 | E15: 0.41 | F15: 0.085 | G15: 12.9 | H15: 12.9 | I15: 0 | J15: 0.6 | K15: 0.004 | L15: 0 | M15: 0 | N15: 0 | O15: 0 | P15: 0 | Q15: 0 | R15: 0.00333 | S15: 0.000667 | T15: 0.038 | U15: 0 | V15: 0.026 | W15: 0 | X15: 0 | Y15: 0 | Z15: 0 | AA15: 0 | AB15: 0 | AC15: 4.77 | AD15: 13.8 | AE15: 262 | AF15: 7.18 | AG15: 9 | AH15: 0.38 | AI15: 0.2 | AJ15: 0.0388 | AK15: 0.0504 | AL15: 2.2 | AM15: 131 | AN15: 0 | AO15: 0 | AP15: 1.2 | AQ15: 0 | AR15: 44.7 | AS15: 0.0145 | AT15: 0.017 | AU15: 0.26 | AV15: 0.096 | AW15: 0.026 | AX15: 0 | AY15: 1 | AZ15: 0 | BA15: 84.9
A16: Abricot, séché, dénoyauté | B16: Fruits séchés ou lyophilisés | C16: 13001 | D16: 271 | E16: 3.14 | F16: 0.8 | G16: 53 | H16: 40.5 | I16: 2.66 | J16: 5.7 | K16: 0.0785 | L16: 0 | M16: 0 | N16: 0 | O16: 0 | P16: 0 | Q16: 0 | R16: 0.0785 | S16: 0 | T16: 0.342 | U16: 0.342 | V16: 0.342 | W16: 0 | X16: 0 | Y16: 0 | Z16: 0 | AA16: 0.342 | AB16: 0.195 | AC16: 39 | AD16: 61.2 | AE16: 1090 | AF16: 36.5 | AG16: 68.3 | AH16: 4.33 | AI16: 3.2 | AJ16: 0.306 | AK16: 0.295 | AL16: 2.2 | AM16: 360 | AN16: 0 | AO16: 4 | AP16: 3.1 | AQ16: 0 | AR16: 1 | AS16: 0.0075 | AT16: 0.067 | AU16: 2.69 | AV16: 0.608 | AW16: 0.157 | AX16: 0 | AY16: 22 | AZ16: 0 | BA16: 29.4
A17: Accra de morue | B17: Plats à base de poisson ou produits aquatiques | C17: 25433 | D17: 259 | E17: 10 | F17: 16.1 | G17: 17.7 | H17: 1.57 | I17: 16.1 | J17: 1.5 | K17: 1.28 | L17: 0.0001 | M17: 0.0001 | N17: 0.0001 | O17: 0.0001 | P17: 0.0001 | Q17: 0.0115 | R17: 0.677 | S17: 0.515 | T17: 4.46 | U17: 4.4 | V17: 3.58 | W17: 0.0229 | X17: 0.0229 | Y17: 0.0459 | Z17: 0.037 | AA17: 2.35 | AB17: 93.9 | AC17: 826 | AD17: 52 | AE17: 199 | AF17: 17.8 | AG17: 110 | AH17: 1.1 | AI17: 72.1 | AJ17: 0.1 | AK17: 0.8 | AL17: 18 | AM17: 7.5 | AN17: 0.27 | AO17: 4.84 | AP17: 0 | AQ17: 0 | AR17: 4.75 | AS17: 0.064 | AT17: 0.1 | AU17: 2.08 | AV17: 0.35 | AW17: 0.233 | AX17: 65.2 | AY17: 28.3 | AZ17: 0 | BA17: 52.4
A18: Accra de poisson | B18: Poissons et crustacés panés ou en beignets | C18: 25433 | D18: 275 | E18: 12.4 | F18: 17.6 | G18: 15.1 | H18: 2.55 | I18: 12.6 | J18: 3 | K18: 2.3 | L18: 0.011 | M18: 0.011 | N18: 0.011 | O18: 0.011 | P18: 0.011 | Q18: 0.092 | R18: 1.17 | S18: 0.51 | T18: 9.46 | U18: 9.34 | V18: 4.75 | W18: 0.069 | X18: 0.016 | Y18: 0.033 | Z18: 0.014 | AA18: 4.43 | AB18: 68.8 | AC18: 583 | AD18: 55.3 | AE18: 216 | AF18: 18 | AG18: 110 | AH18: 1.1 | AI18: 20 | AJ18: 0.1 | AK18: 0.8 | AL18: 18 | AM18: 7.5 | AN18: 0.5 | AO18: 4.84 | AP18: 0 | AQ18: 0 | AR18: 0.5 | AS18: 0.064 | AT18: 0.1 | AU18: 1.1 | AV18: 0.35 | AW18: 0.19 | AX18: 0.43 | AY18: 33 | AZ18: 0 | BA18: 49.5
A19: ACEROLA JUICE,RAW | C19: 9002 | D19: 23 | E19: 0.4 | F19: 0.3 | G19: 4.8 | H19: 4.5 | J19: 0.3 | K19: 0.068 | T19: 0.082 | V19: 0.09 | AB19: 0 | AC19: 3 | AD19: 10 | AE19: 97 | AF19: 12 | AG19: 9 | AH19: 0.5 | AJ19: 0.086 | AK19: 0.1 | AL19: 0.1 | AM19: 25 | AO19: 0.18 | AP19: 1.4 | AR19: 1600 | AS19: 0.02 | AT19: 0.06 | AU19: 0.4 | AV19: 0.205 | AW19: 0.004 | AX19: 0 | AY19: 14 | BA19: 94.3
A20: ACEROLA,(WEST INDIAN CHERRY),RAW | C20: 9001 | D20: 32 | E20: 0.4 | F20: 0.3 | G20: 7.69 | J20: 1.1 | K20: 0.068 | T20: 0.082 | V20: 0.09 | AB20: 0 | AC20: 7 | AD20: 12 | AE20: 146 | AF20: 18 | AG20: 11 | AH20: 0.2 | AJ20: 0.086 | AK20: 0.1 | AL20: 0.6 | AM20: 38 | AR20: 1677.6 | AS20: 0.02 | AT20: 0.06 | AU20: 0.4 | AV20: 0.309 | AW20: 0.009 | AX20: 0 | AY20: 14 | BA20: 91.41
A21: ACORN FLOUR,FULL FAT | C21: 12060 | D21: 501 | E21: 7.49 | F21: 30.17 | G21: 54.65 | K21: 3.923 | T21: 19.11 | V21: 5.813 | AB21: 0 | AC21: 0 | AD21: 43 | AE21: 712 | AF21: 110 | AG21: 103 | AH21: 1.21 | AJ21: 0.611 | AK21: 0.64 | AM21: 3 | AR21: 0 | AS21: 0.146 | AT21: 0.154 | AU21: 2.382 | AV21: 0.931 | AW21: 0.688 | AX21: 0 | AY21: 114 | BA21: 6
A22: ACORN STEW (APACHE) | C22: 35182 | D22: 95 | E22: 6.81 | F22: 3.47 | G22: 9.22 | H22: 0.34 | J22: 0.7 | K22: 1.28 | T22: 1.68 | V22: 0.297 | AB22: 20 | AC22: 130 | AD22: 14 | AE22: 110 | AF22: 12 | AG22: 62 | AH22: 1 | AJ22: 0.03 | AK22: 1.6 | AL22: 8.3 | AM22: 0 | AO22: 0.3 | AP22: 0 | AR22: 0 | AS22: 0.175 | AT22: 0.125 | AU22: 2.14 | AV22: 0.212 | AW22: 0.055 | AX22: 0.68 | AY22: 33 | BA22: 79.78
A23: ACORNS,DRIED | C23: 12059 | D23: 509 | E23: 8.1 | F23: 31.41 | G23: 53.66 | K23: 4.084 | T23: 19.896 | V23: 6.052 | AB23: 0 | AC23: 0 | AD23: 54 | AE23: 709 | AF23: 82 | AG23: 103 | AH23: 1.04 | AJ23: 0.818 | AK23: 0.67 | AM23: 0 | AR23: 0 | AS23: 0.149 | AT23: 0.154 | AU23: 2.406 | AV23: 0.94 | AW23: 0.695 | AX23: 0 | AY23: 115 | BA23: 5.06
A24: ACORNS,RAW | C24: 12058 | D24: 387 | E24: 6.15 | F24: 23.86 | G24: 40.75 | K24: 3.102 | T24: 15.109 | V24: 4.596 | AB24: 0 | AC24: 0 | AD24: 41 | AE24: 539 | AF24: 62 | AG24: 79 | AH24: 0.79 | AJ24: 0.621 | AK24: 0.51 | AM24: 2 | AR24: 0 | AS24: 0.112 | AT24: 0.118 | AU24: 1.827 | AV24: 0.715 | AW24: 0.528 | AX24: 0 | AY24: 87 | BA24: 27.9
A25: Agar (algue), cru | B25: Algues, crues | C25: 11084 | D25: 28.4 | E25: 0.54 | F25: 0.03 | G25: 6.25 | H25: 0.28 | I25: 0 | J25: 0.5 | K25: 0.006 | L25: 0 | M25: 0 | N25: 0 | O25: 0 | P25: 0 | Q25: 0 | R25: 0.005 | S25: 0 | T25: 0.003 | U25: 0 | V25: 0.01 | W25: 0 | X25: 0.008 | Y25: 0 | Z25: 0 | AA25: 0 | AB25: 0 | AC25: 9 | AD25: 54 | AE25: 226 | AF25: 67 | AG25: 5 | AH25: 1.86 | AI25: 0 | AJ25: 0.061 | AK25: 0.58 | AL25: 0 | AM25: 0 | AN25: 0 | AO25: 0.87 | AP25: 2.3 | AQ25: 0 | AR25: 0 | AS25: 0.005 | AT25: 0.022 | AU25: 0.055 | AV25: 0.3 | AW25: 0.032 | AX25: 0 | AY25: 85 | AZ25: 0 | BA25: 91.3
A26: AGAVE,CKD (SOUTHWEST) | C26: 35193 | D26: 135 | E26: 0.99 | F26: 0.29 | G26: 32 | H26: 20.87 | J26: 10.6 | AB26: 0 | AC26: 13 | AD26: 460 | AE26: 59 | AF26: 39 | AG26: 9 | AH26: 3.55 | AJ26: 0.112 | AK26: 0.25 | AL26: 0.2 | AM26: 6 | AN26: 0 | AO26: 0.36 | AP26: 4.9 | AR26: 0.3 | AS26: 0.012 | AT26: 0.099 | AU26: 0.162 | AV26: 0.041 | AW26: 0.087 | AX26: 0 | AY26: 3 | BA26: 65.4
A27: AGAVE,DRIED (SOUTHWEST) | C27: 35194 | D27: 341 | E27: 1.71 | F27: 0.69 | G27: 81.98 | H27: 50.7 | J27: 15.6 | AB27: 0 | AC27: 14 | AD27: 770 | AE27: 767 | AF27: 207 | AG27: 37 | AH27: 3.64 | AJ27: 0.189 | AK27: 12.1 | AL27: 0.6 | AM27: 1 | AN27: 0 | AO27: 0.76 | AP27: 0.5 | AR27: 0.3 | AS27: 0.021 | AT27: 0.644 | AU27: 0.87 | AV27: 0.15 | AW27: 0.216 | AX27: 0 | AY27: 7 | BA27: 11.64
A28: AGAVE,RAW (SOUTHWEST) | C28: 35192 | D28: 68 | E28: 0.52 | F28: 0.15 | G28: 16.23 | H28: 2.58 | J28: 6.6 | AB28: 0 | AC28: 14 | AD28: 417 | AE28: 127 | AF28: 55 | AG28: 7 | AH28: 1.8 | AJ28: 0.138 | AK28: 0.15 | AL28: 0.4 | AM28: 2 | AN28: 0 | AO28: 0.23 | AP28: 5.3 | AR28: 4 | AS28: 0.029 | AT28: 0.039 | AU28: 0.162 | AV28: 0.041 | AW28: 0.055 | AX28: 0 | AY28: 7 | BA28: 81.83
A29: Agneau, collier, braisé ou bouilli | B29: Viandes | C29: 21508 | D29: 365 | E29: 33.6 | F29: 25.6 | G29: 0 | H29: 0 | I29: 0 | J29: 0 | K29: 0 | L29: 0 | M29: 0 | N29: 0 | O29: 0 | P29: 0 | Q29: 0 | R29: 0 | S29: 0 | T29: 0 | U29: 0 | V29: 0 | W29: 0 | X29: 0 | Y29: 0 | Z29: 0 | AA29: 0 | AB29: 93 | AC29: 0 | AD29: 0 | AE29: 0 | AF29: 0 | AG29: 0 | AH29: 0.66 | AI29: 0 | AJ29: 0 | AK29: 7.14 | AL29: 13.9 | AM29: 0 | AN29: 0 | AO29: 0.36 | AP29: 0 | AQ29: 0 | AR29: 0 | AS29: 0.1 | AT29: 0 | AU29: 4.26 | AV29: 0.69 | AW29: 0.095 | AX29: 2.06 | AY29: 0 | AZ29: 0 | BA29: 40.6
A30: Agneau, collier, cru | B30: Viandes | C30: 21514 | D30: 184 | E30: 16.4 | F30: 13.2 | G30: 0 | H30: 0 | I30: 0 | J30: 0 | K30: 5.8 | L30: 0 | M30: 0 | N30: 0 | O30: 0 | P30: 0.0891 | Q30: 0.761 | R30: 2.77 | S30: 1.61 | T30: 4.93 | U30: 4.69 | V30: 0.763 | W30: 0.129 | X30: 0 | Y30: 0 | Z30: 0 | AA30: 0.38 | AB30: 0 | AC30: 0 | AD30: 0 | AE30: 0 | AF30: 0 | AG30: 0 | AH30: 1.27 | AI30: 0 | AJ30: 0 | AK30: 3.83 | AL30: 4.61 | AM30: 0 | AN30: 0 | AO30: 0 | AP30: 0 | AQ30: 0 | AR30: 0 | AS30: 0 | AT30: 0 | AU30: 4.28 | AV30: 0 | AW30: 0.153 | AX30: 2.06 | AY30: 0 | AZ30: 0 | BA30: 68
A31: Agneau, collier, cru | B31: Viandes | C31: 21514 | D31: 195 | E31: 18 | F31: 13.7 | G31: 0 | H31: 0 | I31: 0 | J31: 0 | K31: 5.79 | L31: 0 | M31: 0 | N31: 0 | O31: 0 | P31: 0.064 | Q31: 0.59 | R31: 2.8 | S31: 1.67 | T31: 5.21 | U31: 3.98 | V31: 0.92 | W31: 0.091 | X31: 0 | Y31: 0 | Z31: 0.044 | AA31: 0.5 | AB31: 0 | AC31: 80.1 | AD31: 0 | AE31: 0 | AF31: 0 | AG31: 0 | AH31: 1.14 | AI31: 0 | AJ31: 0 | AK31: 3.82 | AL31: 7.41 | AM31: 0 | AN31: 0 | AO31: 0 | AP31: 0 | AQ31: 0 | AR31: 0 | AS31: 0 | AT31: 0 | AU31: 4.27 | AV31: 0 | AW31: 0.16 | AX31: 2.18 | AY31: 0 | AZ31: 0 | BA31: 68.2
A32: Agneau, côte filet, crue | B32: Viandes | C32: 21516 | D32: 232 | E32: 16.3 | F32: 18.5 | G32: 0 | H32: 0 | I32: 0 | J32: 0 | K32: 8.33 | L32: 0 | M32: 0 | N32: 0 | O32: 0 | P32: 0.14 | Q32: 1.15 | R32: 3.96 | S32: 2.23 | T32: 6.96 | U32: 6.59 | V32: 1.04 | W32: 0.187 | X32: 0 | Y32: 0 | Z32: 0 | AA32: 0.521 | AB32: 0 | AC32: 0 | AD32: 0 | AE32: 0 | AF32: 0 | AG32: 0 | AH32: 1.26 | AI32: 0 | AJ32: 0 | AK32: 2.08 | AL32: 3.51 | AM32: 0 | AN32: 0 | AO32: 0 | AP32: 0 | AQ32: 0 | AR32: 0 | AS32: 0 | AT32: 0 | AU32: 5.61 | AV32: 0 | AW32: 0.242 | AX32: 1.22 | AY32: 0 | AZ32: 0 | BA32: 62.5
A33: Agneau, côte filet, crue | B33: Viandes | C33: 21516 | D33: 242 | E33: 17.6 | F33: 18 | G33: 2.3 | H33: 0 | I33: 0 | J33: 0 | K33: 7.75 | L33: 0 | M33: 0 | N33: 0 | O33: 0 | P33: 0.085 | Q33: 0.8 | R33: 3.75 | S33: 2.16 | T33: 6.8 | U33: 5.04 | V33: 1.26 | W33: 0.12 | X33: 0 | Y33: 0 | Z33: 0.057 | AA33: 0.69 | AB33: 0 | AC33: 69.6 | AD33: 9 | AE33: 0 | AF33: 0 | AG33: 0 | AH33: 1.15 | AI33: 0 | AJ33: 0 | AK33: 2.08 | AL33: 5.7 | AM33: 0 | AN33: 0 | AO33: 0 | AP33: 0 | AQ33: 0 | AR33: 0 | AS33: 0 | AT33: 0 | AU33: 5.51 | AV33: 0 | AW33: 0.23 | AX33: 1.47 | AY33: 0 | AZ33: 0 | BA33: 64
A34: Agneau, côte filet, grillée/poêlée | B34: Viandes | C34: 21509 | D34: 157 | E34: 26.3 | F34: 5.78 | G34: 0 | H34: 0 | I34: 0 | J34: 0 | K34: 2.21 | L34: 0 | M34: 0 | N34: 0 | O34: 0 | P34: 0.022 | Q34: 0.2 | R34: 1.08 | S34: 0.67 | T34: 2.05 | U34: 1.58 | V34: 0.54 | W34: 0.038 | X34: 0 | Y34: 0.0057 | Z34: 0.066 | AA34: 0.28 | AB34: 86 | AC34: 0 | AD34: 0 | AE34: 0 | AF34: 0 | AG34: 0 | AH34: 1.27 | AI34: 0 | AJ34: 0 | AK34: 3.55 | AL34: 10.1 | AM34: 0 | AN34: 0 | AO34: 0.16 | AP34: 0 | AQ34: 0 | AR34: 0 | AS34: 0.1 | AT34: 0 | AU34: 6.72 | AV34: 0.62 | AW34: 0.3 | AX34: 1.22 | AY34: 0 | AZ34: 0 | BA34: 67.7
A35: Agneau, côte première, crue | B35: Viandes | C35: 21517 | D35: 271 | E35: 15.5 | F35: 23.2 | G35: 0 | H35: 0 | I35: 0 | J35: 0 | K35: 10.5 | L35: 0 | M35: 0 | N35: 0 | O35: 0 | P35: 0.176 | Q35: 1.45 | R35: 5 | S35: 2.79 | T35: 8.77 | U35: 8.27 | V35: 1.27 | W35: 0.234 | X35: 0 | Y35: 0 | Z35: 0 | AA35: 0.641 | AB35: 0 | AC35: 0 | AD35: 0 | AE35: 0 | AF35: 0 | AG35: 0 | AH35: 1.21 | AI35: 0 | AJ35: 0 | AK35: 1.86 | AL35: 3.1 | AM35: 0 | AN35: 0 | AO35: 0 | AP35: 0 | AQ35: 0 | AR35: 0 | AS35: 0 | AT35: 0 | AU35: 5.23 | AV35: 0 | AW35: 0.212 | AX35: 1.39 | AY35: 0 | AZ35: 0 | BA35: 58.9
A36: Agneau, côte première, crue | B36: Viandes | C36: 21517 | D36: 276 | E36: 16.9 | F36: 23.1 | G36: 0 | H36: 0 | I36: 0 | J36: 0 | K36: 10 | L36: 0 | M36: 0 | N36: 0 | O36: 0 | P36: 0.11 | Q36: 1.04 | R36: 4.85 | S36: 2.77 | T36: 8.82 | U36: 6.53 | V36: 1.57 | W36: 0.15 | X36: 0 | Y36: 0 | Z36: 0.052 | AA36: 0.87 | AB36: 0 | AC36: 81.2 | AD36: 8 | AE36: 0 | AF36: 0 | AG36: 0 | AH36: 1.12 | AI36: 0 | AJ36: 0 | AK36: 1.84 | AL36: 4.81 | AM36: 0 | AN36: 0 | AO36: 0 | AP36: 0 | AQ36: 0 | AR36: 0 | AS36: 0 | AT36: 0 | AU36: 5.14 | AV36: 0 | AW36: 0.21 | AX36: 1.64 | AY36: 0 | AZ36: 0 | BA36: 59.3
A37: Agneau, côte première, grillée/poêlée | B37: Viandes | C37: 21512 | D37: 185 | E37: 26.1 | F37: 9.01 | G37: 0 | H37: 0 | I37: 0 | J37: 0 | K37: 3.67 | L37: 0 | M37: 0 | N37: 0 | O37: 0.08 | P37: 0.039 | Q37: 0.36 | R37: 1.8 | S37: 1.06 | T37: 3.37 | U37: 2.58 | V37: 0.7 | W37: 0.06 | X37: 0 | Y37: 0.004 | Z37: 0.053 | AA37: 0.39 | AB37: 90 | AC37: 73 | AD37: 22 | AE37: 271 | AF37: 20 | AG37: 166 | AH37: 1.27 | AI37: 0 | AJ37: 0.12 | AK37: 3.43 | AL37: 9.36 | AM37: 0 | AN37: 0 | AO37: 0.1 | AP37: 0 | AQ37: 0 | AR37: 0 | AS37: 0.1 | AT37: 0.21 | AU37: 6.64 | AV37: 0.7 | AW37: 0.28 | AX37: 1.38 | AY37: 15 | AZ37: 0 | BA37: 64.1
A38: Agneau, côtelette, crue | B38: Viandes | C38: 21500 | D38: 368 | E38: 14.4 | F38: 34.5 | G38: 0 | H38: 0 | I38: 0 | J38: 0 | K38: 16.8 | L38: 0 | M38: 0 | N38: 0 | O38: 0.05 | P38: 0.14 | Q38: 1.45 | R38: 5.76 | S38: 4.52 | T38: 13 | U38: 8.95 | V38: 1.6 | W38: 0.45 | X38: 0.009 | Y38: 0.0072 | Z38: 0.05 | AA38: 0.62 | AB38: 82 | AC38: 66 | AD38: 12.9 | AE38: 218 | AF38: 17 | AG38: 136 | AH38: 1.5 | AI38: 1.95 | AJ38: 0.12 | AK38: 3.42 | AL38: 1.4 | AM38: 45 | AN38: 0.4 | AO38: 0.7 | AP38: 0 | AQ38: 0 | AR38: 1 | AS38: 0.18 | AT38: 0.3 | AU38: 4.3 | AV38: 0.55 | AW38: 0.2 | AX38: 1.2 | AY38: 2.6 | AZ38: 0 | BA38: 50.2
A39: Agneau, côtelette, grillée | B39: Viandes | C39: 21501 | D39: 234 | E39: 25.7 | F39: 14.6 | G39: 0 | H39: 0 | I39: 0 | J39: 0 | K39: 6.6 | L39: 0 | M39: 0 | N39: 0.08 | O39: 0.0636 | P39: 0.0936 | Q39: 0.832 | R39: 3.07 | S39: 2.3 | T39: 3.95 | U39: 3.95 | V39: 0.817 | W39: 0.114 | X39: 0.013 | Y39: 0.00736 | Z39: 0.0594 | AA39: 0.368 | AB39: 48.9 | AC39: 120 | AD39: 19.7 | AE39: 0 | AF39: 20.1 | AG39: 184 | AH39: 0 | AI39: 5 | AJ39: 0.0767 | AK39: 3.09 | AL39: 16 | AM39: 5.5 | AN39: 0 | AO39: 0 | AP39: 0 | AQ39: 0 | AR39: 0 | AS39: 0 | AT39: 0 | AU39: 7.45 | AV39: 0 | AW39: 0 | AX39: 2.8 | AY39: 0 | AZ39: 0 | BA39: 60.6
A40: Agneau, côtelette, grillée | B40: Viandes | C40: 21501 | D40: 240 | E40: 25.7 | F40: 15.2 | G40: 0 | H40: 0 | I40: 0 | J40: 0 | K40: 6.52 | L40: 0 | M40: 0 | N40: 0.079 | O40: 0.029 | P40: 0.088 | Q40: 0.82 | R40: 3.15 | S40: 2.36 | T40: 4.77 | U40: 4.77 | V40: 0.71 | W40: 0.1 | X40: 0.013 | Y40: 0.0074 | Z40: 0.043 | AA40: 0.54 | AB40: 48.9 | AC40: 0 | AD40: 19.7 | AE40: 0 | AF40: 20.1 | AG40: 184 | AH40: 0 | AI40: 5 | AJ40: 0.077 | AK40: 3.5 | AL40: 9.97 | AM40: 5.5 | AN40: 0 | AO40: 0 | AP40: 0 | AQ40: 0 | AR40: 0 | AS40: 0 | AT40: 0 | AU40: 7.45 | AV40: 0 | AW40: 0 | AX40: 2.8 | AY40: 0 | AZ40: 0 | BA40: 58
A41: Agneau, épaule, crue | B41: Viandes | C41: 21504 | D41: 204 | E41: 19 | F41: 14.1 | G41: 0.2 | H41: 0 | I41: 0 | J41: 0 | K41: 6.23 | L41: 0 | M41: 0 | N41: 0 | O41: 0.042 | P41: 0.075 | Q41: 0.63 | R41: 3.19 | S41: 2.29 | T41: 6.19 | U41: 4.73 | V41: 1.04 | W41: 0.31 | X41: 0 | Y41: 0 | Z41: 0 | AA41: 0.31 | AB41: 72.5 | AC41: 68.7 | AD41: 12.7 | AE41: 224 | AF41: 19 | AG41: 170 | AH41: 1.5 | AI41: 1.85 | AJ41: 0.11 | AK41: 3.68 | AL41: 6.05 | AM41: 45 | AN41: 0.4 | AO41: 0.46 | AP41: 3.4 | AQ41: 0 | AR41: 1 | AS41: 0.15 | AT41: 0.26 | AU41: 4.98 | AV41: 0.62 | AW41: 0.17 | AX41: 1.87 | AY41: 10.8 | AZ41: 0 | BA41: 64.4
A42: Agneau, épaule, maigre, crue | B42: Viandes | C42: 21505 | D42: 139 | E42: 19.6 | F42: 6.76 | G42: 0 | H42: 0 | I42: 0 | J42: 0 | K42: 2.42 | L42: 0 | M42: 0 | N42: 0 | O42: 0.01 | P42: 0.02 | Q42: 0.18 | R42: 1.31 | S42: 0.8 | T42: 2.72 | U42: 0 | V42: 0.62 | W42: 0 | X42: 0 | Y42: 0 | Z42: 0 | AA42: 0 | AB42: 66 | AC42: 70 | AD42: 15 | AE42: 274 | AF42: 24 | AG42: 184 | AH42: 1.66 | AI42: 0 | AJ42: 0.11 | AK42: 4.77 | AL42: 0 | AM42: 0 | AN42: 0.1 | AO42: 0.22 | AP42: 3.4 | AQ42: 0 | AR42: 0 | AS42: 0.12 | AT42: 0.22 | AU42: 5.45 | AV42: 0.71 | AW42: 0.16 | AX42: 2.78 | AY42: 23 | AZ42: 0 | BA42: 73
A43: Agneau, épaule, maigre, rôtie | B43: Viandes | C43: 21507 | D43: 187 | E43: 22.3 | F43: 10.9 | G43: 0 | H43: 0 | I43: 0 | J43: 0 | K43: 6.39 | L43: 0 | M43: 0 | N43: 0 | O43: 0 | P43: 0 | Q43: 0.55 | R43: 2.47 | S43: 2.13 | T43: 3.51 | U43: 3.51 | V43: 0.597 | W43: 0.254 | X43: 0 | Y43: 0 | Z43: 0 | AA43: 0.254 | AB43: 72 | AC43: 70 | AD43: 11 | AE43: 278 | AF43: 22 | AG43: 188 | AH43: 1.87 | AI43: 5 | AJ43: 0 | AK43: 0 | AL43: 6 | AM43: 0 | AN43: 0 | AO43: 0.1 | AP43: 0 | AQ43: 0 | AR43: 0 | AS43: 0.13 | AT43: 0.24 | AU43: 6 | AV43: 0.66 | AW43: 0.19 | AX43: 2.59 | AY43: 4 | AZ43: 0 | BA43: 65
A44: Agneau, épaule, maigre, rôtie/cuite au four | B44: Viandes | C44: 21507 | D44: 197 | E44: 24.9 | F44: 10.8 | G44: 0 | H44: 0 | I44: 0 | J44: 0 | K44: 4.08 | L44: 0 | M44: 0 | N44: 0 | O44: 0.02 | P44: 0.03 | Q44: 0.32 | R44: 2.17 | S44: 1.33 | T44: 4.36 | U44: 0 | V44: 0.95 | W44: 0 | X44: 0 | Y44: 0 | Z44: 0 | AA44: 0 | AB44: 87 | AC44: 68 | AD44: 19 | AE44: 265 | AF44: 25 | AG44: 200 | AH44: 2.13 | AI44: 5 | AJ44: 0.11 | AK44: 6.04 | AL44: 6 | AM44: 0 | AN44: 0.1 | AO44: 0.18 | AP44: 4.5 | AQ44: 0 | AR44: 0 | AS44: 0.09 | AT44: 0.26 | AU44: 5.76 | AV44: 0.73 | AW44: 0.15 | AX44: 2.7 | AY44: 25 | AZ44: 0 | BA44: 64.2
A45: Agneau, épaule, rôtie | B45: Viandes | C45: 21506 | D45: 287 | E45: 30.5 | F45: 18.3 | G45: 0 | H45: 0 | I45: 0 | J45: 0 | K45: 9.43 | L45: 0 | M45: 0 | N45: 0 | O45: 0 | P45: 0.0843 | Q45: 0.969 | R45: 4.41 | S45: 3.56 | T45: 6.53 | U45: 6.53 | V45: 1.59 | W45: 0.236 | X45: 0 | Y45: 0 | Z45: 0 | AA45: 0.464 | AB45: 99.8 | AC45: 95.5 | AD45: 8.8 | AE45: 376 | AF45: 25.4 | AG45: 231 | AH45: 2.2 | AI45: 8.6 | AJ45: 0.2 | AK45: 4.7 | AL45: 5 | AM45: 7.5 | AN45: 0.5 | AO45: 0.09 | AP45: 0 | AQ45: 0 | AR45: 6.9 | AS45: 0.064 | AT45: 0.301 | AU45: 7.2 | AV45: 0.295 | AW45: 0.214 | AX45: 2.72 | AY45: 24.2 | AZ45: 0 | BA45: 53.7
A46: Agneau, épaule, rôtie/cuite au four | B46: Viandes | C46: 21506 | D46: 252 | E46: 30.5 | F46: 14.5 | G46: 0.1 | H46: 0 | I46: 0 | J46: 0 | K46: 5.26 | L46: 0 | M46: 0 | N46: 0 | O46: 0 | P46: 0 | Q46: 0 | R46: 0 | S46: 0 | T46: 4.69 | U46: 0 | V46: 1.26 | W46: 0 | X46: 0 | Y46: 0 | Z46: 0 | AA46: 0 | AB46: 99.8 | AC46: 95.5 | AD46: 8.8 | AE46: 376 | AF46: 25.4 | AG46: 231 | AH46: 2.2 | AI46: 8.6 | AJ46: 0.2 | AK46: 4.7 | AL46: 5 | AM46: 7.5 | AN46: 0.5 | AO46: 0.14 | AP46: 4.6 | AQ46: 0 | AR46: 6.9 | AS46: 0.064 | AT46: 0.3 | AU46: 7.2 | AV46: 0.3 | AW46: 0.21 | AX46: 2.72 | AY46: 24.2 | AZ46: 0 | BA46: 53.7
A47: Agneau, gigot, braisé | B47: Viandes | C47: 21519 | D47: 222 | E47: 35.2 | F47: 9.03 | G47: 0 | H47: 0 | I47: 0 | J47: 0 | K47: 3.46 | L47: 0 | M47: 0 | N47: 0 | O47: 0 | P47: 0.041 | Q47: 0.35 | R47: 1.74 | S47: 0.97 | T47: 3.34 | U47: 2.6 | V47: 0.83 | W47: 0.067 | X47: 0 | Y47: 0.012 | Z47: 0.078 | AA47: 0.45 | AB47: 0 | AC47: 0 | AD47: 0 | AE47: 0 | AF47: 0 | AG47: 0 | AH47: 0.97 | AI47: 0 | AJ47: 0 | AK47: 5.28 | AL47: 13.6 | AM47: 0 | AN47: 0 | AO47: 0 | AP47: 0 | AQ47: 0 | AR47: 0 | AS47: 0 | AT47: 0 | AU47: 6.52 | AV47: 0 | AW47: 0.16 | AX47: 1.88 | AY47: 0 | AZ47: 0 | BA47: 55.2
A48: Agneau, gigot, cru | B48: Viandes | C48: 21502 | D48: 128 | E48: 17.8 | F48: 6.29 | G48: 0 | H48: 0 | I48: 0 | J48: 0 | K48: 2.58 | L48: 0 | M48: 0 | N48: 0 | O48: 0.012 | P48: 0.0448 | Q48: 0.378 | R48: 1.38 | S48: 0.766 | T48: 2.32 | U48: 2.32 | V48: 0.457 | W48: 0.0483 | X48: 0.0374 | Y48: 0.00962 | Z48: 0.192 | AA48: 0.17 | AB48: 73.3 | AC48: 71.3 | AD48: 10 | AE48: 279 | AF48: 21.9 | AG48: 195 | AH48: 1.45 | AI48: 1.28 | AJ48: 0.122 | AK48: 2.94 | AL48: 4.7 | AM48: 45 | AN48: 0.4 | AO48: 0.7 | AP48: 0 | AQ48: 0 | AR48: 0.25 | AS48: 0.18 | AT48: 0.307 | AU48: 6.44 | AV48: 0.55 | AW48: 0.255 | AX48: 1.88 | AY48: 1.6 | AZ48: 0 | BA48: 73.5
A49: Agneau, gigot, cru | B49: Viandes | C49: 21502 | D49: 128 | E49: 20 | F49: 5.13 | G49: 0.48 | H49: 0 | I49: 0 | J49: 0 | K49: 1.97 | L49: 0 | M49: 0 | N49: 0 | O49: 0.036 | P49: 0.023 | Q49: 0.2 | R49: 0.99 | S49: 0.55 | T49: 1.9 | U49: 1.48 | V49: 0.47 | W49: 0.038 | X49: 0.056 | Y49: 0.014 | Z49: 0.044 | AA49: 0.25 | AB49: 72.7 | AC49: 48.7 | AD49: 10 | AE49: 255 | AF49: 21.9 | AG49: 177 | AH49: 1.51 | AI49: 1.85 | AJ49: 0.12 | AK49: 3 | AL49: 7.73 | AM49: 45 | AN49: 0.4 | AO49: 0.46 | AP49: 0 | AQ49: 0 | AR49: 1 | AS49: 0.15 | AT49: 0.27 | AU49: 6.52 | AV49: 0.63 | AW49: 0.26 | AX49: 2.17 | AY49: 9.8 | AZ49: 0 | BA49: 74.5
A50: Agneau, gigot, grillé/poêlé | B50: Viandes | C50: 21518 | D50: 174 | E50: 27.6 | F50: 7.08 | G50: 0 | H50: 0 | I50: 0 | J50: 0 | K50: 2.63 | L50: 0 | M50: 0 | N50: 0 | O50: 0 | P50: 0.031 | Q50: 0.27 | R50: 1.32 | S50: 0.73 | T50: 2.54 | U50: 1.98 | V50: 0.63 | W50: 0.051 | X50: 0 | Y50: 0.009 | Z50: 0.059 | AA50: 0.34 | AB50: 0 | AC50: 0 | AD50: 0 | AE50: 0 | AF50: 0 | AG50: 0 | AH50: 1.51 | AI50: 0 | AJ50: 0 | AK50: 4.15 | AL50: 10.7 | AM50: 0 | AN50: 0 | AO50: 0 | AP50: 0 | AQ50: 0 | AR50: 0 | AS50: 0 | AT50: 0 | AU50: 6.52 | AV50: 0 | AW50: 0.23 | AX50: 1.88 | AY50: 0 | AZ50: 0 | BA50: 64.8
A51: Agneau, gigot, rôti | B51: Viandes | C51: 21503 | D51: 193 | E51: 23.8 | F51: 10.9 | G51: 0 | H51: 0 | I51: 0 | J51: 0 | K51: 5.54 | L51: 0 | M51: 0 | N51: 0 | O51: 0.042 | P51: 0.073 | Q51: 0.654 | R51: 2.82 | S51: 1.95 | T51: 4 | U51: 4 | V51: 0.956 | W51: 0.129 | X51: 0.00764 | Y51: 0.00608 | Z51: 0.0425 | AA51: 0.366 | AB51: 97.6 | AC51: 159 | AD51: 21.8 | AE51: 0 | AF51: 30.7 | AG51: 0 | AH51: 2.1 | AI51: 5 | AJ51: 0.115 | AK51: 3.17 | AL51: 6.9 | AM51: 0 | AN51: 0 | AO51: 0.18 | AP51: 0 | AQ51: 0 | AR51: 0 | AS51: 0.1 | AT51: 0 | AU51: 8.02 | AV51: 0.83 | AW51: 0.372 | AX51: 3.05 | AY51: 0 | AZ51: 0 | BA51: 67.1
A52: Agneau, gigot, rôti/cuit au four | B52: Viandes | C52: 21503 | D52: 168 | E52: 26 | F52: 7.06 | G52: 0 | H52: 0 | I52: 0 | J52: 0 | K52: 2.63 | L52: 0 | M52: 0 | N52: 0 | O52: 0.015 | P52: 0.031 | Q52: 0.27 | R52: 1.32 | S52: 0.9 | T52: 2.54 | U52: 1.98 | V52: 0.63 | W52: 0.051 | X52: 0.0076 | Y52: 0.009 | Z52: 0.054 | AA52: 0.34 | AB52: 97.6 | AC52: 75.5 | AD52: 21.8 | AE52: 301 | AF52: 30.7 | AG52: 183 | AH52: 1.58 | AI52: 5 | AJ52: 0.12 | AK52: 3.79 | AL52: 8.37 | AM52: 0 | AN52: 0 | AO52: 0.13 | AP52: 0 | AQ52: 0 | AR52: 0 | AS52: 0.1 | AT52: 0.28 | AU52: 6.9 | AV52: 0.83 | AW52: 0.27 | AX52: 2.17 | AY52: 17 | AZ52: 0 | BA52: 66.2
A53: Agneau, selle, crue | B53: Viandes | C53: 21515 | D53: 215 | E53: 16.2 | F53: 16.7 | G53: 0 | H53: 0 | I53: 0 | J53: 0 | K53: 7.44 | L53: 0 | M53: 0 | N53: 0 | O53: 0 | P53: 0.118 | Q53: 0.988 | R53: 3.55 | S53: 2 | T53: 6.25 | U53: 5.94 | V53: 0.987 | W53: 0.16 | X53: 0 | Y53: 0 | Z53: 0 | AA53: 0.502 | AB53: 0 | AC53: 0 | AD53: 0 | AE53: 0 | AF53: 0 | AG53: 0 | AH53: 1.23 | AI53: 0 | AJ53: 0 | AK53: 2.41 | AL53: 3.56 | AM53: 0 | AN53: 0 | AO53: 0 | AP53: 0 | AQ53: 0 | AR53: 0 | AS53: 0 | AT53: 0 | AU53: 5.59 | AV53: 0 | AW53: 0.229 | AX53: 1.53 | AY53: 0 | AZ53: 0 | BA53: 64.7
A54: Agneau, selle, crue | B54: Viandes | C54: 21515 | D54: 236 | E54: 17.5 | F54: 18.4 | G54: 0 | H54: 0 | I54: 0 | J54: 0 | K54: 7.95 | L54: 0 | M54: 0 | N54: 0 | O54: 0.07 | P54: 0.086 | Q54: 0.81 | R54: 3.84 | S54: 2.21 | T54: 6.97 | U54: 5.16 | V54: 1.29 | W54: 0.12 | X54: 0 | Y54: 0 | Z54: 0.054 | AA54: 0.71 | AB54: 78 | AC54: 55 | AD54: 12.8 | AE54: 222 | AF54: 19 | AG54: 175 | AH54: 1.16 | AI54: 0.7 | AJ54: 0.13 | AK54: 2.11 | AL54: 5.73 | AM54: 45 | AN54: 0.4 | AO54: 0.44 | AP54: 0 | AQ54: 0 | AR54: 0 | AS54: 0.1 | AT54: 0.19 | AU54: 5.41 | AV54: 0.59 | AW54: 0.22 | AX54: 1.73 | AY54: 9.2 | AZ54: 0 | BA54: 63.8
A55: Agneau, selle, partie maigre, grillée/poêlée | B55: Viandes | C55: 21520 | D55: 153 | E55: 26.1 | F55: 5.45 | G55: 0 | H55: 0 | I55: 0 | J55: 0 | K55: 2.05 | L55: 0 | M55: 0 | N55: 0 | O55: 0 | P55: 0.022 | Q55: 0.2 | R55: 1.02 | S55: 0.6 | T55: 1.95 | U55: 1.52 | V55: 0.54 | W55: 0.039 | X55: 0 | Y55: 0.0081 | Z55: 0.061 | AA55: 0.29 | AB55: 0 | AC55: 0 | AD55: 0 | AE55: 0 | AF55: 0 | AG55: 0 | AH55: 1.28 | AI55: 0 | AJ55: 0 | AK55: 3.67 | AL55: 10.3 | AM55: 0 | AN55: 0 | AO55: 0 | AP55: 0 | AQ55: 0 | AR55: 0 | AS55: 0 | AT55: 0 | AU55: 6.67 | AV55: 0 | AW55: 0.29 | AX55: 1.53 | AY55: 0 | AZ55: 0 | BA55: 68.3
A56: Agneau, selle, partie maigre, rôtie/cuite au four | B56: Viandes | C56: 21513 | D56: 153 | E56: 26.1 | F56: 5.45 | G56: 0 | H56: 0 | I56: 0 | J56: 0 | K56: 2.01 | L56: 0 | M56: 0 | N56: 0 | O56: 0.06 | P56: 0.022 | Q56: 0.19 | R56: 1 | S56: 0.59 | T56: 1.92 | U56: 1.49 | V56: 0.53 | W56: 0.039 | X56: 0 | Y56: 0.008 | Z56: 0.06 | AA56: 0.28 | AB56: 91 | AC56: 64 | AD56: 18 | AE56: 246 | AF56: 23 | AG56: 180 | AH56: 1.21 | AI56: 0 | AJ56: 0.12 | AK56: 3.67 | AL56: 10.3 | AM56: 0 | AN56: 0.1 | AO56: 0.11 | AP56: 4.7 | AQ56: 0 | AR56: 0 | AS56: 0.1 | AT56: 0.24 | AU56: 6.67 | AV56: 0.83 | AW56: 0.27 | AX56: 1.53 | AY56: 19 | AZ56: 0 | BA56: 68.3
A57: AGUTUK,FISH W/ SHORTENING (ALASKAN ICE CREAM) (ALASKA NATIVE | C57: 35225 | D57: 470 | E57: 9 | F57: 43.5 | G57: 10.5 | K57: 8.6 | T57: 15.6 | V57: 17.3 | AB57: 26 | AC57: 24 | AE57: 206 | AF57: 16 | AG57: 134 | AH57: 0.2 | AJ57: 0.03 | AK57: 0.47 | AM57: 34 | AO57: 4 | AS57: 0.06 | AT57: 0.06 | AU57: 1.43 | BA57: 34
A58: AGUTUK,FISH/BERRY W/ SEAL OIL (ICE CREAM) (ALASKA NATIVE) | C58: 35001 | D58: 353 | E58: 3.4 | F58: 31.8 | G58: 13.4 | J58: 0.5 | K58: 7.7 | T58: 14.4 | V58: 8.4 | AB58: 10 | AC58: 21 | AD58: 8 | AE58: 70 | AF58: 7 | AG58: 46 | AH58: 0.3 | AJ58: 0.03 | AK58: 0.18 | AO58: 2.36 | AR58: 2.9 | AS58: 0.04 | AT58: 0.05 | AU58: 0.55 | AV58: 0.02 | AW58: 0.01 | AY58: 3 | BA58: 47.3
A59: AGUTUK,MEAT-CARIBOU (ALASKAN ICE CREAM) (ALASKA NATIVE) | C59: 35003 | D59: 258 | E59: 21.7 | F59: 18.6 | G59: 0.9 | K59: 5.1 | T59: 8.7 | V59: 3.6 | AB59: 89 | AC59: 95 | AD59: 16 | AE59: 228 | AF59: 20 | AG59: 170 | AH59: 4.55 | AJ59: 0.19 | AK59: 3.83 | AR59: 2.2 | AS59: 0.18 | AT59: 0.66 | AU59: 4.26 | AV59: 1.95 | AW59: 0.23 | AX59: 4.83 | AY59: 4 | BA59: 55.2
A60: Ail frais | B60: Herbes, épices et assaisonnements | C60: 11000 | D60: 131 | E60: 7.9 | F60: 0.47 | G60: 21.5 | H60: 1.57 | I60: 13.4 | J60: 4.7 | K60: 0.096 | L60: 0 | M60: 0 | N60: 0 | O60: 0.002 | P60: 0 | Q60: 0.000667 | R60: 0.087 | S60: 0 | T60: 0.0107 | U60: 0.0107 | V60: 0.266 | W60: 0.02 | X60: 0 | Y60: 0 | Z60: 0 | AA60: 0.23 | AB60: 0 | AC60: 17.6 | AD60: 17.7 | AE60: 555 | AF60: 20.7 | AG60: 161 | AH60: 1.32 | AI60: 3 | AJ60: 0.085 | AK60: 0.78 | AL60: 5.1 | AM60: 2.916666667 | AN60: 0 | AO60: 0.01 | AP60: 1.7 | AQ60: 0 | AR60: 17 | AS60: 0.13 | AT60: 0.03 | AU60: 0.3 | AV60: 0.596 | AW60: 1.18 | AX60: 0 | AY60: 5 | AZ60: 0 | BA60: 64
A61: Ail séché, poudre | B61: Aromates séchés | C61: 11023 | D61: 344 | E61: 16.7 | F61: 0.77 | G61: 62.8 | H61: 2.43 | I61: 0 | J61: 9.45 | K61: 0.2 | L61: 0 | M61: 0 | N61: 0 | O61: 0.0024 | P61: 0 | Q61: 0.012 | R61: 0.097 | S61: 0.084 | T61: 0.067 | U61: 0.062 | V61: 0.29 | W61: 0.016 | X61: 0 | Y61: 0 | Z61: 0 | AA61: 0.27 | AB61: 0 | AC61: 43 | AD61: 79.5 | AE61: 1150 | AF61: 67.5 | AG61: 416 | AH61: 4.2 | AI61: 0 | AJ61: 0.53 | AK61: 2.81 | AL61: 0 | AM61: 0 | AN61: 0 | AO61: 0.67 | AP61: 0.4 | AQ61: 0 | AR61: 2.39 | AS61: 0.45 | AT61: 0.15 | AU61: 0.74 | AV61: 0.74 | AW61: 1.65 | AX61: 0 | AY61: 47 | AZ61: 0 | BA61: 6.48
A62: Ail, cru | B62: Aromates frais | C62: 11000 | D62: 0 | E62: 5.81 | F62: 0.34 | G62: 21.2 | H62: 1.43 | I62: 13.4 | J62: 4.7 | K62: 0.075 | L62: 0 | M62: 0 | N62: 0 | O62: 0.002 | P62: 0 | Q62: 0.00027 | R62: 0.062 | S62: 0.0039 | T62: 0.011 | U62: 0.011 | V62: 0.25 | W62: 0.013 | X62: 0 | Y62: 0 | Z62: 0 | AA62: 0.14 | AB62: 0 | AC62: 39 | AD62: 80.5 | AE62: 401 | AF62: 25 | AG62: 157 | AH62: 1.6 | AI62: 1.9 | AJ62: 0.3 | AK62: 1.16 | AL62: 2 | AM62: 0.8333333333 | AN62: 0 | AO62: 0.045 | AP62: 1.7 | AQ62: 0 | AR62: 18.1 | AS62: 0.2 | AT62: 0.11 | AU62: 0.7 | AV62: 0.6 | AW62: 1.99 | AX62: 0 | AY62: 51.3 | AZ62: 0 | BA62: 64.3
A63: ALCOHOLIC BEV DISTILLED,ALL (GIN,RUM,VODKA,WHISKEY) 100PROOF | C63: 14533 | D63: 295 | E63: 0 | F63: 0 | G63: 0 | J63: 0 | K63: 0 | T63: 0 | V63: 0 | AB63: 0 | AC63: 1 | AD63: 0 | AE63: 2 | AF63: 0 | AG63: 4 | AH63: 0.04 | AJ63: 0.021 | AK63: 0.04 | AL63: 0 | AR63: 0 | AS63: 0.006 | AT63: 0.004 | AU63: 0.013 | AV63: 0 | AW63: 0.001 | AX63: 0 | AY63: 0 | BA63: 57.5
A64: ALCOHOLIC BEV,BEER,LT | C64: 14006 | D64: 29 | E64: 0.24 | F64: 0 | G64: 1.64 | H64: 0.09 | J64: 0 | K64: 0 | T64: 0 | V64: 0 | AB64: 0 | AC64: 4 | AD64: 4 | AE64: 21 | AF64: 5 | AG64: 12 | AH64: 0.03 | AJ64: 0.006 | AK64: 0.01 | AL64: 0.4 | AM64: 0 | AN64: 0 | AO64: 0 | AP64: 0 | AR64: 0 | AS64: 0.005 | AT64: 0.015 | AU64: 0.391 | AV64: 0.03 | AW64: 0.034 | AX64: 0.02 | AY64: 6 | BA64: 94.88
A65: ALCOHOLIC BEV,BEER,LT,BUD LT | C65: 14007 | D65: 29 | E65: 0.25 | F65: 0 | G65: 1.3 | J65: 0 | AB65: 0 | AC65: 3 | AD65: 3 | AE65: 26 | AF65: 7 | AG65: 11 | AH65: 0 | AJ65: 0.002 | AK65: 0 | BA65: 95
A66: ALCOHOLIC BEV,BEER,LT,BUDWEISER SEL | C66: 14005 | D66: 28 | E66: 0.2 | F66: 0 | G66: 0.87 | J66: 0 | AB66: 0 | AC66: 3 | AD66: 4 | AE66: 26 | AF66: 6 | AH66: 0 | AJ66: 0.001 | AK66: 0.01 | BA66: 95.3
A67: ALCOHOLIC BEV,BEER,LT,HIGHER ALCOHOL | C67: 14248 | D67: 46 | E67: 0.25 | F67: 0 | G67: 0.77 | H67: 0.09 | J67: 0 | K67: 0 | T67: 0 | V67: 0 | AB67: 0 | AC67: 4 | AD67: 4 | AE67: 21 | AF67: 5 | AG67: 12 | AH67: 0.03 | AJ67: 0.006 | AK67: 0.01 | AL67: 0.4 | AM67: 0 | AN67: 0 | AO67: 0 | AP67: 0 | AR67: 0 | AS67: 0.005 | AT67: 0.015 | AU67: 0.391 | AW67: 0.034 | AX67: 0.02 | AY67: 6 | BA67: 92.88
A68: ALCOHOLIC BEV,BEER,LT,LO CARB | C68: 14013 | D68: 27 | E68: 0.17 | F68: 0 | G68: 0.73 | H68: 0 | J68: 0 | K68: 0 | T68: 0 | V68: 0 | AB68: 0 | AC68: 3 | AD68: 4 | AE68: 17 | AF68: 4 | AG68: 8 | AH68: 0 | AJ68: 0.002 | AK68: 0.01 | AL68: 0 | AM68: 0 | AN68: 0 | AO68: 0 | AP68: 0 | AR68: 0 | AS68: 0 | AT68: 0 | AU68: 0 | AW68: 0 | AX68: 0 | AY68: 0 | BA68: 95.4
A69: ALCOHOLIC BEV,BEER,REG,ALL | C69: 14003 | D69: 43 | E69: 0.46 | F69: 0 | G69: 3.55 | H69: 0 | J69: 0 | K69: 0 | T69: 0 | V69: 0 | AB69: 0 | AC69: 4 | AD69: 4 | AE69: 27 | AF69: 6 | AG69: 14 | AH69: 0.02 | AJ69: 0.005 | AK69: 0.01 | AL69: 0.6 | AM69: 0 | AN69: 0 | AO69: 0 | AP69: 0 | AR69: 0 | AS69: 0.005 | AT69: 0.025 | AU69: 0.513 | AV69: 0.041 | AW69: 0.046 | AX69: 0.02 | AY69: 6 | BA69: 91.96
A70: ALCOHOLIC BEV,BEER,REG,BUDWEISER | C70: 14004 | D70: 41 | E70: 0.36 | F70: 0 | G70: 2.97 | J70: 0 | AB70: 0 | AC70: 3 | AD70: 4 | AE70: 33 | AF70: 7 | AG70: 13 | AH70: 0 | AJ70: 0.003 | AK70: 0 | BA70: 92.77
A71: ALCOHOLIC BEV,CREME DE MENTHE,72 PROOF | C71: 14034 | D71: 371 | E71: 0 | F71: 0.3 | G71: 41.6 | H71: 41.6 | J71: 0 | K71: 0.014 | T71: 0.015 | V71: 0.167 | AB71: 0 | AC71: 5 | AD71: 0 | AE71: 0 | AF71: 0 | AG71: 0 | AH71: 0.07 | AJ71: 0.08 | AK71: 0.04 | AL71: 0.4 | AM71: 0 | AN71: 0 | AO71: 0 | AP71: 0 | AR71: 0 | AS71: 0 | AT71: 0 | AU71: 0.003 | AV71: 0 | AW71: 0 | AX71: 0 | AY71: 0 | BA71: 28.3
A72: ALCOHOLIC BEV,DAIQUIRI,CND | C72: 14009 | D72: 125 | E72: 0 | F72: 0 | G72: 15.7 | J72: 0 | K72: 0 | AB72: 0 | AC72: 40 | AD72: 0 | AE72: 11 | AF72: 1 | AG72: 2 | AH72: 0.01 | AJ72: 0.016 | AK72: 0.03 | AL72: 0.1 | AM72: 0 | AR72: 1.3 | AS72: 0.001 | AT72: 0.001 | AU72: 0.014 | AV72: 0.007 | AW72: 0.003 | AX72: 0 | AY72: 1 | BA72: 74.6
A73: ALCOHOLIC BEV,DAIQUIRI,PREPARED-FROM-RECIPE | C73: 14010 | D73: 186 | E73: 0.06 | F73: 0.06 | G73: 6.94 | H73: 5.58 | J73: 0.1 | K73: 0.006 | T73: 0.006 | V73: 0.016 | AB73: 0 | AC73: 5 | AD73: 3 | AE73: 21 | AF73: 2 | AG73: 5 | AH73: 0.09 | AJ73: 0.022 | AK73: 0.04 | AL73: 0.1 | AM73: 0 | AO73: 0.03 | AP73: 0.1 | AR73: 1.6 | AS73: 0.013 | AT73: 0.005 | AU73: 0.051 | AV73: 0.017 | AW73: 0.008 | AX73: 0 | AY73: 2 | BA73: 69.74
A74: ALCOHOLIC BEV,DISTILLED,ALL (GIN,RUM,VODKA,WHISKEY) 80 PROOF | C74: 14037 | D74: 231 | E74: 0 | F74: 0 | G74: 0 | H74: 0 | J74: 0 | K74: 0 | T74: 0 | V74: 0 | AB74: 0 | AC74: 1 | AD74: 0 | AE74: 2 | AF74: 0 | AG74: 4 | AH74: 0.04 | AJ74: 0.021 | AK74: 0.04 | AL74: 0 | AM74: 0 | AN74: 0 | AO74: 0 | AP74: 0 | AR74: 0 | AS74: 0.006 | AT74: 0.004 | AU74: 0.013 | AV74: 0 | AW74: 0.001 | AX74: 0 | AY74: 0 | BA74: 66.6
A75: ALCOHOLIC BEV,DISTILLED,ALL (GIN,RUM,VODKA,WHISKEY) 86 PROOF | C75: 14550 | D75: 250 | E75: 0 | F75: 0 | G75: 0.1 | H75: 0 | J75: 0 | K75: 0 | T75: 0 | V75: 0 | AB75: 0 | AC75: 1 | AD75: 0 | AE75: 2 | AF75: 0 | AG75: 4 | AH75: 0.04 | AJ75: 0.021 | AK75: 0.04 | AL75: 0 | AM75: 0 | AN75: 0 | AO75: 0 | AP75: 0 | AR75: 0 | AS75: 0.006 | AT75: 0.004 | AU75: 0.013 | AV75: 0 | AW75: 0.001 | AX75: 0 | AY75: 0 | BA75: 63.9
A76: ALCOHOLIC BEV,DISTILLED,ALL (GIN,RUM,VODKA,WHISKEY) 90 PROOF | C76: 14551 | D76: 263 | E76: 0 | F76: 0 | G76: 0 | H76: 0 | J76: 0 | K76: 0 | T76: 0 | V76: 0 | AB76: 0 | AC76: 1 | AD76: 0 | AE76: 2 | AF76: 0 | AG76: 4 | AH76: 0.04 | AJ76: 0.021 | AK76: 0.04 | AL76: 0 | AM76: 0 | AN76: 0 | AO76: 0 | AP76: 0 | AR76: 0 | AS76: 0.006 | AT76: 0.004 | AU76: 0.013 | AV76: 0 | AW76: 0.001 | AX76: 0 | AY76: 0 | BA76: 62.1
A77: ALCOHOLIC BEV,DISTILLED,ALL (GIN,RUM,VODKA,WHISKEY) 94 PROOF | C77: 14532 | D77: 275 | E77: 0 | F77: 0 | G77: 0 | J77: 0 | K77: 0 | T77: 0 | V77: 0 | AB77: 0 | AC77: 1 | AD77: 0 | AE77: 2 | AF77: 0 | AG77: 4 | AH77: 0.04 | AJ77: 0.021 | AK77: 0.04 | AL77: 0 | AM77: 0 | AR77: 0 | AS77: 0.006 | AT77: 0.004 | AU77: 0.013 | AV77: 0 | AW77: 0.001 | AX77: 0 | AY77: 0 | BA77: 60.3
A78: ALCOHOLIC BEV,DISTILLED,GIN,90 PROOF | C78: 14049 | D78: 263 | E78: 0 | F78: 0 | G78: 0 | H78: 0 | J78: 0 | K78: 0 | T78: 0 | V78: 0 | AB78: 0 | AC78: 2 | AD78: 0 | AE78: 0 | AF78: 0 | AG78: 0 | AH78: 0 | AJ78: 0.004 | AK78: 0 | AL78: 0 | AM78: 0 | AN78: 0 | AO78: 0 | AP78: 0 | AR78: 0 | AS78: 0 | AT78: 0 | AU78: 0 | AV78: 0 | AW78: 0 | AX78: 0 | AY78: 0 | BA78: 62.1
A79: ALCOHOLIC BEV,DISTILLED,RUM,80 PROOF | C79: 14050 | D79: 231 | E79: 0 | F79: 0 | G79: 0 | H79: 0 | J79: 0 | K79: 0 | T79: 0 | V79: 0 | AB79: 0 | AC79: 1 | AD79: 0 | AE79: 2 | AF79: 0 | AG79: 5 | AH79: 0.12 | AJ79: 0.05 | AK79: 0.07 | AL79: 0 | AM79: 0 | AN79: 0 | AO79: 0 | AP79: 0 | AR79: 0 | AS79: 0.008 | AT79: 0 | AU79: 0 | AV79: 0 | AW79: 0 | AX79: 0 | AY79: 0 | BA79: 66.6
A80: ALCOHOLIC BEV,DISTILLED,VODKA,80 PROOF | C80: 14051 | D80: 231 | E80: 0 | F80: 0 | G80: 0 | H80: 0 | J80: 0 | K80: 0 | T80: 0 | V80: 0 | AB80: 0 | AC80: 1 | AD80: 0 | AE80: 1 | AF80: 0 | AG80: 5 | AH80: 0.01 | AJ80: 0.01 | AK80: 0 | AL80: 0 | AR80: 0 | AS80: 0.005 | AT80: 0.007 | AU80: 0 | AV80: 0 | AW80: 0 | AX80: 0 | AY80: 0 | BA80: 66.6
A81: ALCOHOLIC BEV,DISTILLED,WHISKEY,86 PROOF | C81: 14052 | D81: 250 | E81: 0 | F81: 0 | G81: 0.1 | H81: 0.1 | J81: 0 | K81: 0 | T81: 0 | V81: 0 | AB81: 0 | AC81: 0 | AD81: 0 | AE81: 1 | AF81: 0 | AG81: 3 | AH81: 0.02 | AJ81: 0.014 | AK81: 0.02 | AL81: 0 | AM81: 0 | AR81: 0 | AS81: 0.008 | AT81: 0.001 | AU81: 0.05 | AV81: 0 | AW81: 0 | AX81: 0 | AY81: 0 | BA81: 63.9
A82: ALCOHOLIC BEV,LIQUEUR,COFFEE W/ CRM,34 PROOF | C82: 14415 | D82: 327 | E82: 2.8 | F82: 15.7 | G82: 20.9 | H82: 19.76 | J82: 0 | K82: 9.664 | T82: 4.458 | V82: 0.669 | AB82: 58 | AC82: 92 | AD82: 16 | AE82: 32 | AF82: 2 | AG82: 50 | AH82: 0.13 | AJ82: 0.04 | AK82: 0.16 | AL82: 0.4 | AM82: 173 | AN82: 0 | AO82: 0.45 | AP82: 1.3 | AR82: 0.2 | AS82: 0.011 | AT82: 0.057 | AU82: 0.078 | AV82: 0.087 | AW82: 0.011 | AX82: 0.08 | AY82: 2 | BA82: 46.5
A83: ALCOHOLIC BEV,LIQUEUR,COFFEE,53 PROOF | C83: 14414 | D83: 336 | E83: 0.1 | F83: 0.3 | G83: 46.8 | H83: 38.3 | J83: 0 | K83: 0.106 | T83: 0.022 | V83: 0.105 | AB83: 0 | AC83: 8 | AD83: 1 | AE83: 30 | AF83: 3 | AG83: 6 | AH83: 0.06 | AJ83: 0.04 | AK83: 0.03 | AL83: 0.4 | AM83: 0 | AN83: 0 | AO83: 0 | AP83: 0 | AR83: 0 | AS83: 0.004 | AT83: 0.012 | AU83: 0.144 | AV83: 0 | AW83: 0 | AX83: 0 | AY83: 0 | BA83: 31
A84: ALCOHOLIC BEV,LIQUEUR,COFFEE,63 PROOF | C84: 14534 | D84: 308 | E84: 0.1 | F84: 0.3 | G84: 32.2 | H84: 32.2 | J84: 0 | K84: 0.106 | T84: 0.022 | V84: 0.105 | AB84: 0 | AC84: 8 | AD84: 1 | AE84: 30 | AF84: 3 | AG84: 6 | AH84: 0.06 | AJ84: 0.04 | AK84: 0.03 | AL84: 0.3 | AM84: 0 | AR84: 0 | AS84: 0.004 | AT84: 0.012 | AU84: 0.144 | AV84: 0 | AW84: 0 | AX84: 0 | AY84: 0 | BA84: 41.4
A85: ALCOHOLIC BEV,MALT BEER,HARD LEMONADE | C85: 14239 | D85: 68 | E85: 0 | F85: 0 | G85: 10.07 | H85: 9.77 | J85: 0 | K85: 0 | T85: 0 | V85: 0 | AB85: 0 | AC85: 5 | AD85: 4 | AE85: 27 | AF85: 4 | AG85: 7 | AH85: 0.03 | AJ85: 0.008 | AK85: 0.01 | AL85: 0.3 | AM85: 0 | AN85: 0 | AO85: 0.02 | AP85: 0 | AR85: 2.8 | AS85: 0.006 | AT85: 0.01 | AU85: 0.225 | AV85: 0.041 | AW85: 0.022 | AX85: 0.01 | AY85: 4 | BA85: 85.74
A86: ALCOHOLIC BEV,PINA COLADA,CND | C86: 14015 | D86: 237 | E86: 0.6 | F86: 7.6 | G86: 27.6 | J86: 0.1 | K86: 6.571 | T86: 0.442 | V86: 0.137 | AB86: 0 | AC86: 71 | AD86: 1 | AE86: 83 | AF86: 6 | AG86: 36 | AH86: 0.03 | AJ86: 0.087 | AK86: 0.2 | AL86: 0.7 | AM86: 1 | AR86: 1.5 | AS86: 0.017 | AT86: 0.005 | AU86: 0.104 | AV86: 0.054 | AW86: 0.017 | AX86: 0 | AY86: 6 | BA86: 54.9
A87: ALCOHOLIC BEV,PINA COLADA,PREPARED-FROM-RECIPE | C87: 14017 | D87: 174 | E87: 0.42 | F87: 1.88 | G87: 22.66 | H87: 22.33 | J87: 0.3 | K87: 1.636 | T87: 0.082 | V87: 0.033 | AB87: 0 | AC87: 6 | AD87: 8 | AE87: 71 | AF87: 8 | AG87: 7 | AH87: 0.21 | AJ87: 0.079 | AK87: 0.13 | AL87: 0.7 | AM87: 0 | AO87: 0.02 | AP87: 0.1 | AR87: 4.9 | AS87: 0.029 | AT87: 0.017 | AU87: 0.118 | AV87: 0.061 | AW87: 0.045 | AX87: 0 | AY87: 12 | BA87: 64.99
A88: ALCOHOLIC BEV,RICE (SAKE) | C88: 43479 | D88: 134 | E88: 0.5 | F88: 0 | G88: 5 | H88: 0 | J88: 0 | K88: 0 | T88: 0 | V88: 0 | AB88: 0 | AC88: 2 | AD88: 5 | AE88: 25 | AF88: 6 | AG88: 6 | AH88: 0.1 | AJ88: 0.009 | AK88: 0.02 | AL88: 1.4 | AM88: 0 | AN88: 0 | AO88: 0 | AP88: 0 | AR88: 0 | AS88: 0 | AT88: 0 | AU88: 0 | AW88: 0 | AX88: 0 | AY88: 0 | BA88: 78.4
A89: ALCOHOLIC BEV,TEQUILA SUNRISE,CND | C89: 14019 | D89: 110 | E89: 0.3 | F89: 0.1 | G89: 11.3 | J89: 0 | AB89: 0 | AC89: 57 | AD89: 0 | AE89: 10 | AF89: 7 | AG89: 10 | AH89: 0.02 | AJ89: 0.042 | AK89: 0.6 | AL89: 0 | AM89: 5 | AR89: 19.3 | AS89: 0.038 | AT89: 0.016 | AU89: 0.19 | AV89: 0.088 | AW89: 0.05 | AX89: 0 | AY89: 11 | BA89: 78.8
A90: ALCOHOLIC BEV,WHISKEY SOUR | C90: 14531 | D90: 149 | E90: 0 | F90: 0.03 | G90: 13.17 | J90: 0 | K90: 0.005 | T90: 0.001 | V90: 0.012 | AB90: 0 | AC90: 20 | AD90: 1 | AE90: 5 | AF90: 1 | AG90: 6 | AH90: 0.08 | AJ90: 0.009 | AK90: 0.06 | AL90: 0.1 | AR90: 1.6 | AS90: 0.011 | AT90: 0.006 | AU90: 0.02 | AV90: 0.008 | AW90: 0 | AX90: 0 | AY90: 0 | BA90: 72.6
A91: ALCOHOLIC BEV,WHISKEY SOUR,CND | C91: 14027 | D91: 119 | E91: 0 | F91: 0 | G91: 13.4 | J91: 0.1 | AB91: 0 | AC91: 44 | AD91: 0 | AE91: 11 | AF91: 1 | AG91: 6 | AH91: 0.01 | AJ91: 0.009 | AK91: 0.06 | AL91: 0.1 | AM91: 1 | AR91: 1.6 | AS91: 0.011 | AT91: 0.006 | AU91: 0.02 | AV91: 0.008 | AW91: 0 | AX91: 0 | AY91: 0 | BA91: 76.9
A92: ALCOHOLIC BEV,WHISKEY SOUR,PREP FROM ITEM 14028 | C92: 14029 | D92: 153 | E92: 0.06 | F92: 0.06 | G92: 12.82 | H92: 12.78 | J92: 0 | K92: 0.005 | T92: 0.001 | V92: 0.011 | AB92: 0 | AC92: 61 | AD92: 1 | AE92: 18 | AF92: 1 | AG92: 5 | AH92: 0.08 | AJ92: 0.008 | AK92: 0.06 | AL92: 0.2 | AM92: 0 | AO92: 0 | AP92: 0 | AR92: 1.6 | AS92: 0.01 | AT92: 0.008 | AU92: 0.005 | AV92: 0.008 | AW92: 0 | AX92: 0 | AY92: 0 | BA92: 72.44
A93: ALCOHOLIC BEV,WHISKEY SOUR,PREP W/ H2O,WHISKEY & PDR MIX | C93: 14025 | D93: 164 | E93: 0.1 | F93: 0.02 | G93: 15.85 | H93: 15.81 | J93: 0 | K93: 0.003 | T93: 0.001 | V93: 0.006 | AB93: 0 | AC93: 47 | AD93: 46 | AE93: 4 | AF93: 3 | AG93: 4 | AH93: 0.08 | AJ93: 0.034 | AK93: 0.04 | AL93: 0.1 | AM93: 0 | AO93: 0 | AP93: 0 | AR93: 0.4 | AS93: 0.003 | AT93: 0.002 | AU93: 0.005 | AV93: 0.01 | AW93: 0 | AX93: 0 | AY93: 0 | BA93: 69.15
A94: ALCOHOLIC BEV,WINE,COOKING | C94: 43154 | D94: 50 | E94: 0.5 | F94: 0 | G94: 6.3 | H94: 1.55 | J94: 0 | K94: 0 | T94: 0 | V94: 0 | AB94: 0 | AC94: 626 | AD94: 9 | AE94: 88 | AF94: 10 | AG94: 15 | AH94: 0.4 | AJ94: 0.011 | AK94: 0.08 | AL94: 0.2 | AM94: 0 | AN94: 0 | AO94: 0 | AP94: 0 | AR94: 0 | AS94: 0 | AT94: 0.01 | AU94: 0.1 | AW94: 0.02 | AX94: 0 | AY94: 1 | BA94: 88.9
A95: ALCOHOLIC BEV,WINE,DSSRT,DRY | C95: 14536 | D95: 152 | E95: 0.2 | F95: 0 | G95: 11.67 | H95: 1.09 | J95: 0 | K95: 0 | T95: 0 | V95: 0 | AB95: 0 | AC95: 9 | AD95: 8 | AE95: 92 | AF95: 9 | AG95: 9 | AH95: 0.24 | AJ95: 0.045 | AK95: 0.07 | AL95: 0.5 | AM95: 0 | AO95: 0 | AP95: 0 | AR95: 0 | AS95: 0.018 | AT95: 0.018 | AU95: 0.213 | AV95: 0.032 | AW95: 0 | AX95: 0 | AY95: 0 | BA95: 72.53
A96: ALCOHOLIC BEV,WINE,DSSRT,SWT | C96: 14057 | D96: 160 | E96: 0.2 | F96: 0 | G96: 13.69 | H96: 7.78 | J96: 0 | K96: 0 | T96: 0 | V96: 0 | AB96: 0 | AC96: 9 | AD96: 8 | AE96: 92 | AF96: 9 | AG96: 9 | AH96: 0.24 | AJ96: 0.045 | AK96: 0.07 | AL96: 0.5 | AM96: 0 | AN96: 0 | AO96: 0 | AP96: 0 | AR96: 0 | AS96: 0.018 | AT96: 0.018 | AU96: 0.213 | AV96: 0.032 | AW96: 0 | AX96: 0 | AY96: 0 | BA96: 70.51
A97: ALCOHOLIC BEV,WINE,LT | C97: 43155 | D97: 49 | E97: 0.07 | F97: 0 | G97: 1.17 | H97: 1.15 | J97: 0 | K97: 0 | T97: 0 | V97: 0 | AB97: 0 | AC97: 7 | AD97: 9 | AE97: 88 | AF97: 10 | AG97: 15 | AH97: 0.4 | AJ97: 0.011 | AK97: 0.08 | AL97: 0.2 | AM97: 0 | AN97: 0 | AO97: 0 | AP97: 0 | AR97: 0 | AS97: 0 | AT97: 0.01 | AU97: 0.1 | AW97: 0.02 | AX97: 0 | AY97: 1 | BA97: 92.23
A98: ALCOHOLIC BEV,WINE,TABLE,ALL | C98: 14084 | D98: 83 | E98: 0.07 | F98: 0 | G98: 2.72 | H98: 0.79 | J98: 0 | K98: 0 | T98: 0 | V98: 0 | AB98: 0 | AC98: 5 | AD98: 8 | AE98: 99 | AF98: 11 | AG98: 20 | AH98: 0.37 | AJ98: 0.007 | AK98: 0.13 | AL98: 0.2 | AM98: 0 | AN98: 0 | AO98: 0 | AP98: 0 | AR98: 0 | AS98: 0.005 | AT98: 0.023 | AU98: 0.166 | AV98: 0.037 | AW98: 0.054 | AX98: 0 | AY98: 1 | BA98: 86.58
A99: ALCOHOLIC BEV,WINE,TABLE,RED | C99: 14096 | D99: 85 | E99: 0.07 | F99: 0 | G99: 2.61 | H99: 0.62 | J99: 0 | K99: 0 | T99: 0 | V99: 0 | AB99: 0 | AC99: 4 | AD99: 8 | AE99: 127 | AF99: 12 | AG99: 23 | AH99: 0.46 | AJ99: 0.011 | AK99: 0.14 | AL99: 0.2 | AM99: 0 | AN99: 0 | AO99: 0 | AP99: 0.4 | AR99: 0 | AS99: 0.005 | AT99: 0.031 | AU99: 0.224 | AV99: 0.03 | AW99: 0.057 | AX99: 0 | AY99: 1 | BA99: 86.49
A100: ALCOHOLIC BEV,WINE,TABLE,RED,BARBERA | C100: 14101 | D100: 85 | E100: 0.07 | F100: 0 | G100: 2.79 | BA100: 86.29
A101: ALCOHOLIC BEV,WINE,TABLE,RED,BURGUNDY | C101: 14152 | D101: 86 | E101: 0.07 | F101: 0 | G101: 3.69 | BA101: 85.62
A102: ALCOHOLIC BEV,WINE,TABLE,RED,CABERNET FRANC | C102: 14098 | D102: 83 | E102: 0.07 | F102: 0 | G102: 2.45 | BA102: 86.59
A103: ALCOHOLIC BEV,WINE,TABLE,RED,CABERNET SAUVIGNON | C103: 14097 | D103: 83 | E103: 0.07 | F103: 0 | G103: 2.6 | BA103: 86.56
A104: ALCOHOLIC BEV,WINE,TABLE,RED,CARIGNANE | C104: 14109 | D104: 74 | E104: 0.07 | F104: 0 | G104: 2.4 | BA104: 87.88
A105: ALCOHOLIC BEV,WINE,TABLE,RED,CLARET | C105: 14105 | D105: 83 | E105: 0.07 | F105: 0 | G105: 3.01 | BA105: 86.38
A106: ALCOHOLIC BEV,WINE,TABLE,RED,GAMAY | C106: 14158 | D106: 78 | E106: 0.07 | F106: 0 | G106: 2.38 | BA106: 87.49
A107: ALCOHOLIC BEV,WINE,TABLE,RED,LEMBERGER | C107: 14107 | D107: 80 | E107: 0.07 | F107: 0 | G107: 2.46 | BA107: 87.02
A108: ALCOHOLIC BEV,WINE,TABLE,RED,MERLOT | C108: 14602 | D108: 83 | E108: 0.07 | F108: 0 | G108: 2.51 | H108: 0.62 | J108: 0 | AC108: 4 | AD108: 8 | AE108: 127 | AF108: 12 | AG108: 23 | AH108: 0.46 | AJ108: 0.011 | AK108: 0.14 | AL108: 0.2 | AR108: 0 | AS108: 0.005 | AT108: 0.031 | AU108: 0.224 | AV108: 0.03 | AW108: 0.057 | AX108: 0 | AY108: 1 | BA108: 86.59
A109: ALCOHOLIC BEV,WINE,TABLE,RED,MOUVEDRE | C109: 14159 | D109: 88 | E109: 0.07 | F109: 0 | G109: 2.64 | BA109: 85.81
A110: ALCOHOLIC BEV,WINE,TABLE,RED,PETITE SIRAH | C110: 14103 | D110: 85 | E110: 0.07 | F110: 0 | G110: 2.68 | BA110: 86.22
A111: ALCOHOLIC BEV,WINE,TABLE,RED,PINOT NOIR | C111: 14099 | D111: 82 | E111: 0.07 | F111: 0 | G111: 2.31 | BA111: 86.94
A112: ALCOHOLIC BEV,WINE,TABLE,RED,SANGIOVESE | C112: 14108 | D112: 86 | E112: 0.07 | F112: 0 | G112: 2.62 | BA112: 86.17
A113: ALCOHOLIC BEV,WINE,TABLE,RED,SYRAH | C113: 14100 | D113: 83 | E113: 0.07 | F113: 0 | G113: 2.58 | BA113: 86.53
A114: ALCOHOLIC BEV,WINE,TABLE,RED,ZINFANDEL | C114: 14102 | D114: 88 | E114: 0.07 | F114: 0 | G114: 2.86 | BA114: 85.71
A115: ALCOHOLIC BEV,WINE,TABLE,WHITE | C115: 14106 | D115: 82 | E115: 0.07 | F115: 0 | G115: 2.6 | H115: 0.96 | J115: 0 | K115: 0 | T115: 0 | V115: 0 | AB115: 0 | AC115: 5 | AD115: 9 | AE115: 71 | AF115: 10 | AG115: 18 | AH115: 0.27 | AJ115: 0.004 | AK115: 0.12 | AL115: 0.1 | AM115: 0 | AN115: 0 | AO115: 0 | AP115: 0.4 | AR115: 0 | AS115: 0.005 | AT115: 0.015 | AU115: 0.108 | AV115: 0.045 | AW115: 0.05 | AX115: 0 | AY115: 1 | BA115: 86.86
A116: ALCOHOLIC BEV,WINE,TABLE,WHITE,CHARDONNAY | C116: 14160 | D116: 84 | E116: 0.07 | F116: 0 | G116: 2.16 | H116: 0.96 | J116: 0 | AC116: 5 | AD116: 9 | AE116: 71 | AF116: 10 | AG116: 18 | AH116: 0.27 | AJ116: 0.004 | AK116: 0.12 | AL116: 0.1 | AR116: 0 | AS116: 0.005 | AT116: 0.015 | AU116: 0.108 | AV116: 0.045 | AW116: 0.05 | AX116: 0 | AY116: 1 | BA116: 86.85
A117: ALCOHOLIC BEV,WINE,TABLE,WHITE,CHENIN BLANC | C117: 14116 | D117: 80 | E117: 0.07 | F117: 0 | G117: 3.31 | BA117: 86.78
A118: ALCOHOLIC BEV,WINE,TABLE,WHITE,FUME BLANC | C118: 14117 | D118: 82 | E118: 0.07 | F118: 0 | G118: 2.27 | BA118: 86.98
A119: ALCOHOLIC BEV,WINE,TABLE,WHITE,GEWURZTRAMINER | C119: 14124 | D119: 81 | E119: 0.07 | F119: 0 | G119: 2.6 | BA119: 87.03
A120: ALCOHOLIC BEV,WINE,TABLE,WHITE,LATE HARVEST | C120: 14135 | D120: 112 | E120: 0.07 | F120: 0 | G120: 13.39 | BA120: 77.76
A121: ALCOHOLIC BEV,WINE,TABLE,WHITE,LATE HARVEST,GEWURZTRAMINER | C121: 14125 | D121: 108 | E121: 0.07 | F121: 0 | G121: 11.39 | BA121: 79.4
A122: ALCOHOLIC BEV,WINE,TABLE,WHITE,MULLER THURGAU | C122: 14120 | D122: 76 | E122: 0.07 | F122: 0 | G122: 3.48 | BA122: 87.28
A123: ALCOHOLIC BEV,WINE,TABLE,WHITE,MUSCAT | C123: 14140 | D123: 82 | E123: 0.07 | F123: 0 | G123: 5.23 | BA123: 85.69
A124: ALCOHOLIC BEV,WINE,TABLE,WHITE,PINOT BLANC | C124: 14138 | D124: 81 | E124: 0.07 | F124: 0 | G124: 1.94 | BA124: 87.14
A125: ALCOHOLIC BEV,WINE,TABLE,WHITE,PINOT GRIS (GRIGIO) | C125: 14113 | D125: 83 | E125: 0.07 | F125: 0 | G125: 2.06 | BA125: 86.98
A126: ALCOHOLIC BEV,WINE,TABLE,WHITE,RIESLING | C126: 14132 | D126: 80 | E126: 0.07 | F126: 0 | G126: 3.74 | BA126: 86.56
A127: ALCOHOLIC BEV,WINE,TABLE,WHITE,SAUVIGNON BLANC | C127: 14134 | D127: 81 | E127: 0.07 | F127: 0 | G127: 2.05 | BA127: 87.16
A128: ALCOHOLIC BEV,WINE,TABLE,WHITE,SEMILLON | C128: 14126 | D128: 82 | E128: 0.07 | F128: 0 | G128: 3.12 | BA128: 86.54
A129: ALCOHOLIC BEVERAGES,BEER,HIGHER ALCOHOL | C129: 14251 | D129: 58 | E129: 0.9 | F129: 0 | G129: 0.27 | H129: 0 | J129: 0 | K129: 0 | T129: 0 | V129: 0 | AB129: 0 | AC129: 4 | AD129: 8 | AE129: 62 | AF129: 12 | AG129: 32 | AH129: 0.03 | AJ129: 0.008 | AK129: 0.01 | AL129: 0.6 | AM129: 0 | AN129: 0 | AO129: 0 | AP129: 0 | AR129: 0 | AS129: 0.03 | AT129: 0.09 | AU129: 1.1 | AV129: 0.21 | AW129: 0.09 | AX129: 0.02 | AY129: 18 | BA129: 91
A130: ALCOHOLIC BEVERAGES,WINE,ROSE | C130: 14253 | D130: 83 | E130: 0.36 | F130: 0 | G130: 3.8 | H130: 3.8 | J130: 0 | K130: 0 | T130: 0 | V130: 0 | AB130: 0 | AC130: 5 | AD130: 10 | AE130: 59 | AF130: 10 | AG130: 18 | AH130: 0.2 | AJ130: 0.005 | AK130: 0.11 | AL130: 0.2 | AM130: 0 | AN130: 0 | AO130: 0 | AP130: 0 | AR130: 0 | AS130: 0.02 | AT130: 0.015 | AU130: 0.09 | AV130: 0.148 | AW130: 0.037 | AX130: 0.01 | AY130: 1 | BA130: 86.4
A131: Alcool pur | B131: Liqueurs et alcools | C131: 1014 | D131: 660 | E131: 0 | F131: 0 | G131: 0 | H131: 0 | I131: 0 | J131: 0 | K131: 0 | L131: 0 | M131: 0 | N131: 0 | O131: 0 | P131: 0 | Q131: 0 | R131: 0 | S131: 0 | T131: 0 | U131: 0 | V131: 0 | W131: 0 | X131: 0 | Y131: 0 | Z131: 0 | AA131: 0 | AB131: 0 | AC131: 0 | AD131: 0 | AE131: 0 | AF131: 0 | AG131: 0 | AH131: 0 | AI131: 1 | AJ131: 0 | AK131: 0 | AL131: 0 | AM131: 0 | AN131: 0 | AO131: 0 | AP131: 0 | AQ131: 0 | AR131: 0 | AS131: 0 | AT131: 0 | AU131: 0 | AV131: 0 | AW131: 0 | AX131: 0 | AY131: 0 | AZ131: 94.3 | BA131: 0
A132: ALFALFA SEEDS,SPROUTED,RAW | C132: 11001 | D132: 23 | E132: 3.99 | F132: 0.69 | G132: 2.1 | H132: 0.2 | J132: 1.9 | K132: 0.069 | T132: 0.056 | V132: 0.409 | AB132: 0 | AC132: 6 | AD132: 32 | AE132: 79 | AF132: 27 | AG132: 70 | AH132: 0.96 | AJ132: 0.157 | AK132: 0.92 | AL132: 0.6 | AM132: 8 | AN132: 0 | AO132: 0.02 | AP132: 30.5 | AR132: 8.2 | AS132: 0.076 | AT132: 0.126 | AU132: 0.481 | AV132: 0.563 | AW132: 0.034 | AX132: 0 | AY132: 36 | BA132: 92.82
A133: Aligot (purée de pomme de terre à la tomme fraîche) | B133: Plats de fromage | C133: 4041 | D133: 191 | E133: 8.55 | F133: 12.9 | G133: 9.5 | H133: 0 | I133: 0 | J133: 1.55 | K133: 9.05 | L133: 0 | M133: 0 | N133: 0 | O133: 0 | P133: 0 | Q133: 0 | R133: 0 | S133: 0 | T133: 0 | U133: 0 | V133: 0 | W133: 0 | X133: 0 | Y133: 0 | Z133: 0 | AA133: 0 | AB133: 0 | AC133: 320 | AD133: 0 | AE133: 0 | AF133: 0 | AG133: 0 | AH133: 0 | AI133: 0 | AJ133: 0 | AK133: 0 | AL133: 0 | AM133: 0 | AN133: 0 | AO133: 0 | AP133: 0 | AQ133: 0 | AR133: 0 | AS133: 0 | AT133: 0 | AU133: 0 | AV133: 0 | AW133: 0 | AX133: 0 | AY133: 0 | AZ133: 0 | BA133: 0
A134: ALLSPICE,GROUND | C134: 2001 | D134: 263 | E134: 6.09 | F134: 8.69 | G134: 72.12 | J134: 21.6 | K134: 2.55 | T134: 0.66 | V134: 2.36 | AB134: 0 | AC134: 77 | AD134: 661 | AE134: 1044 | AF134: 135 | AG134: 113 | AH134: 7.06 | AJ134: 0.553 | AK134: 1.01 | AL134: 2.7 | AM134: 27 | AN134: 0 | AR134: 39.2 | AS134: 0.101 | AT134: 0.063 | AU134: 2.86 | AW134: 0.21 | AX134: 0 | AY134: 36 | BA134: 8.46
A135: ALMOND BUTTER,PLN,W/SALT | C135: 12695 | D135: 614 | E135: 20.96 | F135: 55.5 | G135: 18.82 | H135: 6.27 | J135: 10.3 | K135: 6.55 | T135: 32.445 | V135: 13.613 | AB135: 0 | AC135: 227 | AD135: 347 | AE135: 748 | AF135: 279 | AG135: 508 | AH135: 3.49 | AJ135: 0.934 | AK135: 3.29 | AL135: 2.4 | AM135: 0 | AN135: 0 | AO135: 24.21 | AP135: 0 | AR135: 0 | AS135: 0.041 | AT135: 0.939 | AU135: 3.155 | AV135: 0.318 | AW135: 0.103 | AX135: 0 | AY135: 53 | BA135: 1.64
A136: ALMOND BUTTER,PLN,WO/SALT | C136: 12195 | D136: 614 | E136: 20.96 | F136: 55.5 | G136: 18.82 | H136: 4.43 | J136: 10.3 | K136: 4.152 | T136: 32.445 | V136: 13.613 | AB136: 0 | AC136: 7 | AD136: 347 | AE136: 748 | AF136: 279 | AG136: 508 | AH136: 3.49 | AJ136: 0.934 | AK136: 3.29 | AL136: 2.4 | AM136: 0 | AN136: 0 | AO136: 24.21 | AP136: 0 | AR136: 0 | AS136: 0.041 | AT136: 0.939 | AU136: 3.155 | AV136: 0.318 | AW136: 0.103 | AX136: 0 | AY136: 53 | BA136: 1.64
A137: ALMOND PASTE | C137: 12071 | D137: 458 | E137: 9 | F137: 27.74 | G137: 47.81 | H137: 36.25 | J137: 4.8 | K137: 2.629 | T137: 18.012 | V137: 5.821 | AB137: 0 | AC137: 9 | AD137: 172 | AE137: 314 | AF137: 130 | AG137: 258 | AH137: 1.6 | AJ137: 0.454 | AK137: 1.48 | AL137: 4.2 | AM137: 0 | AN137: 0 | AO137: 13.54 | AP137: 0 | AR137: 0.1 | AS137: 0.082 | AT137: 0.414 | AU137: 1.422 | AV137: 0.113 | AW137: 0.036 | AX137: 0 | AY137: 73 | BA137: 14.08
A138: ALMONDS | C138: 12061 | D138: 579 | E138: 21.15 | F138: 49.93 | G138: 21.55 | H138: 4.35 | J138: 12.5 | K138: 3.802 | T138: 31.551 | V138: 12.329 | AB138: 0 | AC138: 1 | AD138: 269 | AE138: 733 | AF138: 270 | AG138: 481 | AH138: 3.71 | AJ138: 1.031 | AK138: 3.12 | AL138: 4.1 | AM138: 0 | AN138: 0 | AO138: 25.63 | AP138: 0 | AR138: 0 | AS138: 0.205 | AT138: 1.138 | AU138: 3.618 | AV138: 0.471 | AW138: 0.137 | AX138: 0 | AY138: 44 | BA138: 4.41
A139: ALMONDS,BLANCHED | C139: 12062 | D139: 590 | E139: 21.4 | F139: 52.52 | G139: 18.67 | H139: 4.63 | J139: 9.9 | K139: 3.953 | T139: 33.415 | V139: 12.368 | AB139: 0 | AC139: 19 | AD139: 236 | AE139: 659 | AF139: 268 | AG139: 481 | AH139: 3.28 | AJ139: 1.027 | AK139: 2.97 | AL139: 3.2 | AM139: 0 | AN139: 0 | AO139: 23.75 | AP139: 0 | AR139: 0 | AS139: 0.191 | AT139: 0.711 | AU139: 3.5 | AV139: 0.314 | AW139: 0.115 | AX139: 0 | AY139: 49 | BA139: 4.51
A140: ALMONDS,DRY RSTD,W/SALT | C140: 12563 | D140: 598 | E140: 20.96 | F140: 52.54 | G140: 21.01 | H140: 4.86 | J140: 10.9 | K140: 4.092 | T140: 33.076 | V140: 12.955 | AB140: 0 | AC140: 498 | AD140: 268 | AE140: 713 | AF140: 279 | AG140: 471 | AH140: 3.73 | AJ140: 1.099 | AK140: 3.31 | AL140: 2 | AM140: 0 | AN140: 0 | AO140: 23.9 | AP140: 0 | AR140: 0 | AS140: 0.077 | AT140: 1.197 | AU140: 3.637 | AV140: 0.321 | AW140: 0.136 | AX140: 0 | AY140: 55 | BA140: 2.41
A141: ALMONDS,DRY RSTD,WO/SALT | C141: 12063 | D141: 598 | E141: 20.96 | F141: 52.54 | G141: 21.01 | H141: 4.86 | J141: 10.9 | K141: 4.092 | T141: 33.076 | V141: 12.955 | AB141: 0 | AC141: 3 | AD141: 268 | AE141: 713 | AF141: 279 | AG141: 471 | AH141: 3.73 | AJ141: 1.099 | AK141: 3.31 | AL141: 2 | AM141: 0 | AN141: 0 | AO141: 23.9 | AP141: 0 | AR141: 0 | AS141: 0.077 | AT141: 1.197 | AU141: 3.637 | AV141: 0.321 | AW141: 0.136 | AX141: 0 | AY141: 55 | BA141: 2.41
A142: ALMONDS,HONEY RSTD,UNBLANCHED | C142: 12206 | D142: 594 | E142: 18.17 | F142: 49.9 | G142: 27.9 | J142: 13.7 | K142: 4.73 | T142: 32.402 | V142: 10.472 | AB142: 0 | AC142: 130 | AD142: 263 | AE142: 560 | AF142: 240 | AG142: 400 | AH142: 2.83 | AJ142: 0.97 | AK142: 2.6 | AM142: 0 | AN142: 0 | AR142: 0.7 | AS142: 0.114 | AT142: 0.953 | AU142: 2.819 | AV142: 0.258 | AW142: 0.085 | AX142: 0 | AY142: 32 | BA142: 1.7
A143: ALMONDS,OIL RSTD,W/SALT | C143: 12565 | D143: 607 | E143: 21.23 | F143: 55.17 | G143: 17.68 | H143: 4.55 | J143: 10.5 | K143: 4.208 | T143: 34.793 | V143: 13.519 | AB143: 0 | AC143: 339 | AD143: 291 | AE143: 699 | AF143: 274 | AG143: 466 | AH143: 3.68 | AJ143: 0.955 | AK143: 3.07 | AL143: 4.1 | AM143: 0 | AN143: 0 | AO143: 25.97 | AP143: 0 | AR143: 0 | AS143: 0.092 | AT143: 0.781 | AU143: 3.665 | AV143: 0.229 | AW143: 0.118 | AX143: 0 | AY143: 27 | BA143: 2.8
A144: ALMONDS,OIL RSTD,WO/SALT | C144: 12065 | D144: 607 | E144: 21.23 | F144: 55.17 | G144: 17.68 | H144: 4.55 | J144: 10.5 | K144: 4.208 | T144: 34.793 | V144: 13.519 | AB144: 0 | AC144: 1 | AD144: 291 | AE144: 699 | AF144: 274 | AG144: 466 | AH144: 3.68 | AJ144: 0.955 | AK144: 3.07 | AL144: 4.1 | AM144: 0 | AN144: 0 | AO144: 25.97 | AP144: 0 | AR144: 0 | AS144: 0.092 | AT144: 0.781 | AU144: 3.665 | AV144: 0.229 | AW144: 0.118 | AX144: 0 | AY144: 27 | BA144: 2.8
A145: Amande (avec peau) | B145: Graines oléagineuses et châtaignes | C145: 15000 | D145: 613 | E145: 30.6 | F145: 53.4 | G145: 1.5 | H145: 1.08 | I145: 0.414 | J145: 12.6 | K145: 4.04 | L145: 0 | M145: 0 | N145: 0 | O145: 0 | P145: 0 | Q145: 0.0506 | R145: 3.29 | S145: 0.649 | T145: 32.4 | U145: 32.4 | V145: 14.8 | W145: 0.0506 | X145: 0 | Y145: 0 | Z145: 0 | AA145: 12.4 | AB145: 1.19 | AC145: 1.61 | AD145: 248 | AE145: 668 | AF145: 232 | AG145: 416 | AH145: 3 | AI145: 5.7 | AJ145: 1.07 | AK145: 3.29 | AL145: 2.2 | AM145: 0.08333333333 | AN145: 0 | AO145: 14.6 | AP145: 0 | AQ145: 0 | AR145: 0.5 | AS145: 0.183 | AT145: 0.906 | AU145: 3.39 | AV145: 0.28 | AW145: 0.127 | AX145: 0 | AY145: 93.1 | AZ145: 0 | BA145: 4.19
A146: Amande (avec peau) | B146: Fruits à coques et graines oléagineuses | C146: 15000 | D146: 634 | E146: 21.1 | F146: 53.4 | G146: 7.85 | H146: 4.4 | I146: 0.6 | J146: 10.2 | K146: 4.19 | L146: 0.005 | M146: 0.005 | N146: 0.005 | O146: 1.5 | P146: 0.0033 | Q146: 0.017 | R146: 2.19 | S146: 0.48 | T146: 31.8 | U146: 31.5 | V146: 13.5 | W146: 0.052 | X146: 0.005 | Y146: 0.005 | Z146: 0.01 | AA146: 11.6 | AB146: 0.89 | AC146: 1.61 | AD146: 248 | AE146: 668 | AF146: 232 | AG146: 416 | AH146: 3 | AI146: 5.7 | AJ146: 0.9 | AK146: 2.85 | AL146: 2.2 | AM146: 0.1666666667 | AN146: 0 | AO146: 14.6 | AP146: 0 | AQ146: 0 | AR146: 0.5 | AS146: 0.18 | AT146: 0.91 | AU146: 3.4 | AV146: 0.28 | AW146: 0.11 | AX146: 0 | AY146: 93.1 | AZ146: 0 | BA146: 4.58
A147: Amande, grillée, salée | B147: Fruits à coques et graines oléagineuses | C147: 15042 | D147: 638 | E147: 21.1 | F147: 53.9 | G147: 8.72 | H147: 4.86 | I147: 0.73 | J147: 10.9 | K147: 4.09 | L147: 0 | M147: 0 | N147: 0 | O147: 0 | P147: 0 | Q147: 0.019 | R147: 3.35 | S147: 0.7 | T147: 33.1 | U147: 32.7 | V147: 13 | W147: 0.006 | X147: 0 | Y147: 0 | Z147: 0 | AA147: 12.9 | AB147: 0 | AC147: 498 | AD147: 268 | AE147: 713 | AF147: 279 | AG147: 471 | AH147: 3.73 | AI147: 0 | AJ147: 1.1 | AK147: 3.31 | AL147: 0 | AM147: 0.1666666667 | AN147: 0 | AO147: 23.9 | AP147: 0 | AQ147: 0 | AR147: 0 | AS147: 0.077 | AT147: 1.2 | AU147: 3.64 | AV147: 0.32 | AW147: 0.14 | AX147: 0 | AY147: 55 | AZ147: 0 | BA147: 2.41
A148: Amande, mondée, émondée ou blanchie | B148: Fruits à coques et graines oléagineuses | C148: 15041 | D148: 636 | E148: 21.4 | F148: 52.5 | G148: 10.6 | H148: 4.63 | I148: 1 | J148: 8.75 | K148: 3.95 | L148: 0 | M148: 0 | N148: 0 | O148: 0 | P148: 0 | Q148: 0 | R148: 3.27 | S148: 0.67 | T148: 33.4 | U148: 0 | V148: 12.4 | W148: 0 | X148: 0 | Y148: 0 | Z148: 0 | AA148: 0 | AB148: 0 | AC148: 19 | AD148: 236 | AE148: 659 | AF148: 268 | AG148: 481 | AH148: 3.28 | AI148: 0 | AJ148: 1.03 | AK148: 2.97 | AL148: 0 | AM148: 0.6666666667 | AN148: 0 | AO148: 23.8 | AP148: 0 | AQ148: 0 | AR148: 0 | AS148: 0.19 | AT148: 0.71 | AU148: 3.5 | AV148: 0.31 | AW148: 0.12 | AX148: 0 | AY148: 49 | AZ148: 0 | BA148: 3.81
A149: Amarante, crue | B149: Riz et graines crus | C149: 9345 | D149: 362 | E149: 14 | F149: 6.77 | G149: 54.8 | H149: 1.57 | I149: 53.2 | J149: 11 | K149: 1.56 | L149: 0 | M149: 0 | N149: 0 | O149: 0 | P149: 0 | Q149: 0.011 | R149: 1.22 | S149: 0.22 | T149: 1.56 | U149: 1.43 | V149: 2.83 | W149: 0.049 | X149: 0 | Y149: 0 | Z149: 0 | AA149: 2.79 | AB149: 0 | AC149: 12.5 | AD149: 156 | AE149: 437 | AF149: 257 | AG149: 506 | AH149: 7.6 | AI149: 0 | AJ149: 0.65 | AK149: 3.03 | AL149: 0 | AM149: 0.1666666667 | AN149: 0 | AO149: 1.19 | AP149: 0 | AQ149: 0 | AR149: 4.2 | AS149: 0.098 | AT149: 0.2 | AU149: 1.1 | AV149: 1.25 | AW149: 0.41 | AX149: 0 | AY149: 65.5 | AZ149: 0 | BA149: 10.6
A150: AMARANTH GRAIN,CKD | C150: 20002 | D150: 102 | E150: 3.8 | F150: 1.58 | G150: 18.69 | J150: 2.1 | AC150: 6 | AD150: 47 | AE150: 135 | AF150: 65 | AG150: 148 | AH150: 2.1 | AJ150: 0.149 | AK150: 0.86 | AL150: 5.5 | AO150: 0.19 | AS150: 0.015 | AT150: 0.022 | AU150: 0.235 | AW150: 0.113 | AY150: 22 | BA150: 75.16
A151: AMARANTH GRAIN,UNCKD | C151: 20001 | D151: 371 | E151: 13.56 | F151: 7.02 | G151: 65.25 | H151: 1.69 | J151: 6.7 | K151: 1.459 | T151: 1.685 | V151: 2.778 | AB151: 0 | AC151: 4 | AD151: 159 | AE151: 508 | AF151: 248 | AG151: 557 | AH151: 7.61 | AJ151: 0.525 | AK151: 2.87 | AL151: 18.7 | AM151: 0 | AN151: 0 | AO151: 1.19 | AP151: 0 | AR151: 4.2 | AS151: 0.116 | AT151: 0.2 | AU151: 0.923 | AV151: 1.457 | AW151: 0.591 | AX151: 0 | AY151: 82 | BA151: 11.29
A152: AMARANTH LEAVES,CKD,BLD,DRND,W/SALT | C152: 11700 | D152: 21 | E152: 2.11 | F152: 0.18 | G152: 4.11 | K152: 0.05 | T152: 0.041 | V152: 0.08 | AB152: 0 | AC152: 257 | AD152: 209 | AE152: 641 | AF152: 55 | AG152: 72 | AH152: 2.26 | AJ152: 0.158 | AK152: 0.88 | AL152: 0.9 | AM152: 139 | AN152: 0 | AR152: 41.1 | AS152: 0.02 | AT152: 0.134 | AU152: 0.559 | AV152: 0.062 | AW152: 0.177 | AX152: 0 | AY152: 57 | BA152: 91.49
A153: AMARANTH LEAVES,CKD,BLD,DRND,WO/SALT | C153: 11004 | D153: 21 | E153: 2.11 | F153: 0.18 | G153: 4.11 | K153: 0.05 | T153: 0.041 | V153: 0.08 | AB153: 0 | AC153: 21 | AD153: 209 | AE153: 641 | AF153: 55 | AG153: 72 | AH153: 2.26 | AJ153: 0.158 | AK153: 0.88 | AL153: 0.9 | AM153: 139 | AN153: 0 | AR153: 41.1 | AS153: 0.02 | AT153: 0.134 | AU153: 0.559 | AV153: 0.062 | AW153: 0.177 | AX153: 0 | AY153: 57 | BA153: 91.49
A154: AMARANTH LEAVES,RAW | C154: 11003 | D154: 23 | E154: 2.46 | F154: 0.33 | G154: 4.02 | K154: 0.091 | T154: 0.076 | V154: 0.147 | AB154: 0 | AC154: 20 | AD154: 215 | AE154: 611 | AF154: 55 | AG154: 50 | AH154: 2.32 | AJ154: 0.162 | AK154: 0.9 | AL154: 0.9 | AM154: 146 | AN154: 0 | AP154: 1140 | AR154: 43.3 | AS154: 0.027 | AT154: 0.158 | AU154: 0.658 | AV154: 0.064 | AW154: 0.192 | AX154: 0 | AY154: 85 | BA154: 91.69
A155: Amaranth, Red, raw | B155: Rau giền đỏ | D155: 40.7 | E155: 3.3 | F155: 0.3 | G155: 6.2 | J155: 1.6 | AD155: 288 | AH155: 5.4 | AK155: 0.5 | AM155: 340 | AR155: 89 | AS155: 0.08 | AT155: 1.16 | AU155: 1.4 | AW155: 0.192 | AX155: 0 | AY155: 85 | BA155: 86.2
A156: Amaranth, spineless, raw | B156: Rau giền cơm | D156: 19.2 | E156: 3.4 | F156: 0 | G156: 1.4 | J156: 1.6 | AD156: 341 | AH156: 4.1 | AK156: 0.9 | AM156: 441.6666667 | AR156: 63 | AS156: 0.36 | AT156: 1.3 | AU156: 1.3 | AW156: 0.192 | AX156: 0 | AY156: 85 | BA156: 92
A157: Amaranth, White, raw | B157: Rau giền trắng | D157: 41.6 | E157: 3.2 | F157: 0.4 | G157: 6.3 | J157: 1.5 | AD157: 288 | AH157: 6.1 | AK157: 0.9 | AM157: 237.9166667 | AR157: 27 | AS157: 0.08 | AT157: 0.28 | AU157: 0.3 | AW157: 0.192 | AX157: 0 | AY157: 85 | BA157: 86.7
A158: Amidon de maïs ou fécule de maïs | B158: Farines et amidons | C158: 9510 | D158: 364 | E158: 0.43 | F158: 0.25 | G158: 89.6 | H158: 0 | I158: 87 | J158: 0.87 | K158: 0.009 | L158: 0 | M158: 0 | N158: 0 | O158: 0 | P158: 0 | Q158: 0 | R158: 0.0081 | S158: 0.0009 | T158: 0.016 | U158: 0 | V158: 0.025 | W158: 0 | X158: 0 | Y158: 0 | Z158: 0 | AA158: 0 | AB158: 0 | AC158: 10.2 | AD158: 6 | AE158: 4 | AF158: 3.5 | AG158: 56 | AH158: 0.38 | AI158: 0.6 | AJ158: 0.05 | AK158: 0.28 | AL158: 2.8 | AM158: 0 | AN158: 0 | AO158: 0 | AP158: 0 | AQ158: 0 | AR158: 0 | AS158: 0 | AT158: 0.008 | AU158: 0.03 | AV158: 0 | AW158: 0.005 | AX158: 0 | AY158: 1 | AZ158: 0 | BA158: 8.73
A159: Amidon de riz | B159: Farines et amidons | C159: 96781 | D159: 343 | E159: 0.6 | F159: 0 | G159: 85 | H159: 0 | I159: 0 | J159: 0 | K159: 0 | L159: 0 | M159: 0 | N159: 0 | O159: 0 | P159: 0 | Q159: 0 | R159: 0 | S159: 0 | T159: 0 | U159: 0 | V159: 0 | W159: 0 | X159: 0 | Y159: 0 | Z159: 0 | AA159: 0 | AB159: 0 | AC159: 0 | AD159: 0 | AE159: 0 | AF159: 0 | AG159: 0 | AH159: 0 | AI159: 0 | AJ159: 0 | AK159: 0 | AL159: 0 | AM159: 0 | AN159: 0 | AO159: 0 | AP159: 0 | AQ159: 0 | AR159: 0 | AS159: 0 | AT159: 0 | AU159: 0 | AV159: 0 | AW159: 0 | AX159: 0 | AY159: 0 | AZ159: 0 | BA159: 14.2
A160: Ananas au sirop et jus d'ananas, appertisé, égoutté | B160: Fruits appertisés, au sirop ou au jus | C160: 13716 | D160: 0 | E160: 0.5 | F160: 0.5 | G160: 13.6 | H160: 12.8 | I160: 0 | J160: 1.4 | K160: 0 | L160: 0.006 | M160: 0 | N160: 0 | O160: 0 | P160: 0 | Q160: 0 | R160: 0 | S160: 0 | T160: 0 | U160: 0 | V160: 0 | W160: 0 | X160: 0 | Y160: 0 | Z160: 0 | AA160: 0 | AB160: 0 | AC160: 1 | AD160: 11 | AE160: 130 | AF160: 12 | AG160: 7.8 | AH160: 0.19 | AI160: 20 | AJ160: 0.04 | AK160: 0.11 | AL160: 20 | AM160: 4.033333333 | AN160: 0 | AO160: 0 | AP160: 0.8 | AQ160: 0 | AR160: 4.99 | AS160: 0.063 | AT160: 0.01 | AU160: 2.2 | AV160: 0.067 | AW160: 0.076 | AX160: 0 | AY160: 13.5 | AZ160: 0 | BA160: 84.5
A161: Ananas au sirop et jus d'ananas, appertisé, non égoutté | B161: Fruits appertisés, au sirop ou au jus | C161: 13717 | D161: 0 | E161: 0.31 | F161: 0.067 | G161: 13.6 | H161: 12.6 | I161: 0 | J161: 0.83 | K161: 0 | L161: 0.006 | M161: 0 | N161: 0 | O161: 0 | P161: 0 | Q161: 0 | R161: 0 | S161: 0 | T161: 0 | U161: 0 | V161: 0 | W161: 0 | X161: 0 | Y161: 0 | Z161: 0 | AA161: 0 | AB161: 0 | AC161: 0.2 | AD161: 10.3 | AE161: 127 | AF161: 11.7 | AG161: 7.14 | AH161: 0.19 | AI161: 20 | AJ161: 0.033 | AK161: 0.11 | AL161: 20 | AM161: 2.65 | AN161: 0 | AO161: 0 | AP161: 0.8 | AQ161: 0 | AR161: 4.98 | AS161: 0.063 | AT161: 0.01 | AU161: 1.44 | AV161: 0.061 | AW161: 0.064 | AX161: 0 | AY161: 12.9 | AZ161: 0 | BA161: 83.7
A162: Ananas au sirop léger, appertisé, égoutté | B162: Fruits appertisés, au sirop ou au jus | C162: 13718 | D162: 0 | E162: 0.5 | F162: 0.5 | G162: 15.9 | H162: 15.9 | I162: 0 | J162: 1.6 | K162: 0 | L162: 0.006 | M162: 0 | N162: 0 | O162: 0 | P162: 0 | Q162: 0 | R162: 0 | S162: 0 | T162: 0 | U162: 0 | V162: 0 | W162: 0 | X162: 0 | Y162: 0 | Z162: 0 | AA162: 0 | AB162: 0 | AC162: 1.9 | AD162: 6.4 | AE162: 95 | AF162: 11 | AG162: 4.8 | AH162: 0.13 | AI162: 20 | AJ162: 0.04 | AK162: 0.05 | AL162: 20 | AM162: 3.283333333 | AN162: 0 | AO162: 0 | AP162: 0.8 | AQ162: 0 | AR162: 5.22 | AS162: 0.034 | AT162: 0.01 | AU162: 0.1 | AV162: 0.04 | AW162: 0.046 | AX162: 0 | AY162: 11.9 | AZ162: 0 | BA162: 82
A163: Ananas au sirop léger, appertisé, non égoutté | B163: Fruits appertisés, au sirop ou au jus | C163: 13719 | D163: 0 | E163: 0.27 | F163: 0.075 | G163: 16 | H163: 15.7 | I163: 0 | J163: 0.79 | K163: 0.009 | L163: 0.006 | M163: 0 | N163: 0 | O163: 0 | P163: 0 | Q163: 0 | R163: 0.005 | S163: 0.003 | T163: 0.013 | U163: 0 | V163: 0.04 | W163: 0 | X163: 0 | Y163: 0 | Z163: 0 | AA163: 0 | AB163: 0 | AC163: 1.86 | AD163: 5.77 | AE163: 101 | AF163: 11.4 | AG163: 4.06 | AH163: 0.12 | AI163: 20 | AJ163: 0.033 | AK163: 0.031 | AL163: 20 | AM163: 2.066666667 | AN163: 0 | AO163: 0.01 | AP163: 0.8 | AQ163: 0 | AR163: 5.11 | AS163: 0.037 | AT163: 0.01 | AU163: 0.1 | AV163: 0.03 | AW163: 0.029 | AX163: 0 | AY163: 11.8 | AZ163: 0 | BA163: 82.8
A164: Ananas au sirop, appertisé | B164: Fruits au sirop/au jus, compotes | C164: 13003 | D164: 81.9 | E164: 0.4 | F164: 0 | G164: 19.1 | H164: 17.6 | I164: 0 | J164: 0.85 | K164: 0 | L164: 0 | M164: 0 | N164: 0 | O164: 0 | P164: 0 | Q164: 0 | R164: 0 | S164: 0 | T164: 0 | U164: 0 | V164: 0 | W164: 0 | X164: 0 | Y164: 0 | Z164: 0 | AA164: 0 | AB164: 0 | AC164: 2 | AD164: 14.3 | AE164: 105 | AF164: 11.3 | AG164: 5 | AH164: 0.22 | AI164: 0 | AJ164: 0.0332 | AK164: 0.0646 | AL164: 0.005 | AM164: 6.666666667 | AN164: 0 | AO164: 0.08 | AP164: 0 | AQ164: 0 | AR164: 10.4 | AS164: 0.07 | AT164: 0.1 | AU164: 0.2 | AV164: 0.07 | AW164: 0.07 | AX164: 0 | AY164: 5.5 | AZ164: 0 | BA164: 78.6
A165: Ananas, frais, pulpe | B165: Fruits frais | C165: 13002 | D165: 52.6 | E165: 0.4 | F165: 0.2 | G165: 11 | H165: 9.24 | I165: 0 | J165: 1.52 | K165: 0.0045 | L165: 0 | M165: 0 | N165: 0 | O165: 0 | P165: 0 | Q165: 0 | R165: 0.00281 | S165: 0.00169 | T165: 0.0065 | U165: 0 | V165: 0.02 | W165: 0 | X165: 0 | Y165: 0 | Z165: 0 | AA165: 0 | AB165: 0 | AC165: 2.88 | AD165: 20.3 | AE165: 170 | AF165: 19.8 | AG165: 11 | AH165: 0.225 | AI165: 1.22 | AJ165: 0.076 | AK165: 0.667 | AL165: 0.28 | AM165: 6.416666667 | AN165: 0 | AO165: 0.1 | AP165: 0.7 | AQ165: 0 | AR165: 12 | AS165: 0.08 | AT165: 0.03 | AU165: 0.3 | AV165: 0.16 | AW165: 0.101 | AX165: 0 | AY165: 13.5 | AZ165: 0 | BA165: 85.8
A166: Ananas, jus à base de concentré | B166: Jus et nectars | C166: 2000 | D166: 47.8 | E166: 0.352 | F166: 0.1 | G166: 10.6 | H166: 10.6 | I166: 0 | J166: 0.5 | K166: 0.004 | L166: 0 | M166: 0 | N166: 0 | O166: 0 | P166: 0 | Q166: 0 | R166: 0.0025 | S166: 0.0015 | T166: 0.014 | U166: 0.012 | V166: 0.0425 | W166: 0.018 | X166: 0 | Y166: 0 | Z166: 0 | AA166: 0.024 | AB166: 0 | AC166: 3.33 | AD166: 79.9 | AE166: 145 | AF166: 15.3 | AG166: 9.69 | AH166: 0.155 | AI166: 1 | AJ166: 0.0295 | AK166: 0.0782 | AL166: 10 | AM166: 0.5 | AN166: 0 | AO166: 0.03 | AP166: 0.3 | AQ166: 0 | AR166: 24.9 | AS166: 0.0532 | AT166: 0.0204 | AU166: 0.199 | AV166: 0.056 | AW166: 0.07 | AX166: 0 | AY166: 14 | AZ166: 0 | BA166: 88.3
A167: Ananas, pulpe, cru | B167: Fruits crus | C167: 13002 | D167: 54.3 | E167: 0.52 | F167: 0.24 | G167: 11.3 | H167: 10.1 | I167: 0 | J167: 1.42 | K167: 0.009 | L167: 0 | M167: 0 | N167: 0 | O167: 0 | P167: 0 | Q167: 0 | R167: 0.005 | S167: 0.003 | T167: 0.013 | U167: 0 | V167: 0.04 | W167: 0 | X167: 0 | Y167: 0 | Z167: 0 | AA167: 0 | AB167: 0 | AC167: 0.97 | AD167: 21.5 | AE167: 142 | AF167: 20.3 | AG167: 11 | AH167: 0.25 | AI167: 1.2 | AJ167: 0.067 | AK167: 0.073 | AL167: 2.2 | AM167: 5.833333333 | AN167: 0 | AO167: 0.06 | AP167: 0.7 | AQ167: 0 | AR167: 36.4 | AS167: 0.08 | AT167: 0.026 | AU167: 0.35 | AV167: 0.19 | AW167: 0.1 | AX167: 0 | AY167: 15.1 | AZ167: 0 | BA167: 85.5
A168: Ananas, pur jus | B168: Jus et nectars | C168: 2073 | D168: 48.5 | E168: 0.3 | F168: 0.1 | G168: 11.6 | H168: 11.6 | I168: 0 | J168: 0.2 | K168: 0.004 | L168: 0 | M168: 0 | N168: 0 | O168: 0 | P168: 0 | Q168: 0 | R168: 0.0025 | S168: 0.0015 | T168: 0.014 | U168: 0.012 | V168: 0.0425 | W168: 0.018 | X168: 0 | Y168: 0 | Z168: 0 | AA168: 0.024 | AB168: 0 | AC168: 1.1 | AD168: 8.2 | AE168: 133 | AF168: 13.8 | AG168: 7.8 | AH168: 0.225 | AI168: 1 | AJ168: 0.04 | AK168: 0.08 | AL168: 1.1 | AM168: 0 | AN168: 0 | AO168: 0.02 | AP168: 0 | AQ168: 0 | AR168: 9.5 | AS168: 0.055 | AT168: 0.02 | AU168: 0.3 | AV168: 0.15 | AW168: 0.1 | AX168: 0 | AY168: 23 | AZ168: 0 | BA168: 86.3
A169: Anchois au sel (anchoité, semi0conserve) | B169: Produits à base de poissons appertisés | C169: 26177 | D169: 128 | E169: 25 | F169: 3.1 | G169: 0 | H169: 0 | I169: 0 | J169: 0 | K169: 0.82 | L169: 0 | M169: 0 | N169: 0 | O169: 0 | P169: 0 | Q169: 0 | R169: 0 | S169: 0 | T169: 0.76 | U169: 0 | V169: 1.05 | W169: 0 | X169: 0 | Y169: 0 | Z169: 0 | AA169: 0 | AB169: 70 | AC169: 3600 | AD169: 542 | AE169: 215 | AF169: 0 | AG169: 481 | AH169: 6.9 | AI169: 0 | AJ169: 0 | AK169: 1.7 | AL169: 0 | AM169: 55 | AN169: 4.6 | AO169: 0.29 | AP169: 0 | AQ169: 0 | AR169: 0 | AS169: 0.06 | AT169: 0.26 | AU169: 14 | AV169: 0 | AW169: 0.14 | AX169: 0 | AY169: 8 | AZ169: 0 | BA169: 0
A170: Anchois commun, cru | B170: Poissons et batraciens non transformés | C170: 26079 | D170: 109 | E170: 19.4 | F170: 3.48 | G170: 0 | H170: 0 | I170: 0 | J170: 0 | K170: 0.935 | L170: 0 | M170: 0 | N170: 0 | O170: 0.000107 | P170: 0.014 | Q170: 0.142 | R170: 0.569 | S170: 0.198 | T170: 0.634 | U170: 0.277 | V170: 0.767 | W170: 0.0384 | X170: 0.228 | Y170: 0.445 | Z170: 0.0287 | AA170: 0.0263 | AB170: 145 | AC170: 73 | AD170: 66.3 | AE170: 349 | AF170: 22.3 | AG170: 204 | AH170: 5.1 | AI170: 55 | AJ170: 0.058 | AK170: 0.62 | AL170: 21.2 | AM170: 65.7 | AN170: 11 | AO170: 0.29 | AP170: 0.1 | AQ170: 0 | AR170: 0 | AS170: 0.0633 | AT170: 0.343 | AU170: 12.2 | AV170: 0.645 | AW170: 0.142 | AX170: 0.62 | AY170: 9 | AZ170: 0 | BA170: 73.1
A171: Anchois commun, cru | B171: Poissons et batraciens crus | C171: 26079 | D171: 125 | E171: 20.4 | F171: 4.84 | G171: 0 | H171: 0 | I171: 0 | J171: 0 | K171: 1.11 | L171: 0 | M171: 0 | N171: 0 | O171: 0 | P171: 0.013 | Q171: 0.21 | R171: 0.64 | S171: 0.24 | T171: 0.84 | U171: 0.28 | V171: 1.22 | W171: 0.039 | X171: 0.36 | Y171: 0.72 | Z171: 0.043 | AA171: 0.056 | AB171: 47.5 | AC171: 104 | AD171: 147 | AE171: 383 | AF171: 41 | AG171: 174 | AH171: 3.25 | AI171: 30 | AJ171: 0.13 | AK171: 1.17 | AL171: 22.5 | AM171: 15 | AN171: 11 | AO171: 0.57 | AP171: 0.1 | AQ171: 0 | AR171: 0 | AS171: 0.055 | AT171: 0.26 | AU171: 14 | AV171: 0.65 | AW171: 0.14 | AX171: 0.62 | AY171: 9 | AZ171: 0 | BA171: 73.2
A172: Anchois commun, mariné | B172: Produits à base de poissons | C172: 26187 | D172: 136 | E172: 23.9 | F172: 3.26 | G172: 2.7 | H172: 2.7 | I172: 0 | J172: 0 | K172: 1.04 | L172: 0.0001 | M172: 0.0001 | N172: 0.0001 | O172: 0.0001 | P172: 0.004 | Q172: 0.113 | R172: 0.673 | S172: 0.121 | T172: 0.691 | U172: 0.568 | V172: 1.36 | W172: 0.0255 | X172: 0.35 | Y172: 0.543 | Z172: 0.0145 | AA172: 0.33 | AB172: 105 | AC172: 2230 | AD172: 120 | AE172: 159 | AF172: 101 | AG172: 148 | AH172: 2.8 | AI172: 8 | AJ172: 0.17 | AK172: 1.95 | AL172: 46 | AM172: 11 | AN172: 2.4 | AO172: 1.1 | AP172: 0 | AQ172: 0 | AR172: 0 | AS172: 0.04 | AT172: 0.2 | AU172: 2.75 | AV172: 0.41 | AW172: 0.18 | AX172: 15.3 | AY172: 37 | AZ172: 0 | BA172: 60.2
A173: Anchois commun, mariné | B173: Autres produits à base de poisson (entrées) | C173: 26187 | D173: 136 | E173: 23.9 | F173: 3.26 | G173: 2.7 | H173: 0 | I173: 0 | J173: 0 | K173: 0.99 | L173: 0.003 | M173: 0.003 | N173: 0.003 | O173: 0.003 | P173: 0.004 | Q173: 0.11 | R173: 0.64 | S173: 0.12 | T173: 0.65 | U173: 0.54 | V173: 1.29 | W173: 0.024 | X173: 0.35 | Y173: 0.54 | Z173: 0.014 | AA173: 0.31 | AB173: 105 | AC173: 2230 | AD173: 120 | AE173: 159 | AF173: 102 | AG173: 148 | AH173: 2.8 | AI173: 8 | AJ173: 0.17 | AK173: 1.95 | AL173: 46 | AM173: 11 | AN173: 2.4 | AO173: 1.1 | AP173: 0 | AQ173: 0 | AR173: 0 | AS173: 0.04 | AT173: 0.2 | AU173: 2.75 | AV173: 0.41 | AW173: 0.18 | AX173: 15.3 | AY173: 37 | AZ173: 0 | BA173: 60.2
A174: Anchois, filets à l'huile, semi0conserve, égoutté | B174: Produits à base de poissons | C174: 26000 | D174: 182 | E174: 26.4 | F174: 8.45 | G174: 0 | H174: 0.2 | I174: 0 | J174: 0 | K174: 3.08 | L174: 0.0001 | M174: 0.0001 | N174: 0.0001 | O174: 0.0001 | P174: 0.0115 | Q174: 0.0705 | R174: 0.788 | S174: 2.07 | T174: 3.54 | U174: 3.42 | V174: 1.4 | W174: 0.0728 | X174: 0.259 | Y174: 0.586 | Z174: 0.0179 | AA174: 0.463 | AB174: 37.8 | AC174: 4450 | AD174: 296 | AE174: 239 | AF174: 144 | AG174: 288 | AH174: 3.4 | AI174: 30 | AJ174: 0.17 | AK174: 2.35 | AL174: 4 | AM174: 31 | AN174: 0.85 | AO174: 0.58 | AP174: 12.1 | AQ174: 0 | AR174: 0 | AS174: 0 | AT174: 0.175 | AU174: 3.85 | AV174: 0.315 | AW174: 0.185 | AX174: 16 | AY174: 18 | AZ174: 0 | BA174: 55.1
A175: Anchois, filets à l'huile, semi0conserve, égoutté | B175: Produits à base de poissons appertisés | C175: 26000 | D175: 182 | E175: 26.4 | F175: 8.45 | G175: 0 | H175: 0 | I175: 0 | J175: 0.25 | K175: 2.92 | L175: 0.008 | M175: 0.008 | N175: 0.008 | O175: 0.008 | P175: 0.011 | Q175: 0.067 | R175: 0.75 | S175: 1.96 | T175: 3.36 | U175: 3.24 | V175: 1.33 | W175: 0.05 | X175: 0.39 | Y175: 0.55 | Z175: 0.011 | AA175: 0.32 | AB175: 75.5 | AC175: 4210 | AD175: 189 | AE175: 355 | AF175: 43.7 | AG175: 231 | AH175: 3.22 | AI175: 30 | AJ175: 0.25 | AK175: 2.92 | AL175: 8 | AM175: 5 | AN175: 1.7 | AO175: 1.16 | AP175: 12.1 | AQ175: 0 | AR175: 0.5 | AS175: 0.04 | AT175: 0.25 | AU175: 3.9 | AV175: 0.63 | AW175: 0.37 | AX175: 20.9 | AY175: 14.5 | AZ175: 0 | BA175: 55.1
A176: Anchois, filets roulés aux câpres, semi0conserve, égoutté | B176: Produits à base de poissons appertisés | C176: 25999 | D176: 198 | E176: 24.8 | F176: 10.3 | G176: 1.48 | H176: 0 | I176: 0 | J176: 1 | K176: 0.86 | L176: 0.0073 | M176: 0.0073 | N176: 0.0073 | O176: 0.0073 | P176: 0.0073 | Q176: 0.0073 | R176: 0.44 | S176: 0.25 | T176: 2.09 | U176: 0 | V176: 4.49 | W176: 0.028 | X176: 0.0073 | Y176: 0.026 | Z176: 0.0073 | AA176: 3.78 | AB176: 0 | AC176: 0 | AD176: 0 | AE176: 0 | AF176: 0 | AG176: 0 | AH176: 0 | AI176: 0 | AJ176: 0 | AK176: 0 | AL176: 0 | AM176: 0 | AN176: 0 | AO176: 0 | AP176: 0 | AQ176: 0 | AR176: 0 | AS176: 0 | AT176: 0 | AU176: 0 | AV176: 0 | AW176: 0 | AX176: 0 | AY176: 0 | AZ176: 0 | BA176: 0
A177: ANCHOVY,EUROPEAN,CND IN OIL,DRND SOL | C177: 15002 | D177: 210 | E177: 28.89 | F177: 9.71 | G177: 0 | H177: 0 | J177: 0 | K177: 2.203 | T177: 3.77 | V177: 2.562 | AB177: 85 | AC177: 3668 | AD177: 232 | AE177: 544 | AF177: 69 | AG177: 252 | AH177: 4.63 | AJ177: 0.339 | AK177: 2.44 | AL177: 68.1 | AM177: 12 | AN177: 1.7 | AO177: 3.33 | AP177: 12.1 | AR177: 0 | AS177: 0.078 | AT177: 0.363 | AU177: 19.903 | AV177: 0.909 | AW177: 0.203 | AX177: 0.88 | AY177: 13 | BA177: 50.3
A178: ANCHOVY,EUROPEAN,RAW | C178: 15001 | D178: 131 | E178: 20.35 | F178: 4.84 | G178: 0 | H178: 0 | J178: 0 | K178: 1.282 | T178: 1.182 | V178: 1.637 | AB178: 60 | AC178: 104 | AD178: 147 | AE178: 383 | AF178: 41 | AG178: 174 | AH178: 3.25 | AJ178: 0.211 | AK178: 1.72 | AL178: 36.5 | AM178: 15 | AO178: 0.57 | AP178: 0.1 | AR178: 0 | AS178: 0.055 | AT178: 0.256 | AU178: 14.024 | AV178: 0.645 | AW178: 0.143 | AX178: 0.62 | AY178: 9 | BA178: 73.37
A179: Andouille | B179: Charcuteries et salaisons | C179: 8500 | D179: 221 | E179: 18.4 | F179: 16.2 | G179: 0.3 | H179: 0 | I179: 0 | J179: 0 | K179: 0 | L179: 0 | M179: 0 | N179: 0 | O179: 0 | P179: 0 | Q179: 0 | R179: 0 | S179: 0 | T179: 0 | U179: 0 | V179: 0 | W179: 0 | X179: 0 | Y179: 0 | Z179: 0 | AA179: 0 | AB179: 0 | AC179: 820 | AD179: 0 | AE179: 0 | AF179: 0 | AG179: 0 | AH179: 0 | AI179: 0 | AJ179: 0 | AK179: 0 | AL179: 0 | AM179: 0 | AN179: 0 | AO179: 0 | AP179: 0 | AQ179: 0 | AR179: 0 | AS179: 0 | AT179: 0 | AU179: 0 | AV179: 0 | AW179: 0 | AX179: 0 | AY179: 0 | AZ179: 0 | BA179: 60.5
A180: Andouille | B180: Autres spécialités charcutières | C180: 8500 | D180: 211 | E180: 18.4 | F180: 15.1 | G180: 0.3 | H180: 0 | I180: 0 | J180: 0 | K180: 0 | L180: 0 | M180: 0 | N180: 0 | O180: 0 | P180: 0 | Q180: 0 | R180: 0 | S180: 0 | T180: 0 | U180: 0 | V180: 0 | W180: 0 | X180: 0 | Y180: 0 | Z180: 0 | AA180: 0 | AB180: 0 | AC180: 820 | AD180: 0 | AE180: 0 | AF180: 0 | AG180: 0 | AH180: 0 | AI180: 2 | AJ180: 0 | AK180: 0 | AL180: 0 | AM180: 0 | AN180: 0 | AO180: 0 | AP180: 0 | AQ180: 0 | AR180: 0 | AS180: 0 | AT180: 0 | AU180: 0 | AV180: 0 | AW180: 0 | AX180: 0 | AY180: 0 | AZ180: 0 | BA180: 60.5
A181: Andouille de Guéméné | B181: Autres spécialités charcutières | C181: 8501 | D181: 234 | E181: 18 | F181: 18 | G181: 0 | H181: 0 | I181: 0 | J181: 0 | K181: 0 | L181: 0 | M181: 0 | N181: 0 | O181: 0 | P181: 0 | Q181: 0 | R181: 0 | S181: 0 | T181: 0 | U181: 0 | V181: 0 | W181: 0 | X181: 0 | Y181: 0 | Z181: 0 | AA181: 0 | AB181: 0 | AC181: 0 | AD181: 0 | AE181: 0 | AF181: 0 | AG181: 0 | AH181: 0 | AI181: 0 | AJ181: 0 | AK181: 0 | AL181: 0 | AM181: 0 | AN181: 0 | AO181: 0 | AP181: 0 | AQ181: 0 | AR181: 0 | AS181: 0 | AT181: 0 | AU181: 0 | AV181: 0 | AW181: 0 | AX181: 0 | AY181: 0 | AZ181: 0 | BA181: 0
A182: Andouille de Vire | B182: Autres spécialités charcutières | C182: 8512 | D182: 238 | E182: 19 | F182: 18 | G182: 0 | H182: 0 | I182: 0 | J182: 0 | K182: 0 | L182: 0 | M182: 0 | N182: 0 | O182: 0 | P182: 0 | Q182: 0 | R182: 0 | S182: 0 | T182: 0 | U182: 0 | V182: 0 | W182: 0 | X182: 0 | Y182: 0 | Z182: 0 | AA182: 0 | AB182: 0 | AC182: 0 | AD182: 0 | AE182: 0 | AF182: 0 | AG182: 0 | AH182: 0 | AI182: 0 | AJ182: 0 | AK182: 0 | AL182: 0 | AM182: 0 | AN182: 0 | AO182: 0 | AP182: 0 | AQ182: 0 | AR182: 0 | AS182: 0 | AT182: 0 | AU182: 0 | AV182: 0 | AW182: 0 | AX182: 0 | AY182: 0 | AZ182: 0 | BA182: 0
A183: Andouille, réchauffée à la poêle | B183: Charcuteries et salaisons | C183: 8504 | D183: 270 | E183: 22.5 | F183: 20 | G183: 0 | H183: 0 | I183: 0 | J183: 0 | K183: 9.36 | L183: 0.019 | M183: 0.019 | N183: 0.019 | O183: 0.024 | P183: 0.0295 | Q183: 0.308 | R183: 5.07 | S183: 3.93 | T183: 7.73 | U183: 7.52 | V183: 2.07 | W183: 0.0905 | X183: 0 | Y183: 0 | Z183: 0.448 | AA183: 1.42 | AB183: 330 | AC183: 1130 | AD183: 18 | AE183: 104 | AF183: 12.2 | AG183: 150 | AH183: 2.4 | AI183: 24 | AJ183: 0.2 | AK183: 3.4 | AL183: 24 | AM183: 13.66666667 | AN183: 0.5 | AO183: 0.48 | AP183: 0 | AQ183: 0 | AR183: 1 | AS183: 0.056 | AT183: 0.28 | AU183: 1.55 | AV183: 0.48 | AW183: 0.12 | AX183: 1.35 | AY183: 20 | AZ183: 0 | BA183: 55.5
A184: Andouille, réchauffée à la poêle | B184: Autres spécialités charcutières | C184: 8504 | D184: 271 | E184: 22.5 | F184: 20 | G184: 0 | H184: 0.2 | I184: 1 | J184: 1 | K184: 9.29 | L184: 0.019 | M184: 0.019 | N184: 0.019 | O184: 0.023 | P184: 0.029 | Q184: 0.3 | R184: 4.88 | S184: 3.79 | T184: 7.68 | U184: 7.25 | V184: 2.06 | W184: 0.087 | X184: 0 | Y184: 0 | Z184: 0.43 | AA184: 1.37 | AB184: 330 | AC184: 1130 | AD184: 18 | AE184: 104 | AF184: 12.2 | AG184: 150 | AH184: 2.4 | AI184: 24 | AJ184: 0.2 | AK184: 3.4 | AL184: 24 | AM184: 13.66666667 | AN184: 0.5 | AO184: 0.48 | AP184: 0 | AQ184: 0 | AR184: 1 | AS184: 0.056 | AT184: 0.28 | AU184: 1.55 | AV184: 0.48 | AW184: 0.12 | AX184: 1.35 | AY184: 20 | AZ184: 0 | BA184: 55.5
A185: Andouillette de Troyes, crue | B185: Autres spécialités charcutières | C185: 8552 | D185: 252 | E185: 19.7 | F185: 19 | G185: 0 | H185: 0.5 | I185: 0 | J185: 0.9 | K185: 7.91 | L185: 0 | M185: 0 | N185: 0 | O185: 0.02 | P185: 0.02 | Q185: 0.26 | R185: 4.44 | S185: 3.08 | T185: 6.93 | U185: 0 | V185: 2.3 | W185: 0.12 | X185: 0 | Y185: 0 | Z185: 0 | AA185: 1.75 | AB185: 310 | AC185: 830 | AD185: 26.1 | AE185: 58.4 | AF185: 9.4 | AG185: 110 | AH185: 2.8 | AI185: 0 | AJ185: 0.2 | AK185: 2.6 | AL185: 22 | AM185: 0 | AN185: 0.25 | AO185: 0.55 | AP185: 0 | AQ185: 0 | AR185: 0 | AS185: 0.02 | AT185: 0 | AU185: 0.8 | AV185: 0 | AW185: 0.1 | AX185: 0.5 | AY185: 2 | AZ185: 0 | BA185: 59.9
A186: Andouillette, crue | B186: Autres spécialités charcutières | C186: 8550 | D186: 225 | E186: 18.8 | F186: 16.3 | G186: 0.33 | H186: 0.5 | I186: 0.33 | J186: 0.71 | K186: 6.94 | L186: 0 | M186: 0 | N186: 0 | O186: 0.014 | P186: 0.02 | Q186: 0.22 | R186: 3.84 | S186: 2.71 | T186: 6.22 | U186: 0 | V186: 1.72 | W186: 0.12 | X186: 0 | Y186: 0 | Z186: 0 | AA186: 1.26 | AB186: 284 | AC186: 584 | AD186: 34.1 | AE186: 55.6 | AF186: 12.5 | AG186: 112 | AH186: 1.67 | AI186: 2 | AJ186: 0.28 | AK186: 2.6 | AL186: 18.3 | AM186: 0 | AN186: 0.25 | AO186: 0.39 | AP186: 0 | AQ186: 0 | AR186: 0 | AS186: 0.028 | AT186: 0.15 | AU186: 0.81 | AV186: 0 | AW186: 0.1 | AX186: 0.49 | AY186: 1.2 | AZ186: 0 | BA186: 63
A187: Andouillette, poêlée | B187: Charcuteries et salaisons | C187: 8551 | D187: 276 | E187: 24.5 | F187: 19.3 | G187: 1 | H187: 0.2 | I187: 1 | J187: 0 | K187: 8.66 | L187: 0.02 | M187: 0.02 | N187: 0.02 | O187: 0.02 | P187: 0.0156 | Q187: 0.451 | R187: 5.78 | S187: 3.42 | T187: 7.36 | U187: 7.01 | V187: 2.5 | W187: 0.168 | X187: 0 | Y187: 0 | Z187: 0.245 | AA187: 1.95 | AB187: 344 | AC187: 1090 | AD187: 35.6 | AE187: 64 | AF187: 9.6 | AG187: 98.3 | AH187: 2.3 | AI187: 15 | AJ187: 0.2 | AK187: 4.3 | AL187: 19 | AM187: 57 | AN187: 0.5 | AO187: 0.41 | AP187: 0 | AQ187: 0 | AR187: 1 | AS187: 0.035 | AT187: 0.15 | AU187: 0.96 | AV187: 0.24 | AW187: 0.09 | AX187: 0.91 | AY187: 20 | AZ187: 0 | BA187: 48.7
A188: Andouillette, sautée/poêlée | B188: Autres spécialités charcutières | C188: 8551 | D188: 302 | E188: 24.5 | F188: 22.3 | G188: 0.54 | H188: 0.2 | I188: 1 | J188: 1 | K188: 11.1 | L188: 0.02 | M188: 0.02 | N188: 0.02 | O188: 0.02 | P188: 0.02 | Q188: 0.58 | R188: 6.84 | S188: 3.5 | T188: 8.37 | U188: 7.76 | V188: 2.85 | W188: 0.2 | X188: 0 | Y188: 0 | Z188: 0.25 | AA188: 2.27 | AB188: 344 | AC188: 1090 | AD188: 35.6 | AE188: 64 | AF188: 9.6 | AG188: 98.3 | AH188: 2.3 | AI188: 15 | AJ188: 0.2 | AK188: 4.3 | AL188: 19 | AM188: 57 | AN188: 0.5 | AO188: 0.41 | AP188: 0 | AQ188: 0 | AR188: 1 | AS188: 0.035 | AT188: 0.15 | AU188: 0.96 | AV188: 0.24 | AW188: 0.09 | AX188: 0.91 | AY188: 20 | AZ188: 0 | BA188: 48.7
A189: ANDREA'S,GLUTEN FREE SOFT DINNER ROLL | C189: 28354 | D189: 257 | E189: 5.65 | F189: 8.2 | G189: 40.24 | H189: 2.98 | J189: 2.9 | AC189: 544 | AD189: 41 | AE189: 165 | AF189: 42 | AG189: 128 | AH189: 0.89 | AJ189: 0.111 | AK189: 0.77 | AL189: 9.2 | AO189: 0.52 | AS189: 0.25 | AW189: 0.14 | AY189: 31 | BA189: 44.6
A190: Aneth, frais | B190: Aromates frais | C190: 11093 | D190: 48.2 | E190: 3.93 | F190: 1.1 | G190: 3.9 | H190: 1.2 | I190: 0 | J190: 3.5 | K190: 0.27 | L190: 0 | M190: 0 | N190: 0 | O190: 0 | P190: 0.001 | Q190: 0.001 | R190: 0.046 | S190: 0.008 | T190: 0.54 | U190: 0.54 | V190: 0.064 | W190: 0.0087 | X190: 0 | Y190: 0 | Z190: 0 | AA190: 0.056 | AB190: 0 | AC190: 27 | AD190: 202 | AE190: 647 | AF190: 28 | AG190: 51.9 | AH190: 5.5 | AI190: 3.9 | AJ190: 0.22 | AK190: 1.8 | AL190: 2.7 | AM190: 0 | AN190: 0 | AO190: 1.7 | AP190: 0 | AQ190: 0 | AR190: 70 | AS190: 0.19 | AT190: 0.43 | AU190: 2.4 | AV190: 0.3 | AW190: 0.3 | AX190: 0 | AY190: 116 | AZ190: 0 | BA190: 86
A191: Anguille, bouillie/cuite à l'eau | B191: Poissons et batraciens cuits | C191: 27001 | D191: 197 | E191: 20.5 | F191: 12.7 | G191: 0 | H191: 0 | I191: 0 | J191: 0 | K191: 3.28 | L191: 0 | M191: 0 | N191: 0 | O191: 0 | P191: 0 | Q191: 0 | R191: 0 | S191: 0 | T191: 6.38 | U191: 0 | V191: 1.8 | W191: 0 | X191: 0.24 | Y191: 0.47 | Z191: 0 | AA191: 0 | AB191: 0 | AC191: 0 | AD191: 0 | AE191: 0 | AF191: 0 | AG191: 0 | AH191: 0 | AI191: 8 | AJ191: 0.029 | AK191: 2.08 | AL191: 28 | AM191: 0 | AN191: 0 | AO191: 5.1 | AP191: 0 | AQ191: 0 | AR191: 0 | AS191: 0 | AT191: 0 | AU191: 0 | AV191: 0 | AW191: 0 | AX191: 0 | AY191: 0 | AZ191: 0 | BA191: 62
A192: Anguille, crue | B192: Poissons et batraciens crus | C192: 27016 | D192: 252 | E192: 18.3 | F192: 19.9 | G192: 0 | H192: 0 | I192: 0 | J192: 0 | K192: 4.98 | L192: 0 | M192: 0 | N192: 0 | O192: 0 | P192: 0 | Q192: 1.03 | R192: 3.41 | S192: 0.53 | T192: 9.7 | U192: 7.69 | V192: 3.09 | W192: 0.35 | X192: 0.49 | Y192: 0.82 | Z192: 0.16 | AA192: 0.87 | AB192: 117 | AC192: 48.5 | AD192: 27.5 | AE192: 264 | AF192: 17.5 | AG192: 208 | AH192: 0.43 | AI192: 14.5 | AJ192: 0.027 | AK192: 1.81 | AL192: 26.3 | AM192: 1420 | AN192: 26.7 | AO192: 6 | AP192: 1.25 | AQ192: 0 | AR192: 1.4 | AS192: 0.15 | AT192: 0.18 | AU192: 3.65 | AV192: 0.19 | AW192: 0.16 | AX192: 3.7 | AY192: 14.5 | AZ192: 0 | BA192: 60.8
A193: Anguille, cuite au four | B193: Poissons et batraciens non transformés | C193: 27000 | D193: 230 | E193: 23.7 | F193: 15 | G193: 0 | H193: 0 | I193: 0 | J193: 0 | K193: 3.02 | L193: 0 | M193: 0 | N193: 0 | O193: 0 | P193: 0 | Q193: 0.37 | R193: 2.03 | S193: 0.245 | T193: 9.22 | U193: 0 | V193: 1.21 | W193: 0 | X193: 0.193 | Y193: 0.341 | Z193: 0 | AA193: 0 | AB193: 161 | AC193: 65 | AD193: 26 | AE193: 349 | AF193: 26 | AG193: 277 | AH193: 0.64 | AI193: 8 | AJ193: 0.029 | AK193: 2.08 | AL193: 0 | AM193: 1140 | AN193: 0 | AO193: 0 | AP193: 0 | AQ193: 0 | AR193: 1.8 | AS193: 0.183 | AT193: 0.051 | AU193: 4.49 | AV193: 0.28 | AW193: 0.077 | AX193: 2.89 | AY193: 17 | AZ193: 0 | BA193: 59.3
A194: Anguille, pochée | B194: Poissons et batraciens non transformés | C194: 27001 | D194: 217 | E194: 20.5 | F194: 15 | G194: 0 | H194: 0 | I194: 0 | J194: 0 | K194: 0.542 | L194: 0 | M194: 0 | N194: 0 | O194: 0 | P194: 0.0108 | Q194: 0 | R194: 0 | S194: 0 | T194: 2.85 | U194: 0 | V194: 1.9 | W194: 0 | X194: 0 | Y194: 0 | Z194: 0 | AA194: 0 | AB194: 0 | AC194: 0 | AD194: 0 | AE194: 0 | AF194: 0 | AG194: 0 | AH194: 0 | AI194: 8 | AJ194: 0.029 | AK194: 2.08 | AL194: 28 | AM194: 0 | AN194: 0 | AO194: 5.1 | AP194: 0 | AQ194: 0 | AR194: 0 | AS194: 0 | AT194: 0 | AU194: 0 | AV194: 0 | AW194: 0 | AX194: 0 | AY194: 0 | AZ194: 0 | BA194: 62
A195: Anguille, rôtie/cuite au four | B195: Poissons et batraciens cuits | C195: 27000 | D195: 229 | E195: 23.6 | F195: 15 | G195: 0 | H195: 0 | I195: 0 | J195: 0 | K195: 3.02 | L195: 0 | M195: 0 | N195: 0 | O195: 0 | P195: 0 | Q195: 0.74 | R195: 2.03 | S195: 0.25 | T195: 9.22 | U195: 0 | V195: 1.21 | W195: 0 | X195: 0.17 | Y195: 0.28 | Z195: 0 | AA195: 0 | AB195: 161 | AC195: 65 | AD195: 26 | AE195: 349 | AF195: 26 | AG195: 277 | AH195: 0.64 | AI195: 8 | AJ195: 0.029 | AK195: 2.08 | AL195: 0 | AM195: 1140 | AN195: 0 | AO195: 0 | AP195: 0 | AQ195: 0 | AR195: 1.8 | AS195: 0.18 | AT195: 0.051 | AU195: 4.49 | AV195: 0.28 | AW195: 0.077 | AX195: 2.89 | AY195: 17 | AZ195: 0 | BA195: 59.3
A196: ANIMAL FAT,BACON GREASE | C196: 4609 | D196: 897 | E196: 0 | F196: 99.5 | G196: 0 | H196: 0 | J196: 0 | K196: 39.004 | T196: 44.874 | V196: 11.144 | AB196: 95 | AC196: 150 | AD196: 0 | AE196: 0 | AF196: 0 | AG196: 0 | AH196: 0 | AJ196: 0 | AK196: 0.11 | AL196: 0 | AM196: 0 | AN196: 2.5 | AO196: 0.6 | AP196: 0 | AR196: 0 | AS196: 0 | AT196: 0 | AU196: 0 | AV196: 0 | AW196: 0 | AX196: 0 | AY196: 0 | BA196: 0
A197: ANISE SEED | C197: 2002 | D197: 337 | E197: 17.6 | F197: 15.9 | G197: 50.02 | J197: 14.6 | K197: 0.586 | T197: 9.78 | V197: 3.15 | AB197: 0 | AC197: 16 | AD197: 646 | AE197: 1441 | AF197: 170 | AG197: 440 | AH197: 36.96 | AJ197: 0.91 | AK197: 5.3 | AL197: 5 | AM197: 16 | AN197: 0 | AR197: 21 | AS197: 0.34 | AT197: 0.29 | AU197: 3.06 | AV197: 0.797 | AW197: 0.65 | AX197: 0 | AY197: 10 | BA197: 9.54
A198: Ao0nori (Enteromorpha sp,), séchée ou déshydratée | B198: Algues, séchées ou déshydratées | C198: 20995 | D198: 224 | E198: 13.7 | F198: 2.47 | G198: 18.8 | H198: 0 | I198: 0 | J198: 36 | K198: 0.23 | L198: 0 | M198: 0 | N198: 0 | O198: 0 | P198: 0 | Q198: 0 | R198: 0 | S198: 0 | T198: 0.18 | U198: 0 | V198: 0.25 | W198: 0 | X198: 0 | Y198: 0 | Z198: 0 | AA198: 0 | AB198: 0 | AC198: 4760 | AD198: 1610 | AE198: 1850 | AF198: 2440 | AG198: 1040 | AH198: 234 | AI198: 9390 | AJ198: 1.21 | AK198: 6.08 | AL198: 10.7 | AM198: 0 | AN198: 0 | AO198: 11 | AP198: 0 | AQ198: 0 | AR198: 35.4 | AS198: 0.29 | AT198: 1.1 | AU198: 4.77 | AV198: 0 | AW198: 0 | AX198: 30.6 | AY198: 39.6 | AZ198: 0 | BA198: 7.65
A199: Apéritif à base de vin ou vermouth | B199: Cocktails | C199: 1007 | D199: 133 | E199: 0 | F199: 0 | G199: 11.4 | H199: 11.4 | I199: 0 | J199: 0 | K199: 0 | L199: 0 | M199: 0 | N199: 0 | O199: 0 | P199: 0 | Q199: 0 | R199: 0 | S199: 0 | T199: 0 | U199: 0 | V199: 0 | W199: 0 | X199: 0 | Y199: 0 | Z199: 0 | AA199: 0 | AB199: 0 | AC199: 12.7 | AD199: 10 | AE199: 75 | AF199: 9 | AG199: 6.25 | AH199: 0.8 | AI199: 1.2 | AJ199: 0.15 | AK199: 0.0175 | AL199: 0 | AM199: 0 | AN199: 0 | AO199: 0 | AP199: 0 | AQ199: 0 | AR199: 0 | AS199: 0 | AT199: 0 | AU199: 0.0433 | AV199: 0 | AW199: 0.00667 | AX199: 0.01 | AY199: 0 | AZ199: 12.5 | BA199: 75.9
A200: Apéritif à base de vin ou vermouth | B200: Cocktails | C200: 1007 | D200: 137 | E200: 0.013 | F200: 0 | G200: 11.4 | H200: 11.1 | I200: 0 | J200: 0 | K200: 0 | L200: 0 | M200: 0 | N200: 0 | O200: 0 | P200: 0 | Q200: 0 | R200: 0 | S200: 0 | T200: 0 | U200: 0 | V200: 0 | W200: 0 | X200: 0 | Y200: 0 | Z200: 0 | AA200: 0 | AB200: 0 | AC200: 15 | AD200: 7.37 | AE200: 48 | AF200: 7 | AG200: 6.25 | AH200: 0.44 | AI200: 1.2 | AJ200: 0.1 | AK200: 0.035 | AL200: 0 | AM200: 0 | AN200: 0 | AO200: 0 | AP200: 0 | AQ200: 0 | AR200: 0 | AS200: 0 | AT200: 0 | AU200: 0.045 | AV200: 0 | AW200: 0.0075 | AX200: 0.0033 | AY200: 0 | AZ200: 13.1 | BA200: 75.3
... 925 more rows

Sheet Annexe (hidden)
A2: Vitamine A | B2: Vitamine D | C2: Vitamine E | D2: Vitamine K1 | E2: Vitamine K | F2: Vitamine K2 | G2: Vitamine C | H2: Vitamine B1 | I2: Vitamine B2 | J2: Vitamine B3 | K2: Vitamine B5 | L2: Vitamine B6 | M2: Vitamine B12 | N2: Vitamine B9
A3: 800 | B3: 5 | C3: 12 | E3: 45 | G3: 110 | H3: 1.3 | I3: 1.6 | J3: 14 | K3: 5 | L3: 1.8 | M3: 2.4 | N3: 330
A4: 0.9028263889 | B4: 0.6265 | C4: 0.9868055556 | E4: 0.1191851852 | G4: 0.4803787879 | H4: 0.3772948718 | I4: 0.58571875 | J4: 0.7693095238 | K4: 0.3752333333 | L4: 0.3964722222 | M4: 0.8967361111 | N4: 0.4504444444
A8: Vitamine A | B8: Vitamine D | C8: Vitamine E | D8: Vitamine K1 | E8: Vitamine K | F8: Vitamine K2 | G8: Vitamine C | H8: Vitamine B1 | I8: Vitamine B2 | J8: Vitamine B3 | K8: Vitamine B5 | L8: Vitamine B6 | M8: Vitamine B12 | N8: Vitamine B9
A9: 600 | B9: 5 | C9: 12 | E9: 45 | G9: 110 | H9: 1.1 | I9: 1.5 | J9: 11 | K9: 5 | L9: 1.5 | M9: 2.4 | N9: 300
A10: 1.203768519 | B10: 0.6265 | C10: 0.9868055556 | E10: 0.1191851852 | G10: 0.4803787879 | H10: 0.4458939394 | I10: 0.6247666667 | J10: 0.9791212121 | K10: 0.3752333333 | L10: 0.4757666667 | M10: 0.8967361111 | N10: 0.4954888889
B12: A | C12: D | D12: E | E12: K | F12: C | G12: B1 | H12: B2 | I12: B3 | J12: B5 | K12: B6 | L12: B12 | M12: B9 | U12: Na | V12: Ca | W12: K | X12: Mg | Y12: P | Z12: Fe | AA12: I | AB12: Cu | AC12: Zn | AD12: Se
B13: ='Annexe 2'!AN4 -> 154.8083333 | C13: ='Annexe 2'!AO4 -> 0.168 | D13: ='Annexe 2'!AP4 -> 0.9515 | E13: ='Annexe 2'!AR4 -> 19.7945 | F13: ='Annexe 2'!AT4 -> 39.7 | G13: ='Annexe 2'!AU4 -> 0.2066 | H13: ='Annexe 2'!AV4 -> 0.13395 | I13: ='Annexe 2'!AW4 -> 2.19165 | J13: ='Annexe 2'!AX4 -> 0.7435 | K13: ='Annexe 2'!AY4 -> 0.249225 | L13: ='Annexe 2'!AZ4 -> 0.1135 | M13: ='Annexe 2'!BA4 -> 60.27 | U13: ='Annexe 2'!AD4 -> 325.595 | V13: ='Annexe 2'!AE4 -> 67.19 | W13: ='Annexe 2'!AF4 -> 407.2 | X13: ='Annexe 2'!AG4 -> 57.5075 | Y13: ='Annexe 2'!AH4 -> 168.3 | Z13: ='Annexe 2'!AI4 -> 1.7819 | AA13: ='Annexe 2'!AJ4 -> 2.8235 | AB13: ='Annexe 2'!AK4 -> 0.1799 | AC13: ='Annexe 2'!AL4 -> 0.98165 | AD13: ='Annexe 2'!AM4 -> 10.8
B14: µg (ER) | C14: µg | D14: mg | E14: µg | F14: mg | G14: mg | H14: mg | I14: mg | J14: mg | K14: mg | L14: µg | M14: µg | U14: mg | V14: mg | W14: mg | X14: mg | Y14: mg | Z14: mg | AA14: µg | AB14: mg | AC14: mg | AD14: µg
B15: ='Annexe 2'!AN5 -> 800 | C15: ='Annexe 2'!AO5 -> 5 | D15: ='Annexe 2'!AP5 -> 12 | E15: ='Annexe 2'!AR5 -> 50 | F15: ='Annexe 2'!AT5 -> 110 | G15: ='Annexe 2'!AU5 -> 1.3 | H15: ='Annexe 2'!AV5 -> 1.6 | I15: ='Annexe 2'!AW5 -> 14 | J15: ='Annexe 2'!AX5 -> 5 | K15: ='Annexe 2'!AY5 -> 1.8 | L15: ='Annexe 2'!AZ5 -> 2.4 | M15: ='Annexe 2'!BA5 -> 330 | N15: ANC | U15: ='Annexe 2'!AD5 -> 2400 | V15: ='Annexe 2'!AE5 -> 900 | W15: ='Annexe 2'!AF5 -> 4700 | X15: ='Annexe 2'!AG5 -> 420 | Y15: ='Annexe 2'!AH5 -> 750 | Z15: ='Annexe 2'!AI5 -> 9 | AA15: ='Annexe 2'!AJ5 -> 150 | AB15: ='Annexe 2'!AK5 -> 2 | AC15: ='Annexe 2'!AL5 -> 12 | AD15: ='Annexe 2'!AM5 -> 60 | AE15: ANC
B16: ='Annexe 2'!AN6 -> 0.1935104167 | C16: ='Annexe 2'!AO6 -> 0.0336 | D16: ='Annexe 2'!AP6 -> 0.07929166667 | E16: ='Annexe 2'!AR6 -> 0.39589 | F16: ='Annexe 2'!AT6 -> 0.3609090909 | G16: ='Annexe 2'!AU6 -> 0.1589230769 | H16: ='Annexe 2'!AV6 -> 0.08371875 | I16: ='Annexe 2'!AW6 -> 0.1565464286 | J16: ='Annexe 2'!AX6 -> 0.1487 | K16: ='Annexe 2'!AY6 -> 0.1384583333 | L16: ='Annexe 2'!AZ6 -> 0.04729166667 | M16: ='Annexe 2'!BA6 -> 0.1826363636 | U16: ='Annexe 2'!AD6 -> 0.1356645833 | V16: ='Annexe 2'!AE6 -> 0.07465555556 | W16: ='Annexe 2'!AF6 -> 0.08663829787 | X16: ='Annexe 2'!AG6 -> 0.136922619 | Y16: ='Annexe 2'!AH6 -> 0.2244 | Z16: ='Annexe 2'!AI6 -> 0.1979888889 | AA16: ='Annexe 2'!AJ6 -> 0.01882333333 | AB16: ='Annexe 2'!AK6 -> 0.08995 | AC16: ='Annexe 2'!AL6 -> 0.08180416667 | AD16: ='Annexe 2'!AM6 -> 0.18 | AE16: %ANC
A17: UL | B17: 3000 | D17: 300 | F17: 2000
R20: =1-R27 -> 0.7422240001
R21: =1-R24 -> 0.3264221721
R22: =1-R30 -> 0.9313538278
Q23: g./j. | S23: %AEA | T23: ANC
P24: AGS | Q24: ='Annexe 2'!L4 -> 8.9243 | R24: =IF(Q24=0,"",Q24/(Q24+Q27+Q30)) -> 0.6735778279 | S24: =IF(Q24=0,"",Q24*9/PANDA_Synthèse!H17) -> 0.235413064 | T24: < 12%
P25: dont Lau/Myr/Pal | Q25: =SUM('Annexe 2'!Q4:S4) -> 5.5176 | S25: =IF(Q25=0,"",Q25*9/PANDA_Synthèse!$H$17) -> 0.1455481239 | T25: < 8%
P27: AGM | Q27: ='Annexe 2'!U4 -> 3.4153 | R27: =IF(Q27=0,"",Q27/(Q27+Q24+Q30)) -> 0.2577759999
P28: dont AG Oléique | Q28: =SUM('Annexe 2'!V4) -> 2.8903 | T28: > 15%
P30: AGP | Q30: ='Annexe 2'!W4 -> 0.9095 | R30: =IF(Q30=0,"",Q30/(Q30+Q27+Q24)) -> 0.06864617219
P31: dont Omega 3 | Q31: =SUM(omega3_totaux) -> 0.10785 | T31: > 1 à 2 g | AH31: kcal./kg : | AI31: =IF(ISBLANK('PANDA_Saisie des rations'!G4),"",PANDA_Synthèse!I3/'PANDA_Saisie des rations'!G4) -> 
P32: EPA + DHA | Q32: =SUM('Annexe 2'!Y4:Z4) -> 0.00465 | T32: > 0,5 g | AH32: prot./kg : | AI32: =IF(ISBLANK('PANDA_Saisie des rations'!G4),"",PANDA_Synthèse!H17/'PANDA_Saisie des rations'!G4) -> 
P33: ALA | Q33: =SUM('Annexe 2'!X4) -> 0.1032 | S33: =IF(Q33=0,"",Q33*9/PANDA_Synthèse!$H$17) -> 0.002722300708 | T33: > 0,5 à 1% | AH33: gluc./kg : | AI33: =IF(ISBLANK('PANDA_Saisie des rations'!G6),"",PANDA_Synthèse!H19/'PANDA_Saisie des rations'!G6) -> 
P35: dont Omega 6 | Q35: =SUM(omega6_totaux) -> 0.626 | S35: =IF(Q33=0,"",(Q35*9)/PANDA_Synthèse!$H$17) -> 0.01651318065 | T35: < 4%
P36: Rapport Ω6/Ω3 | Q36: =IF(Q31=0,"",Q35/Q31) -> 5.804357904 | T36: < 5
P38: Cholestérol (mg) | Q38: ='Annexe 2'!AC4 -> 34.06 | T38: 300 mg
AN39: g./j. | AP39: %AEA | AQ39: ANC
AM40: AGS | AN40: ='Annexe 2'!AI20 -> 0 | AO40: =IF(AN40=0,"",AN40/(AN40+AN43+AN46)) ->  | AP40: =IF(AN40=0,"",AN40*9/PANDA_Synthèse!AE33) ->  | AQ40: < 12%
AM41: dont Lau/Myr/Pal | AN41: =SUM('Annexe 2'!AN20:AP20) -> 0 | AP41: =IF(AN41=0,"",AN41*9/PANDA_Synthèse!$H$17) ->  | AQ41: < 8%
AM43: AGM | AN43: ='Annexe 2'!AR20 -> 0 | AO43: =IF(AN43=0,"",AN43/(AN43+AN40+AN46)) -> 
AM44: dont AG Oléique | AN44: =SUM('Annexe 2'!AS20) -> 0 | AP44: =IF(AN44=0,"",AN44*9/PANDA_Synthèse!$H$17) ->  | AQ44: > 15%
AM46: AGP | AN46: ='Annexe 2'!AT20 -> 0 | AO46: =IF(AN46=0,"",AN46/(AN46+AN43+AN40)) -> 
AM47: dont Omega 3 | AN47: =SUM(omega3_totaux) -> 0.10785 | AQ47: > 1 à 2 g
AM48: EPA + DHA | AN48: =SUM('Annexe 2'!AV20:AW20) -> 0 | AQ48: > 0,5 g
AM49: ALA | AN49: =SUM('Annexe 2'!AU20) -> 0 | AP49: =IF(AN49=0,"",AN49*9/PANDA_Synthèse!$H$17) ->  | AQ49: > 0,5 à 1%
AM51: dont Omega 6 | AN51: =SUM(omega6_totaux) -> 0.626 | AP51: =IF(AN49=0,"",(AN51*9)/PANDA_Synthèse!$H$17) ->  | AQ51: < 4%
AM52: Rapport Ω6/Ω3 | AN52: =IF(AN47=0,"",AN51/AN47) -> 5.804357904 | AQ52: < 5
AM54: Cholestérol (mg) | AN54: ='Annexe 2'!AZ20 -> 0 | AQ54: 300 mg
AM75: % AG totaux | AT75: g/j | AV75: %AEA | AY75: ANC
AN77: totaux | AT77: =SUM('Annexe 2'!L4) -> 8.9243 | AV77: =IF(AT77=0,"",AT77*9/PANDA_Synthèse!H17) -> 0.235413064 | AY77: < 12%
AN78: dont
AN79: Lau / Myr / Pal | AT79: =SUM('Annexe 2'!Q4:S4) -> 5.5176 | AV79: =IF(AT79=0,"",AT79*9/PANDA_Synthèse!$H$17) -> 0.1455481239 | AY79: < 8%
AN81: dont
AN82: acide oléique | AT82: =SUM('Annexe 2'!V4) -> 2.8903 | AV82: =IF(AT82=0,"",AT82*9/PANDA_Synthèse!$H$17) -> 0.07624288503 | AY82: > 15%
AN85: dont
AN86: Oméga 3 | AT86: =SUM(omega3_totaux) -> 0.10785 | AY86: > 1 à 2 g
AO87: EPA + DHA | AT87: =SUM('Annexe 2'!Y4:Z4) -> 0.00465 | AY87: > 0,50 g
AO88: ALA | AT88: =SUM('Annexe 2'!X4) -> 0.1032 | AV88: =IF(AT88=0,"",AT88*9/PANDA_Synthèse!$H$17) -> 0.002722300708 | AY88: > 0,5 à 1%
AN89: Oméga 6 | AT89: =SUM(omega6_totaux) -> 0.626 | AV89: =IF(AT89=0,"",(AT89*9)/PANDA_Synthèse!$H$17) -> 0.01651318065 | AY89: < 4%
AN90: Rapport Ω6/Ω3 | AT90: =IF(AT86=0,"",AT89/AT86) -> 5.804357904 | AY90: < 5
AN92: Cholestérol (mg) | AT92: =SUM('Annexe 2'!AC4) -> 34.06 | AY92: 300 mg

Sheet Annexe 2 (hidden)
AZ1: 1
K2: Besoin restant | AN2: Vitamine A | AO2: Vitamine D | AP2: Vitamine E | AQ2: Vitamine K1 | AR2: Vitamine K | AS2: Vitamine K2 | AT2: Vitamine C | AU2: Vitamine B1 | AV2: Vitamine B2 | AW2: Vitamine B3 | AX2: Vitamine B5 | AY2: Vitamine B6 | AZ2: Vitamine B12 | BA2: Vitamine B9
A3: Quantité | B3: Energie (kcal) | D3: Alcool | E3: Protéines | F3: Lipides | G3: Glucides | H3: Total | I3: Sucres | J3: Amidon | K3: Fibres | L3: AGS | M3: AG 4:0, butyrique | N3: AG 6:0, caproïque | O3: AG 8:0, caprylique | P3: AG 10:0, caprique | Q3: AG 12:0, laurique | R3: AG 14:0, myristique | S3: AG 16:0, palmitique | T3: AG 18:0, stéarique | U3: AGM | V3: AG 18:1 9c (n-9), oléique (g/100g) | W3: AGP | X3: AG 18:3 c9,c12,c15 (n-3), alpha-linolénique | Y3: AG 20:5 5c,8c,11c,14c,17c (n-3) EPA | Z3: AG 22:6 4c,7c,10c,13c,16c,19c (n-3) DHA | AA3: AG 20:4 5c,8c,11c,14c (n-6), arachidonique | AB3: AG 18:2 9c,12c (n-6), linoléique | AC3: Cholestérol (mg/100g) | AD3: Sodium | AE3: Calcium | AF3: Potassium | AG3: Magnésium | AH3: Phosphore | AI3: Fer | AJ3: Iode | AK3: Cuivre | AL3: Zinc | AM3: Sélénium | AN3: Vitamine A (µg/100 ER) | AO3: Vitamine D (µg/100g) | AP3: Vitamine E (mg/100g) | AQ3: Vitamine K1 (µg/100g) | AR3: Vitamine K (µg/100g) | AS3: Vitamine K2 (µg/100g) | AT3: Vitamine C (mg/100g) | AU3: Vitamine B1 (mg/100g) | AV3: Vitamine B2 (mg/100g) | AW3: Vitamine B3 (mg/100g) | AX3: Vitamine B5 (mg/100g) | AY3: Vitamine B6 (mg/100g) | AZ3: Vitamine B12 (µg/100g) | BA3: Vitamine B9 (µg/100g) | BB3: Besoin restant | BC3: Eau absorbée
A4: =IF(ISBLANK('PANDA_Saisie des rations'!E17),"",SUM('PANDA_Saisie des rations'!E17:E152)/nb_de_jour) -> 195 | B4: =IF(ISBLANK('PANDA_Saisie des rations'!F17),"",SUM('PANDA_Saisie des rations'!F17:F152)/nb_de_jour) -> 363.2 | D4: =IF(ISBLANK('PANDA_Saisie des rations'!BB17),"",SUM('PANDA_Saisie des rations'!BB17:BB152)/nb_de_jour) -> 0 | E4: =IF(ISBLANK('PANDA_Saisie des rations'!G17),"",SUM('PANDA_Saisie des rations'!G17:G152)/nb_de_jour) -> 9.225 | F4: =IF(ISBLANK('PANDA_Saisie des rations'!H17),"",SUM('PANDA_Saisie des rations'!H17:H152)/nb_de_jour) -> 15.52 | G4: =IF(ISBLANK('PANDA_Saisie des rations'!I17),"",SUM('PANDA_Saisie des rations'!I17:I152)/nb_de_jour) -> 41.1505 | I4: =IF(ISBLANK('PANDA_Saisie des rations'!J17),"",SUM('PANDA_Saisie des rations'!J17:J152)/nb_de_jour) -> 10.715 | J4: =IF(ISBLANK('PANDA_Saisie des rations'!K17),"",SUM('PANDA_Saisie des rations'!K17:K152)/nb_de_jour) -> 30.32 | K4: =IF(ISBLANK('PANDA_Saisie des rations'!L17),"",SUM('PANDA_Saisie des rations'!L17:L152)/nb_de_jour) -> 7.66 | L4: =IF(ISBLANK('PANDA_Saisie des rations'!M17),"",SUM('PANDA_Saisie des rations'!M17:M152)/nb_de_jour) -> 8.9243 | M4: =IF(ISBLANK('PANDA_Saisie des rations'!N17),"",SUM('PANDA_Saisie des rations'!N17:N152)/nb_de_jour) -> 0.5065 | N4: =IF(ISBLANK('PANDA_Saisie des rations'!O17),"",SUM('PANDA_Saisie des rations'!O17:O152)/nb_de_jour) -> 0.3445 | O4: =IF(ISBLANK('PANDA_Saisie des rations'!P17),"",SUM('PANDA_Saisie des rations'!P17:P152)/nb_de_jour) -> 0.244 | P4: =IF(ISBLANK('PANDA_Saisie des rations'!Q17),"",SUM('PANDA_Saisie des rations'!Q17:Q152)/nb_de_jour) -> 0.445 | Q4: =IF(ISBLANK('PANDA_Saisie des rations'!R17),"",SUM('PANDA_Saisie des rations'!R17:R152)/nb_de_jour) -> 0.481 | R4: =IF(ISBLANK('PANDA_Saisie des rations'!S17),"",SUM('PANDA_Saisie des rations'!S17:S152)/nb_de_jour) -> 1.3253 | S4: =IF(ISBLANK('PANDA_Saisie des rations'!T17),"",SUM('PANDA_Saisie des rations'!T17:T152)/nb_de_jour) -> 3.7113 | T4: =IF(ISBLANK('PANDA_Saisie des rations'!U17),"",SUM('PANDA_Saisie des rations'!U17:U152)/nb_de_jour) -> 1.06295 | U4: =IF(ISBLANK('PANDA_Saisie des rations'!V17),"",SUM('PANDA_Saisie des rations'!V17:V152)/nb_de_jour) -> 3.4153 | V4: =IF(ISBLANK('PANDA_Saisie des rations'!W17),"",SUM('PANDA_Saisie des rations'!W17:W152)/nb_de_jour) -> 2.8903 | W4: =IF(ISBLANK('PANDA_Saisie des rations'!X17),"",SUM('PANDA_Saisie des rations'!X17:X152)/nb_de_jour) -> 0.9095 | X4: =IF(ISBLANK('PANDA_Saisie des rations'!Y17),"",SUM('PANDA_Saisie des rations'!Y17:Y152)/nb_de_jour) -> 0.1032 | Y4: =IF(ISBLANK('PANDA_Saisie des rations'!Z17),"",SUM('PANDA_Saisie des rations'!Z17:Z152)/nb_de_jour) -> 0.00465 | Z4: =IF(ISBLANK('PANDA_Saisie des rations'!AA17),"",SUM('PANDA_Saisie des rations'!AA17:AA152)/nb_de_jour) -> 0 | AA4: =IF(ISBLANK('PANDA_Saisie des rations'!AB17),"",SUM('PANDA_Saisie des rations'!AB17:AB152)/nb_de_jour) -> 0 | AB4: =IF(ISBLANK('PANDA_Saisie des rations'!AC17),"",SUM('PANDA_Saisie des rations'!AC17:AC152)/nb_de_jour) -> 0.626 | AC4: =IF(ISBLANK('PANDA_Saisie des rations'!AD17),"",SUM('PANDA_Saisie des rations'!AD17:AD152)/nb_de_jour) -> 34.06 | AD4: =IF(ISBLANK('PANDA_Saisie des rations'!AE17),"",SUM('PANDA_Saisie des rations'!AE17:AE152)/nb_de_jour) -> 325.595 | AE4: =IF(ISBLANK('PANDA_Saisie des rations'!AF17),"",SUM('PANDA_Saisie des rations'!AF17:AF152)/nb_de_jour) -> 67.19 | AF4: =IF(ISBLANK('PANDA_Saisie des rations'!AG17),"",SUM('PANDA_Saisie des rations'!AG17:AG152)/nb_de_jour) -> 407.2 | AG4: =IF(ISBLANK('PANDA_Saisie des rations'!AH17),"",SUM('PANDA_Saisie des rations'!AH17:AH152)/nb_de_jour) -> 57.5075 | AH4: =IF(ISBLANK('PANDA_Saisie des rations'!AI17),"",SUM('PANDA_Saisie des rations'!AI17:AI152)/nb_de_jour) -> 168.3 | AI4: =IF(ISBLANK('PANDA_Saisie des rations'!AJ17),"",SUM('PANDA_Saisie des rations'!AJ17:AJ152)/nb_de_jour) -> 1.7819 | AJ4: =IF(ISBLANK('PANDA_Saisie des rations'!AK17),"",SUM('PANDA_Saisie des rations'!AK17:AK152)/nb_de_jour) -> 2.8235 | AK4: =IF(ISBLANK('PANDA_Saisie des rations'!AL17),"",SUM('PANDA_Saisie des rations'!AL17:AL152)/nb_de_jour) -> 0.1799 | AL4: =IF(ISBLANK('PANDA_Saisie des rations'!AM17),"",SUM('PANDA_Saisie des rations'!AM17:AM152)/nb_de_jour) -> 0.98165 | AM4: =IF(ISBLANK('PANDA_Saisie des rations'!AN17),"",SUM('PANDA_Saisie des rations'!AN17:AN152)/nb_de_jour) -> 10.8 | AN4: =IF(ISBLANK('PANDA_Saisie des rations'!AO17),"",SUM('PANDA_Saisie des rations'!AO17:AO152)/nb_de_jour) -> 154.8083333 | AO4: =IF(ISBLANK('PANDA_Saisie des rations'!AP17),"",SUM('PANDA_Saisie des rations'!AP17:AP152)/nb_de_jour) -> 0.168 | AP4: =IF(ISBLANK('PANDA_Saisie des rations'!AQ17),"",SUM('PANDA_Saisie des rations'!AQ17:AQ152)/nb_de_jour) -> 0.9515 | AQ4: =IF(ISBLANK('PANDA_Saisie des rations'!AR17),"",SUM('PANDA_Saisie des rations'!AR17:AR152)/nb_de_jour) -> 17.5445 | AR4: =SUM(AQ4+AS4) -> 19.7945 | AS4: =IF(ISBLANK('PANDA_Saisie des rations'!AS17),"",SUM('PANDA_Saisie des rations'!AS17:AS152)/nb_de_jour) -> 2.25 | AT4: =IF(ISBLANK('PANDA_Saisie des rations'!AT17),"",SUM('PANDA_Saisie des rations'!AT17:AT152)/nb_de_jour) -> 39.7 | AU4: =IF(ISBLANK('PANDA_Saisie des rations'!AU17),"",SUM('PANDA_Saisie des rations'!AU17:AU152)/nb_de_jour) -> 0.2066 | AV4: =IF(ISBLANK('PANDA_Saisie des rations'!AV17),"",SUM('PANDA_Saisie des rations'!AV17:AV152)/nb_de_jour) -> 0.13395 | AW4: =IF(ISBLANK('PANDA_Saisie des rations'!AW17),"",SUM('PANDA_Saisie des rations'!AW17:AW152)/nb_de_jour) -> 2.19165 | AX4: =IF(ISBLANK('PANDA_Saisie des rations'!AX17),"",SUM('PANDA_Saisie des rations'!AX17:AX152)/nb_de_jour) -> 0.7435 | AY4: =IF(ISBLANK('PANDA_Saisie des rations'!AY17),"",SUM('PANDA_Saisie des rations'!AY17:AY152)/nb_de_jour) -> 0.249225 | AZ4: =IF(ISBLANK('PANDA_Saisie des rations'!AZ17),"",SUM('PANDA_Saisie des rations'!AZ17:AZ152)/nb_de_jour) -> 0.1135 | BA4: =IF(ISBLANK('PANDA_Saisie des rations'!BA17),"",SUM('PANDA_Saisie des rations'!BA17:BA152)/nb_de_jour) -> 60.27 | BC4: =IF(ISBLANK('PANDA_Saisie des rations'!BC17),"",SUM('PANDA_Saisie des rations'!BC17:BC152)/nb_de_jour) -> 116.75 | BD4: =IF(ISBLANK(Pat!T12),"",Pat!T12/1000) -> 2.683005074
D5: =7*D4 -> 0 | E5: =4*E4 -> 36.9 | F5: =F4*9 -> 139.68 | G5: =4*G4 -> 164.602 | H5: =SUM(D5:G5) -> 341.182 | K5: 30 | AD5: =IF(ISBLANK(AD4),"",IF($AZ$1=1,AD17,AD16)) -> 2400 | AE5: 900 | AF5: 4700 | AG5: 420 | AH5: 750 | AI5: 9 | AJ5: 150 | AK5: 2 | AL5: 12 | AM5: 60 | AN5: 800 | AO5: =IF(ISBLANK(AO4),"",IF($AZ$1=1,AO17,AO16)) -> 5 | AP5: =IF(ISBLANK(AP4),"",IF($AZ$1=1,AP17,AP16)) -> 12 | AR5: =IF(ISBLANK(AR4),"",IF($AZ$1=1,AR17,AR16)) -> 50 | AT5: =IF(ISBLANK(AT4),"",IF($AZ$1=1,AT17,AT16)) -> 110 | AU5: 1.3 | AV5: 1.6 | AW5: 14 | AX5: 5 | AY5: 1.8 | AZ5: 2.4 | BA5: 330 | BB5: anc h | BC5: =BC4/1000 -> 0.11675 | BD5: =IF(ISBLANK(Pat!T12),"",BD4-BC5) -> 2.566255074
K6: =IF(K4>K5,0,K5-K4) -> 22.34 | AD6: =AD4/AD5 -> 0.1356645833 | AE6: 0.07465555556 | AF6: 0.08663829787 | AG6: 0.136922619 | AH6: 0.2244 | AI6: 0.1979888889 | AJ6: 0.01882333333 | AK6: 0.08995 | AL6: 0.08180416667 | AM6: 0.18 | AN6: =AN4/AN5 -> 0.1935104167 | AO6: =AO4/AO5 -> 0.0336 | AP6: 0.07929166667 | AR6: 0.39589 | AT6: 0.3609090909 | AU6: 0.1589230769 | AV6: 0.08371875 | AW6: 0.1565464286 | AX6: 0.1487 | AY6: 0.1384583333 | AZ6: 0.04729166667 | BA6: 0.1826363636 | BB6: %couvanc
BB8: anc f
BD9: =IF(ISBLANK(BC5),"",BC5) -> 0.11675 | BE9: L
H11: =IF(ISBLANK(K4),"",K4) -> 7.66 | I11: g | J11: =IF(ISBLANK(K6),"",K6) -> 22.34 | K11: g | BD11: =IF(ISBLANK(BD5),"",BD5) -> 2.566255074 | BE11: L
AD16: 2400 | AE16: 900 | AF16: 4700 | AG16: 360 | AH16: 750 | AI16: 16 | AJ16: 150 | AK16: 1.5 | AL16: 10 | AM16: 50 | AN16: 600 | AO16: 5 | AP16: 12 | AR16: 50 | AT16: 110 | AU16: 1.1 | AV16: 1.5 | AW16: 11 | AX16: 5 | AY16: 1.5 | AZ16: 2.4 | BA16: 300 | BB16: F
AD17: 2400 | AE17: 900 | AF17: 4700 | AG17: 420 | AH17: 750 | AI17: 9 | AJ17: 150 | AK17: 2 | AL17: 12 | AM17: 60 | AN17: 800 | AO17: 5 | AP17: 12 | AR17: 50 | AT17: 110 | AU17: 1.3 | AV17: 1.6 | AW17: 14 | AX17: 5 | AY17: 1.8 | AZ17: 2.4 | BA17: 330 | BB17: H
AE26: 1
AE28: 1
AE29: 2
AE30: 3
AE31: 4
AE32: 5
AE33: 6
D34: gluc. simples/complexes : | AE34: 7
I35: =IF(ISBLANK(G4),"",H37/H38) -> 0.104567942
G37: Glu. simples | H37: =G4-J4-K4 -> 3.1705 | I37: =H37/H41 -> 0.07704645144
G38: Glu. complexes | H38: =J4 -> 30.32 | I38: =H38/H41 -> 0.7368075722
G39: Fibres | H39: =K4 -> 7.66 | I39: =H39/H41 -> 0.1861459764
G41: somme | H41: =SUM(H37:H39) -> 41.1505

Sheet Résultats (hidden)

Sheet PANDA_Synthèse
E3: =IF(ISBLANK('PANDA_Saisie des rations'!G2),"",'PANDA_Saisie des rations'!G2) ->  | I3: =SUM($H$11:$H$16) -> 341.182
I4: kcal/j
I7: =CONCATENATE("Moyenne sur " & 'Annexe 2'!$AE$26 & " jour(s)") -> Moyenne sur 1 jour(s)
C9: Protéines | D9: Lipides | E9: Glucides | F9: % Glu. | G9: Alcool | H9: Kcal | I9: % Kcal
B10: g/kg | C10: =IF(ISBLANK(Pat!G3),"",PANDA_Synthèse!C17/poids_1) -> 0.1153125 | D10: =IF(ISBLANK(Pat!G3),"",PANDA_Synthèse!D17/poids_1) -> 0.194 | E10: =IF(ISBLANK(Pat!G3),"",PANDA_Synthèse!E17/poids_1) -> 0.51438125 | H10: =IF(ISBLANK(Pat!G3),"",kcal/poids_1) -> 4.264775
B11: Petit-déjeuner | C11: =SUM(protpdj)/nb_de_jour -> 9.225 | D11: =SUM(lippdj)/nb_de_jour -> 15.52 | E11: =SUM(glupdj)/nb_de_jour -> 41.1505 | F11: =IF(E11=0,"",E11/$E$17) -> 1 | G11: =SUM(alcpdj)/nb_de_jour -> 0 | H11: =C11*4+D11*9+E11*4+G11*7 -> 341.182 | I11: =IF(H11=0,"",H11/kcal) -> 1
B12: Collation 1 | C12: =SUM(protcol1)/nb_de_jour -> 0 | D12: =SUM(lipcol1)/nb_de_jour -> 0 | E12: =SUM(glucol1)/nb_de_jour -> 0 | G12: =SUM(alcol1)/nb_de_jour -> 0 | H12: 0
B13: Déjeuner | C13: =SUM(protdej)/nb_de_jour -> 0 | D13: =SUM(lipdej)/nb_de_jour -> 0 | E13: =SUM(gludej)/nb_de_jour -> 0 | G13: =SUM(aldej)/nb_de_jour -> 0 | H13: 0
B14: Collation 2 | C14: =SUM(protcol2)/nb_de_jour -> 0 | D14: =SUM(lipcol2)/nb_de_jour -> 0 | E14: =SUM(glucol2)/nb_de_jour -> 0 | G14: =SUM(alcol2)/nb_de_jour -> 0 | H14: 0
B15: Dîner | C15: =SUM(protdin)/nb_de_jour -> 0 | D15: =SUM(lipdin)/nb_de_jour -> 0 | E15: =SUM(gludin)/nb_de_jour -> 0 | G15: =SUM(aldin)/nb_de_jour -> 0 | H15: 0
B16: Collation 3 | C16: =SUM(protcol3)/nb_de_jour -> 0 | D16: =SUM(lipcol3)/nb_de_jour -> 0 | E16: =SUM(glucol3)/nb_de_jour -> 0 | G16: =SUM(alcol3)/nb_de_jour -> 0 | H16: 0
B17: Totaux g/j | C17: =SUM(C11:C16) -> 9.225 | D17: =SUM(D11:D16) -> 15.52 | E17: =SUM(E11:E16) -> 41.1505 | G17: =SUM(G11:G16) -> 0 | H17: =C17*4+D17*9+E17*4 -> 341.182 | I17: kcal. sans alcool
C18: =IF(kcal=0,"",C17*4/kcal) -> 0.1081534196 | D18: =IF(kcal=0,"",D17*9/kcal) -> 0.4094002614 | E18: =IF(kcal=0,"",E17*4/kcal) -> 0.482446319 | G18: =IF(kcal=0,"",G17*7/kcal) -> 0
I41: ="score = "& Feuil3!L18& "/10" -> score = 4/10

Sheet Aide
A7: Liste des abrévations utilisées dans la base de données américaine USDA
A9: Abréviation | B9: Signification - US | C9: Traduction - FR
A11: APPL | B11: Apple | C11: Pomme
A12: APPLSAUC | B12: Applesauce | C12: Compote de pomme
A13: ART | B13: Artificial | C13: Artificiel
A14: VIT C | B14: Ascorbic acid | C14: Vitamine C
A15: ASPRT | B15: Aspartame | C15: Aspartame
A16: ASPRT-SWTND | B16: Aspartame-sweetened | C16: Edulcoré à l'aspartame
A17: BABYFD | B17: Baby food | C17: Aliment pour nourisson
A18: BKD | B18: Baked | C18: Cuit au four
A19: BBQ | B19: Barbequed | C19: Cuit au barbecue
A20: BSD | B20: Based | C20: Basé sur
A21: BNS | B21: Beans | C21: Haricots
A22: BF | B22: Beef | C22: Bœuf
A23: BEV | B23: Beverage | C23: Boissons
A24: BLD | B24: Boiled | C24: Bouilli
A25: BNLESS | B25: Boneless | C25: Sans os
A26: BTLD | B26: Bottled | C26: Embouteillé
A27: BTTM | B27: Bottom | C27: Arrière/bas/pied
A28: BRSD | B28: Braised | C28: Braisé
A29: BRKFST | B29: Breakfast | C29: Petit-déjeuner
A30: BRLD | B30: Broiled | C30: Brouillé/Grillé
A31: BTTRMLK | B31: Buttermilk | C31: Babeurre
A32: CA | B32: Calcium | C32: Calcium
A33: CAL | B33: Calorie calories | C33: Calorie
A34: CND | B34: Canned | C34: En conserve/boite
A35: CARB | B35: Carbonated | C35: Gazéifié
A36: CNTR | B36: Center | C36: Milieu
A37: CRL | B37: Cereal | C37: Céréale
A38: CHS | B38: Cheese | C38: Fromage
A39: CHICK | B39: Chicken | C39: Poulet
A40: CHOC | B40: Chocolate | C40: Chocolat
A41: CHOIC | B41: Choice | C41: Choix
A42: CHOL | B42: Cholesterol | C42: Cholesterol
A43: CHOL-FREE | B43: Cholesterol-free | C43: Sans cholesterol
A44: CHOPD | B44: Chopped | C44: Haché
A45: CINN | B45: Cinnamon | C45: Cannelle
A46: COATD | B46: Coated | C46: Enrobé
A47: COCNT | B47: Coconut | C47: Noix de coco
A48: COMP | B48: Composite | C48: Composé
A49: CONCD | B49: Concentrated | C49: Concentré
A50: COND | B50: Condensed | C50: Condensé / Concentré
A51: CONDMNT | B51: Condiment condiments | C51: Condiments
A52: CKD | B52: Cooked | C52: Cuit / cuisiné
A53: CRM | B53: Cream | C53: Crème
A54: CRMD | B54: Creamed | C54: Ecrémé / Sans crème
A55: DK | B55: Dark | C55: Noir
A56: DECORT | B56: Decorticated | C56: Pelé
A57: DEHYD | B57: Dehydrated | C57: Déshydraté
A58: DSSRT | B58: Dessert desserts | C58: Dessert
A59: DIL | B59: Diluted | C59: Dilué
A60: DOM | B60: Domestic | C60: Fait-maison
A61: DRND | B61: Drained | C61: Déshydraté / Séché
A62: DRSNG | B62: Dressing | C62: Assaisonnement
A63: DRK | B63: Drink | C63: Boissons
A64: ENR | B64: Enriched | C64: Enrichi
A65: FLANKSTK | B65: Flank steak | C65: Flanchet
A66: FLAV | B66: Flavored | C66: Aromatisé
A67: FLR | B67: Flour | C67: Farine
A68: FD | B68: Food | C68: Aliment
A69: FORT | B69: Fortified | C69: Fortifié
A70: FRENCH FR | B70: French fries | C70: Frites
A71: FRSH | B71: Fresh | C71: Frais
A72: FRSTD | B72: Frosted | C72: Givré
A73: FRSTNG | B73: Frosting | C73: Glaçage
A74: FRZ | B74: Frozen | C74: Surgelé
A75: GRDS | B75: Grades | C75: Catégories
A76: GM | B76: Gram | C76: Grammes
A77: GRNS | B77: Greens | C77: Légumes verts / Crudités
A78: HTD | B78: Heated | C78: Chauffé
A79: HVY | B79: Heavy | C79: Lourd
A80: HI | B80: High | C80: Haut
A81: HR | B81: Hour | C81: Heure
A82: HYDR | B82: Hydrogenated | C82: Hydrogéné
A83: IMITN | B83: Imitation | C83: Façon / Type
A84: IMP | B84: Imported | C84: Importé
A85: INCL | B85: Including | C85: Incluant
A86: INF FORMUKA | B86: Infant formula | C86: Formule infantile
A87: ING | B87: Ingredient | C87: Ingrédient
A88: INST | B88: Instant | C88: Instantané
A89: JUC | B89: Juice | C89: Jus
A90: KRNLS | B90: Kernels | C90: Graines
A91: LRG | B91: Large | C91: Large
A92: LN | B92: Lean | C92: Maigre
A93: LN | B93: Lean only | C93: Maigre seulement
A94: LVND | B94: Leavened | C94: Levé
A95: LT | B95: Light | C95: Léger / Allégé
A96: LIQ | B96: Liquid | C96: Liquide
A97: LO | B97: Low | C97: Pauvre en
A98: LOFAT | B98: Low fat | C98: Pauvre en graisse
A99: MSHD | B99: Mashed | C99: En purée
A100: MAYO | B100: Mayonnaise | C100: Mayonnaise
A101: MED | B101: Medium | C101: Moyen
A102: MIN | B102: Minutes | C102: Minutes
A103: MXD | B103: Mixed | C103: Mélangé
A104: NAT | B104: Natural | C104: Naturel
A105: NFDM | B105: Nonfat dry milk | C105: Lait en poudre dégraissée
A106: NUTR | B106: Nutrients | C106: Nutriments
A107: OZ | B107: Ounce | C107: Once (1oz = 28g)
A108: PAR FR | B108: Par fried | C108: Pré-frit
A109: PARBLD | B109: Parboiled | C109: A l'étuvé / pré-bouille
A110: PART | B110: Partially | C110: Partiellement
A111: PAR FR | B111: Partially fried | C111: Partiellement frit
A112: PAST | B112: Pasteurized | C112: Pasteurisé
A113: PNUT | B113: Peanut | C113: Cacahuète
A114: PO4 | B114: Phosphate | C114: Phosphate
A115: P | B115: Phosphorus | C115: Phosphore
A116: PNAPPL | B116: Pineapple | C116: Ananas
A117: PLN | B117: Plain | C117: Uni / pur
A118: K | B118: Potassium | C118: Potassium
A119: PDR | B119: Powder | C119: Poudre
A120: PDR | B120: Powdered | C120: En poudre
A121: PRECKD | B121: Precooked | C121: Précuit
A122: PREHTD | B122: Preheated | C122: Préchauffé
A123: PREP | B123: Prepared | C123: Préparé
A124: PROC | B124: Processed | C124: Industriel / Préparé
A125: PROT | B125: Protein | C125: Protéines
A126: PUDD | B126: Pudding Puddings | C126: Pudding / Gâteau
A127: RTB | B127: Ready-to-bake | C127: Prêt-à-cuir
A128: RTC | B128: Ready-to-cook | C128: Prêt-à-cuisiner
A129: RTD | B129: Ready-to-drink | C129: Prêt-à-boire
A130: RTE | B130: Ready-to-eat | C130: Prêt-à-manger
A131: RTH | B131: Ready-to-heat | C131: Prêt-à-réchauffer
A132: RTS | B132: Ready-to-serve | C132: Prêt-à-servir
A133: RTU | B133: Ready-to-use | C133: Prêt-à-préparer
A134: RECON | B134: Reconstituted | C134: Reconstitué
A135: RED | B135: Reduced | C135: Allégé en
A136: RED-CAL | B136: Reduced-calorie | C136: Allégé en calories
A137: REFR | B137: Refrigerated | C137: Réfrigéré
A138: REG | B138: Regular | C138: Habituel/Classique
A139: REHTD | B139: Reheated | C139: Réchauffé
A140: REPLCMNT | B140: Replacement | C140: De substitution
A141: REST-PREP | B141: Restaurant-prepared | C141: Fait au restaurant
A142: RST | B142: Roast | C142: Rôtir
A143: RSTD | B143: Roasted | C143: Rôti
A144: RND | B144: Round | C144: Arrondi
A145: SNDWCH | B145: Sandwich | C145: Sandwich
A146: SAU | B146: Sauce | C146: Sauce
A147: SCALLPD | B147: Scalloped | C147: Festonné
A148: SCRMBLD | B148: Scrambled | C148: Brouillé
A149: SD | B149: Seed | C149: Graines
A150: SHK&SIRL | B150: Shank and sirloin | C150: Jaret et aloyau
A151: SHRT | B151: Short | C151: Court
A152: SHLDR | B152: Shoulder | C152: Epaule
A153: SIMMRD | B153: Simmered | C153: Frémi / Cuit à feu doux
A154: SKN | B154: Skin | C154: Peau
A155: SML | B155: Small | C155: Petit
A156: NA | B156: Sodium | C156: Sodium
A157: SOL | B157: Solids | C157: Solides
A158: SOYBN | B158: Soybean | C158: Soja
A159: SPL | B159: Special | C159: Spécial
A160: SP | B160: Species | C160: Espèces
A161: SPRD | B161: Spread | C161: Etiré/Etalé
A162: STD | B162: Standard | C162: Standart/classique
A163: STMD | B163: Steamed | C163: Cuit à la vapeur
A164: STWD | B164: Stewed | C164: Mijoté
A165: STK | B165: Stick | C165: Batonnet
A166: STR | B166: Strained | C166: Tendu
A167: SUB | B167: Substitute | C167: Substitut
A168: SMMR | B168: Summer | C168: D'été
A169: SUPP | B169: Supplement | C169: Supplément
A170: SWT | B170: Sweet | C170: Sucré
A171: SWTND | B171: Sweetened | C171: Edulcoré
A172: SWTNR | B172: Sweetener | C172: Edulcorant
A173: TSP | B173: Teaspoon | C173: Cuillère à café
A174: TSTD | B174: Toasted | C174: Toasté
A175: TODD | B175: Toddler | C175: Nourisson
A176: UNCKD | B176: Uncooked | C176: Non cuit
A177: UNCRMD | B177: Uncreamed | C177: Non écrémé (entier)
A178: UNDIL | B178: Undiluted | C178: Non dilué
A179: UNENR | B179: Unenriched | C179: Non enrichi
A180: UNHTD | B180: Unheated | C180: Non chauffé
A181: UNPREP | B181: Unprepared | C181: Non préparé
A182: UNSWTND | B182: Unsweetened | C182: Non sucré
A183: VAR | B183: Variety Varieties | C183: Variété
A184: VEG | B184: Vegetable vegetables | C184: Légumes
A185: VIT A | B185: Vitamin A | C185: Vitamine A
A186: VIT C | B186: Vitamin C | C186: Vitamine C
A187: H20 | B187: Water | C187: Eau
A188: WHTNR | B188: Whitener | C188: Blanchissant
A189: WHL | B189: Whole | C189: Entier
A190: WNTR | B190: Winter | C190: D'hiver
A191: W/ | B191: With | C191: Avec
A192: WO/ | B192: Without | C192: Sans
A193: YEL | B193: Yellow | C193: Jaune

Sheet Crédits
A6: PANDA : Programme d'Analyse Nutritionnelle Diététique et Alimentaire
A7: Version de PANDA 3.0 : 2019 (3.1)
A8: Tracker copie-web n° #####-### : activé
A9: 3 bases de données alimentaires (total de 13095 aliments / 50 nutriments / 654 750 données) :
A10: CIQUAL 2016 (France) / USDA 2015 (USA) / ASEAN FDB 2013 (VIETNAM)
A11: Avertissement : Vous êtes autorisé à utiliser cette version de PANDA 3.1 pour un usage personnel ou professionnel unique. Seules les copies réalisées sur votre ordinateur sont autorisées. Toute copie sur un autre dispositif, ou tentative de modification des données internes, sont strictement interdites et passibles de poursuites judiciaires. Un tracker web anonyme permet de connaître si des copies illégales ont été réalisées.
